{"text_format":"1","workbook":"xlsx","n_sheets":2,"sheets":["Macro Original","Macro Corregido"],"not_rendered":{"charts":0,"images":0,"macros":1,"external_links":0,"defined_names":2,"comments":0,"pivot_tables":0},"unopened":[],"bounds":{"document_bytes":16777216,"sheet_cells":100000,"rows_first":2000,"rows_last":500,"rows_between":2000,"halvings":0,"cell_chars":16384,"cell_head_chars":4096},"cells_cut":0,"cells_raw":0,"read":"whole","date_system":"1900"}

{"sheet":"Macro Original","index":0,"n_rows":441,"n_cols":7,"rows_kept":441,"cut":false,"hidden":false,"merged":[]}
["LA TRANSPARENTE, C.A"]
["AJUSTE POR INFLACION FINANCIERO",null,null,{"$f":"Bal_Comp[[#Totals],[Año Base]]","v":300000},{"$f":"Bal_Comp[[#Totals],[Bal_1999]]","v":200000}]
["BALANCE DE COMPROBACIÓN "]
["Nivel","Código","Nombre","Año Base","Bal_1999"]
["Mayor",11010101,"CAJA GENERAL",null,null,null,{"$f":"IF(OR(Bal_Comp[[#This Row],[Año Base]]<>0,Bal_Comp[[#This Row],[Bal_1999]]<>0),1,0)","v":0}]
["Mayor",11010201,"BBVA PROVINCIAL",null,null,null,{"$f":"IF(OR(Bal_Comp[[#This Row],[Año Base]]<>0,Bal_Comp[[#This Row],[Bal_1999]]<>0),1,0)","v":0}]
["Mayor",11010301,"BANK OF AMERICA",null,null,null,{"$f":"IF(OR(Bal_Comp[[#This Row],[Año Base]]<>0,Bal_Comp[[#This Row],[Bal_1999]]<>0),1,0)","v":0}]
["Mayor",11010401,"BBVA PROVINCIAL",null,null,null,{"$f":"IF(OR(Bal_Comp[[#This Row],[Año Base]]<>0,Bal_Comp[[#This Row],[Bal_1999]]<>0),1,0)","v":0}]
["Mayor",11010501,"COBRANZA POR DEPOSITAR",100000,null,null,{"$f":"IF(OR(Bal_Comp[[#This Row],[Año Base]]<>0,Bal_Comp[[#This Row],[Bal_1999]]<>0),1,0)","v":1}]
["Mayor",11010501,"TRANSFERENCIAS EN TRANSITO (MN)",null,null,null,{"$f":"IF(OR(Bal_Comp[[#This Row],[Año Base]]<>0,Bal_Comp[[#This Row],[Bal_1999]]<>0),1,0)","v":0}]
["Mayor",11010501,"TRANSFERENCIAS EN TRANSITO (ME)",null,null,null,{"$f":"IF(OR(Bal_Comp[[#This Row],[Año Base]]<>0,Bal_Comp[[#This Row],[Bal_1999]]<>0),1,0)","v":0}]
["Mayor",11020101,"EFECTOS POR COBRAR ",null,null,null,{"$f":"IF(OR(Bal_Comp[[#This Row],[Año Base]]<>0,Bal_Comp[[#This Row],[Bal_1999]]<>0),1,0)","v":0}]
["Mayor",11020199,"EFECTOS POR COBRAR DESCONTADOS",null,100000,null,{"$f":"IF(OR(Bal_Comp[[#This Row],[Año Base]]<>0,Bal_Comp[[#This Row],[Bal_1999]]<>0),1,0)","v":1}]
["Mayor",11020201,"CLIENTES NACIONALES",null,null,null,{"$f":"IF(OR(Bal_Comp[[#This Row],[Año Base]]<>0,Bal_Comp[[#This Row],[Bal_1999]]<>0),1,0)","v":0}]
["Mayor",11020202,"CLIENTES EN EL EXTERIOR",null,null,null,{"$f":"IF(OR(Bal_Comp[[#This Row],[Año Base]]<>0,Bal_Comp[[#This Row],[Bal_1999]]<>0),1,0)","v":0}]
["Mayor",11020203,"CUENTAS POR COBRAR (NE)",null,null,null,{"$f":"IF(OR(Bal_Comp[[#This Row],[Año Base]]<>0,Bal_Comp[[#This Row],[Bal_1999]]<>0),1,0)","v":0}]
["Mayor",11020301,"CUENTAS EN LITIGIO",null,null,null,{"$f":"IF(OR(Bal_Comp[[#This Row],[Año Base]]<>0,Bal_Comp[[#This Row],[Bal_1999]]<>0),1,0)","v":0}]
["Mayor",11020499,"ESTIMACIÓN PARA CUENTAS INCOBRABLES",null,null,null,{"$f":"IF(OR(Bal_Comp[[#This Row],[Año Base]]<>0,Bal_Comp[[#This Row],[Bal_1999]]<>0),1,0)","v":0}]
["Mayor",11030101,"ANTICIPOS DE IMPUESTOS",null,null,null,{"$f":"IF(OR(Bal_Comp[[#This Row],[Año Base]]<>0,Bal_Comp[[#This Row],[Bal_1999]]<>0),1,0)","v":0}]
["Mayor",11030102,"RETENIDO POR TERCEROS",null,null,null,{"$f":"IF(OR(Bal_Comp[[#This Row],[Año Base]]<>0,Bal_Comp[[#This Row],[Bal_1999]]<>0),1,0)","v":0}]
["Mayor",11030103,"PAGADO EN EXCESO",null,null,null,{"$f":"IF(OR(Bal_Comp[[#This Row],[Año Base]]<>0,Bal_Comp[[#This Row],[Bal_1999]]<>0),1,0)","v":0}]
["Mayor",11030201,"CREDITO FISCAL",100000,null,null,{"$f":"IF(OR(Bal_Comp[[#This Row],[Año Base]]<>0,Bal_Comp[[#This Row],[Bal_1999]]<>0),1,0)","v":1}]
["Mayor",11030202,"RETENIDO POR TERCEROS",null,null,null,{"$f":"IF(OR(Bal_Comp[[#This Row],[Año Base]]<>0,Bal_Comp[[#This Row],[Bal_1999]]<>0),1,0)","v":0}]
["Mayor",11030301,"ALCALDIA DE SANDIEGO",null,null,null,{"$f":"IF(OR(Bal_Comp[[#This Row],[Año Base]]<>0,Bal_Comp[[#This Row],[Bal_1999]]<>0),1,0)","v":0}]
["Mayor",11030302,"ALCALDIA DE VALENCIA",null,null,null,{"$f":"IF(OR(Bal_Comp[[#This Row],[Año Base]]<>0,Bal_Comp[[#This Row],[Bal_1999]]<>0),1,0)","v":0}]
["Mayor",11030401,"OTROS",null,null,null,{"$f":"IF(OR(Bal_Comp[[#This Row],[Año Base]]<>0,Bal_Comp[[#This Row],[Bal_1999]]<>0),1,0)","v":0}]
["Mayor",11040101,"LA TORTA, C.A",null,null,null,{"$f":"IF(OR(Bal_Comp[[#This Row],[Año Base]]<>0,Bal_Comp[[#This Row],[Bal_1999]]<>0),1,0)","v":0}]
["Mayor",11050101,"PEDRO PEREZ",null,null,null,{"$f":"IF(OR(Bal_Comp[[#This Row],[Año Base]]<>0,Bal_Comp[[#This Row],[Bal_1999]]<>0),1,0)","v":0}]
["Mayor",11060101,"TRABAJADORES",null,null,null,{"$f":"IF(OR(Bal_Comp[[#This Row],[Año Base]]<>0,Bal_Comp[[#This Row],[Bal_1999]]<>0),1,0)","v":0}]
["Mayor",11070199,"OTRAS CUENTAS POR COBRAR",null,null,null,{"$f":"IF(OR(Bal_Comp[[#This Row],[Año Base]]<>0,Bal_Comp[[#This Row],[Bal_1999]]<>0),1,0)","v":0}]
["Mayor",11080101,"ANTICIPO A PROVEEDORES",null,null,null,{"$f":"IF(OR(Bal_Comp[[#This Row],[Año Base]]<>0,Bal_Comp[[#This Row],[Bal_1999]]<>0),1,0)","v":0}]
["Mayor",11090101,"MATERIAS PRIMAS",null,null,null,{"$f":"IF(OR(Bal_Comp[[#This Row],[Año Base]]<>0,Bal_Comp[[#This Row],[Bal_1999]]<>0),1,0)","v":0}]
["Mayor",11090201,"MATERIALES Y SUMINISTROS",null,null,null,{"$f":"IF(OR(Bal_Comp[[#This Row],[Año Base]]<>0,Bal_Comp[[#This Row],[Bal_1999]]<>0),1,0)","v":0}]
["Mayor",11090301,"PRODUCTOS EN PROCESO",null,null,null,{"$f":"IF(OR(Bal_Comp[[#This Row],[Año Base]]<>0,Bal_Comp[[#This Row],[Bal_1999]]<>0),1,0)","v":0}]
["Mayor",11090401,"PRODUCTOS TERMINADOS",null,null,null,{"$f":"IF(OR(Bal_Comp[[#This Row],[Año Base]]<>0,Bal_Comp[[#This Row],[Bal_1999]]<>0),1,0)","v":0}]
["Mayor",11090501,"LUBRICANTES",null,null,null,{"$f":"IF(OR(Bal_Comp[[#This Row],[Año Base]]<>0,Bal_Comp[[#This Row],[Bal_1999]]<>0),1,0)","v":0}]
["Mayor",11090601,"LUBRICANTES",null,null,null,{"$f":"IF(OR(Bal_Comp[[#This Row],[Año Base]]<>0,Bal_Comp[[#This Row],[Bal_1999]]<>0),1,0)","v":0}]
["Mayor",11099901,"MATERIAS PRIMAS",null,null,null,{"$f":"IF(OR(Bal_Comp[[#This Row],[Año Base]]<>0,Bal_Comp[[#This Row],[Bal_1999]]<>0),1,0)","v":0}]
["Mayor",11100101,"PETROLEOS DE VENEZUELA, SA",null,null,null,{"$f":"IF(OR(Bal_Comp[[#This Row],[Año Base]]<>0,Bal_Comp[[#This Row],[Bal_1999]]<>0),1,0)","v":0}]
["Mayor",11110101,"POLIZAS DE SEGURO",null,null,null,{"$f":"IF(OR(Bal_Comp[[#This Row],[Año Base]]<>0,Bal_Comp[[#This Row],[Bal_1999]]<>0),1,0)","v":0}]
["Mayor",11110199,"AMORTIZACION ACUMULADA",null,null,null,{"$f":"IF(OR(Bal_Comp[[#This Row],[Año Base]]<>0,Bal_Comp[[#This Row],[Bal_1999]]<>0),1,0)","v":0}]
["Mayor",11120101,"OTRO ACTIVO CORRIENTE",null,null,null,{"$f":"IF(OR(Bal_Comp[[#This Row],[Año Base]]<>0,Bal_Comp[[#This Row],[Bal_1999]]<>0),1,0)","v":0}]
["Mayor",12010101,"LA PERLA DE ORIENTE, C.A",null,null,null,{"$f":"IF(OR(Bal_Comp[[#This Row],[Año Base]]<>0,Bal_Comp[[#This Row],[Bal_1999]]<>0),1,0)","v":0}]
["Mayor","12010201","LA ENRREDADA, C.A",null,null,null,{"$f":"IF(OR(Bal_Comp[[#This Row],[Año Base]]<>0,Bal_Comp[[#This Row],[Bal_1999]]<>0),1,0)","v":0}]
["Mayor",12010999,"PROVISION FLUCTUACIÓN DE MERCADO",null,null,null,{"$f":"IF(OR(Bal_Comp[[#This Row],[Año Base]]<>0,Bal_Comp[[#This Row],[Bal_1999]]<>0),1,0)","v":0}]
["Mayor",12020101,"REGISTRO PATENTE \"A\"",null,null,null,{"$f":"IF(OR(Bal_Comp[[#This Row],[Año Base]]<>0,Bal_Comp[[#This Row],[Bal_1999]]<>0),1,0)","v":0}]
["Mayor",12020199,"AMORTIZACION ACUMULADA",null,null,null,{"$f":"IF(OR(Bal_Comp[[#This Row],[Año Base]]<>0,Bal_Comp[[#This Row],[Bal_1999]]<>0),1,0)","v":0}]
["Mayor",12020201,"REGISTRO MARCAS \"A\"",null,null,null,{"$f":"IF(OR(Bal_Comp[[#This Row],[Año Base]]<>0,Bal_Comp[[#This Row],[Bal_1999]]<>0),1,0)","v":0}]
["Mayor",12020299,"AMORTIZACION ACUMULADA",null,null,null,{"$f":"IF(OR(Bal_Comp[[#This Row],[Año Base]]<>0,Bal_Comp[[#This Row],[Bal_1999]]<>0),1,0)","v":0}]
["Mayor",12020301,"PLUSVALIA",null,null,null,{"$f":"IF(OR(Bal_Comp[[#This Row],[Año Base]]<>0,Bal_Comp[[#This Row],[Bal_1999]]<>0),1,0)","v":0}]
["Mayor",12020399,"AMORTIZACION ACUMULADA",null,null,null,{"$f":"IF(OR(Bal_Comp[[#This Row],[Año Base]]<>0,Bal_Comp[[#This Row],[Bal_1999]]<>0),1,0)","v":0}]
["Mayor",12030101,"TERRENOS",null,null,null,{"$f":"IF(OR(Bal_Comp[[#This Row],[Año Base]]<>0,Bal_Comp[[#This Row],[Bal_1999]]<>0),1,0)","v":0}]
["Mayor",12030102,"EDIFICACIONES",null,null,null,{"$f":"IF(OR(Bal_Comp[[#This Row],[Año Base]]<>0,Bal_Comp[[#This Row],[Bal_1999]]<>0),1,0)","v":0}]
["Mayor",12030103,"MAQUINARIAS Y EQUIPOS",null,100000,null,{"$f":"IF(OR(Bal_Comp[[#This Row],[Año Base]]<>0,Bal_Comp[[#This Row],[Bal_1999]]<>0),1,0)","v":1}]
["Mayor",12030104,"INSTALACIONES",null,null,null,{"$f":"IF(OR(Bal_Comp[[#This Row],[Año Base]]<>0,Bal_Comp[[#This Row],[Bal_1999]]<>0),1,0)","v":0}]
["Mayor",12030105,"MOBILIARIO Y EQUIPOS DE OFICINA",null,null,null,{"$f":"IF(OR(Bal_Comp[[#This Row],[Año Base]]<>0,Bal_Comp[[#This Row],[Bal_1999]]<>0),1,0)","v":0}]
["Mayor",12030106,"EQUIPOS DE COMPUTACION",null,null,null,{"$f":"IF(OR(Bal_Comp[[#This Row],[Año Base]]<>0,Bal_Comp[[#This Row],[Bal_1999]]<>0),1,0)","v":0}]
["Mayor",12030107,"VEHICULOS",null,null,null,{"$f":"IF(OR(Bal_Comp[[#This Row],[Año Base]]<>0,Bal_Comp[[#This Row],[Bal_1999]]<>0),1,0)","v":0}]
["Mayor",12030108,"EQUIPOS Y HERRAMIENTAS",null,null,null,{"$f":"IF(OR(Bal_Comp[[#This Row],[Año Base]]<>0,Bal_Comp[[#This Row],[Bal_1999]]<>0),1,0)","v":0}]
["Mayor",12030201,"EDIFICACIONES",null,null,null,{"$f":"IF(OR(Bal_Comp[[#This Row],[Año Base]]<>0,Bal_Comp[[#This Row],[Bal_1999]]<>0),1,0)","v":0}]
["Mayor",12030202,"MAQUINARIAS Y EQUIPOS",null,null,null,{"$f":"IF(OR(Bal_Comp[[#This Row],[Año Base]]<>0,Bal_Comp[[#This Row],[Bal_1999]]<>0),1,0)","v":0}]
["Mayor",12030203,"INSTALACIONES",null,null,null,{"$f":"IF(OR(Bal_Comp[[#This Row],[Año Base]]<>0,Bal_Comp[[#This Row],[Bal_1999]]<>0),1,0)","v":0}]
["Mayor",12030204,"MOBILIARIO Y EQUIPOS DE OFICINA",null,null,null,{"$f":"IF(OR(Bal_Comp[[#This Row],[Año Base]]<>0,Bal_Comp[[#This Row],[Bal_1999]]<>0),1,0)","v":0}]
["Mayor",12030205,"EQUIPOS DE COMPUTACION",null,null,null,{"$f":"IF(OR(Bal_Comp[[#This Row],[Año Base]]<>0,Bal_Comp[[#This Row],[Bal_1999]]<>0),1,0)","v":0}]
["Mayor",12030206,"VEHICULOS",null,null,null,{"$f":"IF(OR(Bal_Comp[[#This Row],[Año Base]]<>0,Bal_Comp[[#This Row],[Bal_1999]]<>0),1,0)","v":0}]
["Mayor",12030207,"EQUIPOS Y HERRAMIENTAS",null,null,null,{"$f":"IF(OR(Bal_Comp[[#This Row],[Año Base]]<>0,Bal_Comp[[#This Row],[Bal_1999]]<>0),1,0)","v":0}]
["Mayor",12030301,"TERRENOS",null,null,null,{"$f":"IF(OR(Bal_Comp[[#This Row],[Año Base]]<>0,Bal_Comp[[#This Row],[Bal_1999]]<>0),1,0)","v":0}]
["Mayor",12030302,"EDIFICACIONES",null,null,null,{"$f":"IF(OR(Bal_Comp[[#This Row],[Año Base]]<>0,Bal_Comp[[#This Row],[Bal_1999]]<>0),1,0)","v":0}]
["Mayor",12030401,"EDIFICACIONES",null,null,null,{"$f":"IF(OR(Bal_Comp[[#This Row],[Año Base]]<>0,Bal_Comp[[#This Row],[Bal_1999]]<>0),1,0)","v":0}]
["Mayor",12040101,"PLANTA \"A\"",null,null,null,{"$f":"IF(OR(Bal_Comp[[#This Row],[Año Base]]<>0,Bal_Comp[[#This Row],[Bal_1999]]<>0),1,0)","v":0}]
["Mayor",12050101,"ORGANIZACIÓN Y PUESTA EN MARCHA",null,null,null,{"$f":"IF(OR(Bal_Comp[[#This Row],[Año Base]]<>0,Bal_Comp[[#This Row],[Bal_1999]]<>0),1,0)","v":0}]
["Mayor",12050199,"AMORTIZACIÓN ACUMULADA",null,null,null,{"$f":"IF(OR(Bal_Comp[[#This Row],[Año Base]]<>0,Bal_Comp[[#This Row],[Bal_1999]]<>0),1,0)","v":0}]
["Mayor",12060101,"IMPUESTO DIFERIDO ACTIVO",null,null,null,{"$f":"IF(OR(Bal_Comp[[#This Row],[Año Base]]<>0,Bal_Comp[[#This Row],[Bal_1999]]<>0),1,0)","v":0}]
["Mayor",12070101,"INMUEBLES ARRENDADOS",null,null,null,{"$f":"IF(OR(Bal_Comp[[#This Row],[Año Base]]<>0,Bal_Comp[[#This Row],[Bal_1999]]<>0),1,0)","v":0}]
["Mayor",12079901,"OTRO ACTIVO NO CORRIENTE",null,null,null,{"$f":"IF(OR(Bal_Comp[[#This Row],[Año Base]]<>0,Bal_Comp[[#This Row],[Bal_1999]]<>0),1,0)","v":0}]
["Mayor",21010101,"BBVA PROVINCIAL ",null,null,null,{"$f":"IF(OR(Bal_Comp[[#This Row],[Año Base]]<>0,Bal_Comp[[#This Row],[Bal_1999]]<>0),1,0)","v":0}]
["Mayor","21010199","PORCIÓN CORRIENTE DEUDA A L/P",null,null,null,{"$f":"IF(OR(Bal_Comp[[#This Row],[Año Base]]<>0,Bal_Comp[[#This Row],[Bal_1999]]<>0),1,0)","v":0}]
["Mayor",21010201,"PEDRO PEREZ",null,null,null,{"$f":"IF(OR(Bal_Comp[[#This Row],[Año Base]]<>0,Bal_Comp[[#This Row],[Bal_1999]]<>0),1,0)","v":0}]
["Mayor",21020101,"PROVEEDORES NACIONALES",null,null,null,{"$f":"IF(OR(Bal_Comp[[#This Row],[Año Base]]<>0,Bal_Comp[[#This Row],[Bal_1999]]<>0),1,0)","v":0}]
["Mayor",21020201,"PROVEEDORES EN EL EXTERIOR",null,null,null,{"$f":"IF(OR(Bal_Comp[[#This Row],[Año Base]]<>0,Bal_Comp[[#This Row],[Bal_1999]]<>0),1,0)","v":0}]
["Mayor",21030101,"PEDRO PEREZ",null,null,null,{"$f":"IF(OR(Bal_Comp[[#This Row],[Año Base]]<>0,Bal_Comp[[#This Row],[Bal_1999]]<>0),1,0)","v":0}]
["Mayor",21040201,"LA TORTA, C.A",null,null,null,{"$f":"IF(OR(Bal_Comp[[#This Row],[Año Base]]<>0,Bal_Comp[[#This Row],[Bal_1999]]<>0),1,0)","v":0}]
["Mayor",21050101,"SEGURO SOCIAL OBLIGATORIO ",null,null,null,{"$f":"IF(OR(Bal_Comp[[#This Row],[Año Base]]<>0,Bal_Comp[[#This Row],[Bal_1999]]<>0),1,0)","v":0}]
["Mayor",21050102,"REGIMEN PRESTACIONAL DE EMPLEO",null,null,null,{"$f":"IF(OR(Bal_Comp[[#This Row],[Año Base]]<>0,Bal_Comp[[#This Row],[Bal_1999]]<>0),1,0)","v":0}]
["Mayor",21050103,"FONDO DE AHORRO PARA LA VIVIENDA",null,null,null,{"$f":"IF(OR(Bal_Comp[[#This Row],[Año Base]]<>0,Bal_Comp[[#This Row],[Bal_1999]]<>0),1,0)","v":0}]
["Mayor",21050104,"INCES",null,null,null,{"$f":"IF(OR(Bal_Comp[[#This Row],[Año Base]]<>0,Bal_Comp[[#This Row],[Bal_1999]]<>0),1,0)","v":0}]
["Mayor",21050105,"IMPUESTO SOBRE LA RENTA",null,null,null,{"$f":"IF(OR(Bal_Comp[[#This Row],[Año Base]]<>0,Bal_Comp[[#This Row],[Bal_1999]]<>0),1,0)","v":0}]
["Mayor",21060101,"NOMINAS POR PAGAR",null,null,null,{"$f":"IF(OR(Bal_Comp[[#This Row],[Año Base]]<>0,Bal_Comp[[#This Row],[Bal_1999]]<>0),1,0)","v":0}]
["Mayor",21060199,"OTRAS CUENTAS POR PAGAR",null,null,null,{"$f":"IF(OR(Bal_Comp[[#This Row],[Año Base]]<>0,Bal_Comp[[#This Row],[Bal_1999]]<>0),1,0)","v":0}]
["Mayor",21070101,"EJERCICIO CORRIENTE",null,null,null,{"$f":"IF(OR(Bal_Comp[[#This Row],[Año Base]]<>0,Bal_Comp[[#This Row],[Bal_1999]]<>0),1,0)","v":0}]
["Mayor",21070102,"RETENIDO A TERCEROS",null,null,null,{"$f":"IF(OR(Bal_Comp[[#This Row],[Año Base]]<>0,Bal_Comp[[#This Row],[Bal_1999]]<>0),1,0)","v":0}]
["Mayor",21070104,"RETENIDO A PROVEEDORES",null,null,null,{"$f":"IF(OR(Bal_Comp[[#This Row],[Año Base]]<>0,Bal_Comp[[#This Row],[Bal_1999]]<>0),1,0)","v":0}]
["Mayor",21070105,"RETENIDO SOBRE VENTAS",null,null,null,{"$f":"IF(OR(Bal_Comp[[#This Row],[Año Base]]<>0,Bal_Comp[[#This Row],[Bal_1999]]<>0),1,0)","v":0}]
["Mayor",21070201,"DEBITO FISCAL",null,null,null,{"$f":"IF(OR(Bal_Comp[[#This Row],[Año Base]]<>0,Bal_Comp[[#This Row],[Bal_1999]]<>0),1,0)","v":0}]
["Mayor",21070202,"IVA POR PAGAR",null,null,null,{"$f":"IF(OR(Bal_Comp[[#This Row],[Año Base]]<>0,Bal_Comp[[#This Row],[Bal_1999]]<>0),1,0)","v":0}]
["Mayor",21070203,"RETENIDO POR TERCEROS",null,null,null,{"$f":"IF(OR(Bal_Comp[[#This Row],[Año Base]]<>0,Bal_Comp[[#This Row],[Bal_1999]]<>0),1,0)","v":0}]
["Mayor",21070204,"RETENIDO A TERCEROS",null,null,null,{"$f":"IF(OR(Bal_Comp[[#This Row],[Año Base]]<>0,Bal_Comp[[#This Row],[Bal_1999]]<>0),1,0)","v":0}]
["Mayor",21070301,"ALCALDIA DE VALENCIA",null,null,null,{"$f":"IF(OR(Bal_Comp[[#This Row],[Año Base]]<>0,Bal_Comp[[#This Row],[Bal_1999]]<>0),1,0)","v":0}]
["Mayor",21070302,"ALCALDIA DE SAN DIEGO",null,null,null,{"$f":"IF(OR(Bal_Comp[[#This Row],[Año Base]]<>0,Bal_Comp[[#This Row],[Bal_1999]]<>0),1,0)","v":0}]
["Mayor",21080101,"PEDRO PEREZ",null,null,null,{"$f":"IF(OR(Bal_Comp[[#This Row],[Año Base]]<>0,Bal_Comp[[#This Row],[Bal_1999]]<>0),1,0)","v":0}]
["Mayor",21090101,"ANTICIPOS DE CLIENTES NACIONALES ",null,null,null,{"$f":"IF(OR(Bal_Comp[[#This Row],[Año Base]]<>0,Bal_Comp[[#This Row],[Bal_1999]]<>0),1,0)","v":0}]
["Mayor",21110101,"INTERESES BANCARIOS",null,null,null,{"$f":"IF(OR(Bal_Comp[[#This Row],[Año Base]]<>0,Bal_Comp[[#This Row],[Bal_1999]]<>0),1,0)","v":0}]
["Mayor",21110199,"OTROS GASTOS ACUMULADOS",null,null,null,{"$f":"IF(OR(Bal_Comp[[#This Row],[Año Base]]<>0,Bal_Comp[[#This Row],[Bal_1999]]<>0),1,0)","v":0}]
["Mayor",21110201,"IVSS",null,null,null,{"$f":"IF(OR(Bal_Comp[[#This Row],[Año Base]]<>0,Bal_Comp[[#This Row],[Bal_1999]]<>0),1,0)","v":0}]
["Mayor",21110202,"REGIMEN PRESTAC. DE EMPLEO",null,null,null,{"$f":"IF(OR(Bal_Comp[[#This Row],[Año Base]]<>0,Bal_Comp[[#This Row],[Bal_1999]]<>0),1,0)","v":0}]
["Mayor",21110203,"FONDO DE AHORRO PARA LA VIVIENDA",null,null,null,{"$f":"IF(OR(Bal_Comp[[#This Row],[Año Base]]<>0,Bal_Comp[[#This Row],[Bal_1999]]<>0),1,0)","v":0}]
["Mayor",21110204,"INCES",null,null,null,{"$f":"IF(OR(Bal_Comp[[#This Row],[Año Base]]<>0,Bal_Comp[[#This Row],[Bal_1999]]<>0),1,0)","v":0}]
["Mayor",21110301,"INTERESES PRESTACIONES SOCIALES",null,null,null,{"$f":"IF(OR(Bal_Comp[[#This Row],[Año Base]]<>0,Bal_Comp[[#This Row],[Bal_1999]]<>0),1,0)","v":0}]
["Mayor",21110302,"UTILIDADES",null,null,null,{"$f":"IF(OR(Bal_Comp[[#This Row],[Año Base]]<>0,Bal_Comp[[#This Row],[Bal_1999]]<>0),1,0)","v":0}]
["Mayor",21110303,"VACACIONES",null,null,null,{"$f":"IF(OR(Bal_Comp[[#This Row],[Año Base]]<>0,Bal_Comp[[#This Row],[Bal_1999]]<>0),1,0)","v":0}]
["Mayor",21110304,"BONO VACACIONAL",null,null,null,{"$f":"IF(OR(Bal_Comp[[#This Row],[Año Base]]<>0,Bal_Comp[[#This Row],[Bal_1999]]<>0),1,0)","v":0}]
["Mayor",21140401,"FONDO NACIONAL DEL DEPORTE",null,null,null,{"$f":"IF(OR(Bal_Comp[[#This Row],[Año Base]]<>0,Bal_Comp[[#This Row],[Bal_1999]]<>0),1,0)","v":0}]
["Mayor",21140402,"LEY ORGÁNICA DE CIENCIA Y TECNOLOGIA",null,null,null,{"$f":"IF(OR(Bal_Comp[[#This Row],[Año Base]]<>0,Bal_Comp[[#This Row],[Bal_1999]]<>0),1,0)","v":0}]
["Mayor",21140403,"FONDO NACIONAL ANTIDROGA",null,null,null,{"$f":"IF(OR(Bal_Comp[[#This Row],[Año Base]]<>0,Bal_Comp[[#This Row],[Bal_1999]]<>0),1,0)","v":0}]
["Mayor",22010101,"PRESTACIONES SOCIALES",null,null,null,{"$f":"IF(OR(Bal_Comp[[#This Row],[Año Base]]<>0,Bal_Comp[[#This Row],[Bal_1999]]<>0),1,0)","v":0}]
["Mayor",22010102,"ANTICIPO PRESTACIONES SOCIALES",null,null,null,{"$f":"IF(OR(Bal_Comp[[#This Row],[Año Base]]<>0,Bal_Comp[[#This Row],[Bal_1999]]<>0),1,0)","v":0}]
["Mayor",22020101,"BBVA PROVINCIAL",null,null,null,{"$f":"IF(OR(Bal_Comp[[#This Row],[Año Base]]<>0,Bal_Comp[[#This Row],[Bal_1999]]<>0),1,0)","v":0}]
["Mayor",22030101,"VENTAS A FUTURO",null,null,null,{"$f":"IF(OR(Bal_Comp[[#This Row],[Año Base]]<>0,Bal_Comp[[#This Row],[Bal_1999]]<>0),1,0)","v":0}]
["Mayor",22030199,"OTROS CREDITOS DIFERIDOS",null,null,null,{"$f":"IF(OR(Bal_Comp[[#This Row],[Año Base]]<>0,Bal_Comp[[#This Row],[Bal_1999]]<>0),1,0)","v":0}]
["Mayor",22040101,"IMPUESTO DIFERIDO PASIVO",null,null,null,{"$f":"IF(OR(Bal_Comp[[#This Row],[Año Base]]<>0,Bal_Comp[[#This Row],[Bal_1999]]<>0),1,0)","v":0}]
["Mayor",22050199,"OTROS PASIVOS NO CORRIENTES",null,null,null,{"$f":"IF(OR(Bal_Comp[[#This Row],[Año Base]]<>0,Bal_Comp[[#This Row],[Bal_1999]]<>0),1,0)","v":0}]
["Mayor",31010101,"PEDRO PEREZ",null,null,null,{"$f":"IF(OR(Bal_Comp[[#This Row],[Año Base]]<>0,Bal_Comp[[#This Row],[Bal_1999]]<>0),1,0)","v":0}]
["Mayor",31010201,"PEDRO PEREZ",null,null,null,{"$f":"IF(OR(Bal_Comp[[#This Row],[Año Base]]<>0,Bal_Comp[[#This Row],[Bal_1999]]<>0),1,0)","v":0}]
["Mayor",31020101,"UTILIDAD (DEFICIT) ACUMULADO",null,null,null,{"$f":"IF(OR(Bal_Comp[[#This Row],[Año Base]]<>0,Bal_Comp[[#This Row],[Bal_1999]]<>0),1,0)","v":0}]
["Mayor",31020102,"UTILIDAD (DEFICIT) DEL EJERCICIO",null,null,null,{"$f":"IF(OR(Bal_Comp[[#This Row],[Año Base]]<>0,Bal_Comp[[#This Row],[Bal_1999]]<>0),1,0)","v":0}]
["Mayor",31030101,"UTILIDAD (DEFICIT) EJERCICIO",null,null,null,{"$f":"IF(OR(Bal_Comp[[#This Row],[Año Base]]<>0,Bal_Comp[[#This Row],[Bal_1999]]<>0),1,0)","v":0}]
["Mayor",31030102,"CIERRE CUENTAS DE BALANCE",null,null,null,{"$f":"IF(OR(Bal_Comp[[#This Row],[Año Base]]<>0,Bal_Comp[[#This Row],[Bal_1999]]<>0),1,0)","v":0}]
["Mayor",31040101,"PEDRO PEREZ",null,null,null,{"$f":"IF(OR(Bal_Comp[[#This Row],[Año Base]]<>0,Bal_Comp[[#This Row],[Bal_1999]]<>0),1,0)","v":0}]
["Mayor",31050101,"RESERVA LEGAL",null,null,null,{"$f":"IF(OR(Bal_Comp[[#This Row],[Año Base]]<>0,Bal_Comp[[#This Row],[Bal_1999]]<>0),1,0)","v":0}]
["Mayor",31050201,"RESERVA PARA CONTIGENCIAS",null,null,null,{"$f":"IF(OR(Bal_Comp[[#This Row],[Año Base]]<>0,Bal_Comp[[#This Row],[Bal_1999]]<>0),1,0)","v":0}]
["Mayor",31060101,"TERRENOS",null,null,null,{"$f":"IF(OR(Bal_Comp[[#This Row],[Año Base]]<>0,Bal_Comp[[#This Row],[Bal_1999]]<>0),1,0)","v":0}]
["Mayor",31060102,"INMUEBLES",null,null,null,{"$f":"IF(OR(Bal_Comp[[#This Row],[Año Base]]<>0,Bal_Comp[[#This Row],[Bal_1999]]<>0),1,0)","v":0}]
["Mayor",31060103,"ISLR DIFERIDO POR REVALUACIÓN",null,null,null,{"$f":"IF(OR(Bal_Comp[[#This Row],[Año Base]]<>0,Bal_Comp[[#This Row],[Bal_1999]]<>0),1,0)","v":0}]
["Mayor",31080101,"ACTUALIZACION DEL PATRIMONIO",null,null,null,{"$f":"IF(OR(Bal_Comp[[#This Row],[Año Base]]<>0,Bal_Comp[[#This Row],[Bal_1999]]<>0),1,0)","v":0}]
["Mayor",31080102,"EXCLUSIONES FISCALES HISTÓRICAS ",null,null,null,{"$f":"IF(OR(Bal_Comp[[#This Row],[Año Base]]<>0,Bal_Comp[[#This Row],[Bal_1999]]<>0),1,0)","v":0}]
["Mayor",31080103,"REAJUSTE POR INFLACIÓN",null,null,null,{"$f":"IF(OR(Bal_Comp[[#This Row],[Año Base]]<>0,Bal_Comp[[#This Row],[Bal_1999]]<>0),1,0)","v":0}]
["Mayor",41010101,"VENTAS DE EXPORTACION",null,null,null,{"$f":"IF(OR(Bal_Comp[[#This Row],[Año Base]]<>0,Bal_Comp[[#This Row],[Bal_1999]]<>0),1,0)","v":0}]
["Mayor",41010201,"VENTAS DE MERCANCIAS",null,null,null,{"$f":"IF(OR(Bal_Comp[[#This Row],[Año Base]]<>0,Bal_Comp[[#This Row],[Bal_1999]]<>0),1,0)","v":0}]
["Mayor",41010301,"VENTAS A CREDITO",null,null,null,{"$f":"IF(OR(Bal_Comp[[#This Row],[Año Base]]<>0,Bal_Comp[[#This Row],[Bal_1999]]<>0),1,0)","v":0}]
["Mayor",41010302,"VENTAS DE CONTADO",null,null,null,{"$f":"IF(OR(Bal_Comp[[#This Row],[Año Base]]<>0,Bal_Comp[[#This Row],[Bal_1999]]<>0),1,0)","v":0}]
["Mayor",41010401,"SERVICIOS DE EXPORTACIÓN",null,null,null,{"$f":"IF(OR(Bal_Comp[[#This Row],[Año Base]]<>0,Bal_Comp[[#This Row],[Bal_1999]]<>0),1,0)","v":0}]
["Mayor",41010402,"SERVICIOS AL SECTOR PUBLICO",null,null,null,{"$f":"IF(OR(Bal_Comp[[#This Row],[Año Base]]<>0,Bal_Comp[[#This Row],[Bal_1999]]<>0),1,0)","v":0}]
["Mayor",41010403,"SERVICIOS AL SECTOR PRIVADO",null,null,null,{"$f":"IF(OR(Bal_Comp[[#This Row],[Año Base]]<>0,Bal_Comp[[#This Row],[Bal_1999]]<>0),1,0)","v":0}]
["Mayor",41010501,"HONORARIOS PROFESIONALES",null,null,null,{"$f":"IF(OR(Bal_Comp[[#This Row],[Año Base]]<>0,Bal_Comp[[#This Row],[Bal_1999]]<>0),1,0)","v":0}]
["Mayor",41010801,"BIENES MUEBLES",null,null,null,{"$f":"IF(OR(Bal_Comp[[#This Row],[Año Base]]<>0,Bal_Comp[[#This Row],[Bal_1999]]<>0),1,0)","v":0}]
["Mayor",41010802,"BIENES INMUEBLES",null,null,null,{"$f":"IF(OR(Bal_Comp[[#This Row],[Año Base]]<>0,Bal_Comp[[#This Row],[Bal_1999]]<>0),1,0)","v":0}]
["Mayor",41020101,"DEVOLUCIONES EN VENTAS",null,null,null,{"$f":"IF(OR(Bal_Comp[[#This Row],[Año Base]]<>0,Bal_Comp[[#This Row],[Bal_1999]]<>0),1,0)","v":0}]
["Mayor",41020102,"REBAJAS Y DESCUENTOS",null,null,null,{"$f":"IF(OR(Bal_Comp[[#This Row],[Año Base]]<>0,Bal_Comp[[#This Row],[Bal_1999]]<>0),1,0)","v":0}]
["Mayor",41030101,"VENTAS A FUTURO",null,null,null,{"$f":"IF(OR(Bal_Comp[[#This Row],[Año Base]]<>0,Bal_Comp[[#This Row],[Bal_1999]]<>0),1,0)","v":0}]
["Mayor",51010101,"MERCANCIAS VENDIDAS",null,null,null,{"$f":"IF(OR(Bal_Comp[[#This Row],[Año Base]]<>0,Bal_Comp[[#This Row],[Bal_1999]]<>0),1,0)","v":0}]
["Mayor",51010102,"VARIACIÓN DE INVENTARIOS",null,null,null,{"$f":"IF(OR(Bal_Comp[[#This Row],[Año Base]]<>0,Bal_Comp[[#This Row],[Bal_1999]]<>0),1,0)","v":0}]
["Mayor",51010201,"PRODUCTOS TERMINADOS VENDIDO",null,null,null,{"$f":"IF(OR(Bal_Comp[[#This Row],[Año Base]]<>0,Bal_Comp[[#This Row],[Bal_1999]]<>0),1,0)","v":0}]
["Mayor",51010301,"ADQUISICIÓN DE INMUEBLES VENDIDOS",null,null,null,{"$f":"IF(OR(Bal_Comp[[#This Row],[Año Base]]<>0,Bal_Comp[[#This Row],[Bal_1999]]<>0),1,0)","v":0}]
["Mayor",51010302,"MEJORAS A INMUEBLES VENDIDOS",null,null,null,{"$f":"IF(OR(Bal_Comp[[#This Row],[Año Base]]<>0,Bal_Comp[[#This Row],[Bal_1999]]<>0),1,0)","v":0}]
["Mayor",51010303,"GASTOS DE REGISTROS INMUEBLES VENDIDOS",null,null,null,{"$f":"IF(OR(Bal_Comp[[#This Row],[Año Base]]<>0,Bal_Comp[[#This Row],[Bal_1999]]<>0),1,0)","v":0}]
["Mayor",51010304,"AJUSTE POR INFLACIÒN INMUEBLES VENDIDOS",null,null,null,{"$f":"IF(OR(Bal_Comp[[#This Row],[Año Base]]<>0,Bal_Comp[[#This Row],[Bal_1999]]<>0),1,0)","v":0}]
["Mayor",51010401,"ACCIONES VENDIDAS",null,null,null,{"$f":"IF(OR(Bal_Comp[[#This Row],[Año Base]]<>0,Bal_Comp[[#This Row],[Bal_1999]]<>0),1,0)","v":0}]
["Mayor",51010501,"OTROS COSTOS DE VENTAS",null,null,null,{"$f":"IF(OR(Bal_Comp[[#This Row],[Año Base]]<>0,Bal_Comp[[#This Row],[Bal_1999]]<>0),1,0)","v":0}]
["Mayor",51020101,"MATERIALES E INSUMOS",null,null,null,{"$f":"IF(OR(Bal_Comp[[#This Row],[Año Base]]<>0,Bal_Comp[[#This Row],[Bal_1999]]<>0),1,0)","v":0}]
["Mayor",51020201,"SUELDOS DIRECTORES",null,null,null,{"$f":"IF(OR(Bal_Comp[[#This Row],[Año Base]]<>0,Bal_Comp[[#This Row],[Bal_1999]]<>0),1,0)","v":0}]
["Mayor",51020202,"SUELDOS Y SALARIOS",null,null,null,{"$f":"IF(OR(Bal_Comp[[#This Row],[Año Base]]<>0,Bal_Comp[[#This Row],[Bal_1999]]<>0),1,0)","v":0}]
["Mayor",51020203,"HORAS EXTRA, BONOS Y OTROS",null,null,null,{"$f":"IF(OR(Bal_Comp[[#This Row],[Año Base]]<>0,Bal_Comp[[#This Row],[Bal_1999]]<>0),1,0)","v":0}]
["Mayor",51020204,"CESTATICKET",null,null,null,{"$f":"IF(OR(Bal_Comp[[#This Row],[Año Base]]<>0,Bal_Comp[[#This Row],[Bal_1999]]<>0),1,0)","v":0}]
["Mayor",51020205,"OTRAS ASIGNACIONES",null,null,null,{"$f":"IF(OR(Bal_Comp[[#This Row],[Año Base]]<>0,Bal_Comp[[#This Row],[Bal_1999]]<>0),1,0)","v":0}]
["Mayor",51020206,"VACACIONES",null,null,null,{"$f":"IF(OR(Bal_Comp[[#This Row],[Año Base]]<>0,Bal_Comp[[#This Row],[Bal_1999]]<>0),1,0)","v":0}]
["Mayor",51020207,"BONO VACACIONAL",null,null,null,{"$f":"IF(OR(Bal_Comp[[#This Row],[Año Base]]<>0,Bal_Comp[[#This Row],[Bal_1999]]<>0),1,0)","v":0}]
["Mayor",51020208,"UTILIDADES",null,null,null,{"$f":"IF(OR(Bal_Comp[[#This Row],[Año Base]]<>0,Bal_Comp[[#This Row],[Bal_1999]]<>0),1,0)","v":0}]
["Mayor",51020209,"PRESTACIONES SOCIALES",null,null,null,{"$f":"IF(OR(Bal_Comp[[#This Row],[Año Base]]<>0,Bal_Comp[[#This Row],[Bal_1999]]<>0),1,0)","v":0}]
["Mayor",51020210,"INTERESES PRESTACIONES SOCIALES",null,null,null,{"$f":"IF(OR(Bal_Comp[[#This Row],[Año Base]]<>0,Bal_Comp[[#This Row],[Bal_1999]]<>0),1,0)","v":0}]
["Mayor",51020211,"APORTE PATRONAL FAOV",null,null,null,{"$f":"IF(OR(Bal_Comp[[#This Row],[Año Base]]<>0,Bal_Comp[[#This Row],[Bal_1999]]<>0),1,0)","v":0}]
["Mayor",51020212,"APORTE PATRONAL IVSS",null,null,null,{"$f":"IF(OR(Bal_Comp[[#This Row],[Año Base]]<>0,Bal_Comp[[#This Row],[Bal_1999]]<>0),1,0)","v":0}]
["Mayor",51020213,"APORTE PATRONAL REG PRESTAC DE EMPLEO",null,null,null,{"$f":"IF(OR(Bal_Comp[[#This Row],[Año Base]]<>0,Bal_Comp[[#This Row],[Bal_1999]]<>0),1,0)","v":0}]
["Mayor",51020214,"APORTE PATRONAL INCES",null,null,null,{"$f":"IF(OR(Bal_Comp[[#This Row],[Año Base]]<>0,Bal_Comp[[#This Row],[Bal_1999]]<>0),1,0)","v":0}]
["Mayor",51020215,"OTROS GASTOS DE PERSONAL",null,null,null,{"$f":"IF(OR(Bal_Comp[[#This Row],[Año Base]]<>0,Bal_Comp[[#This Row],[Bal_1999]]<>0),1,0)","v":0}]
["Mayor",51020301,"EDIFICACIONES",null,null,null,{"$f":"IF(OR(Bal_Comp[[#This Row],[Año Base]]<>0,Bal_Comp[[#This Row],[Bal_1999]]<>0),1,0)","v":0}]
["Mayor",51020302,"MAQUINARIAS Y EQUIPOS",null,null,null,{"$f":"IF(OR(Bal_Comp[[#This Row],[Año Base]]<>0,Bal_Comp[[#This Row],[Bal_1999]]<>0),1,0)","v":0}]
["Mayor",51020303,"INSTALACIONES",null,null,null,{"$f":"IF(OR(Bal_Comp[[#This Row],[Año Base]]<>0,Bal_Comp[[#This Row],[Bal_1999]]<>0),1,0)","v":0}]
["Mayor",51020304,"MOBILIARIO Y EQUIPOS DE OFICINA",null,null,null,{"$f":"IF(OR(Bal_Comp[[#This Row],[Año Base]]<>0,Bal_Comp[[#This Row],[Bal_1999]]<>0),1,0)","v":0}]
["Mayor",51020305,"EQUIPOS DE COMPUTACION",null,null,null,{"$f":"IF(OR(Bal_Comp[[#This Row],[Año Base]]<>0,Bal_Comp[[#This Row],[Bal_1999]]<>0),1,0)","v":0}]
["Mayor",51020306,"VEHICULOS",null,null,null,{"$f":"IF(OR(Bal_Comp[[#This Row],[Año Base]]<>0,Bal_Comp[[#This Row],[Bal_1999]]<>0),1,0)","v":0}]
["Mayor",51020307,"EQUIPOS Y HERRAMIENTAS",null,null,null,{"$f":"IF(OR(Bal_Comp[[#This Row],[Año Base]]<>0,Bal_Comp[[#This Row],[Bal_1999]]<>0),1,0)","v":0}]
["Mayor",51020308,"ACTIVO REVALUADO",null,null,null,{"$f":"IF(OR(Bal_Comp[[#This Row],[Año Base]]<>0,Bal_Comp[[#This Row],[Bal_1999]]<>0),1,0)","v":0}]
["Mayor",51020401,"GASTOS PREPAGADOS",null,null,null,{"$f":"IF(OR(Bal_Comp[[#This Row],[Año Base]]<>0,Bal_Comp[[#This Row],[Bal_1999]]<>0),1,0)","v":0}]
["Mayor",51020402,"INTANGIBLES",null,null,null,{"$f":"IF(OR(Bal_Comp[[#This Row],[Año Base]]<>0,Bal_Comp[[#This Row],[Bal_1999]]<>0),1,0)","v":0}]
["Mayor",51020403,"CARGOS DIFERIDOS",null,null,null,{"$f":"IF(OR(Bal_Comp[[#This Row],[Año Base]]<>0,Bal_Comp[[#This Row],[Bal_1999]]<>0),1,0)","v":0}]
["Mayor",51020501,"PATENTE MUNICIPAL",null,null,null,{"$f":"IF(OR(Bal_Comp[[#This Row],[Año Base]]<>0,Bal_Comp[[#This Row],[Bal_1999]]<>0),1,0)","v":0}]
["Mayor",51020502,"PUBLICIDAD Y POROPAGANDA",null,null,null,{"$f":"IF(OR(Bal_Comp[[#This Row],[Año Base]]<>0,Bal_Comp[[#This Row],[Bal_1999]]<>0),1,0)","v":0}]
["Mayor",51020503,"APORTE FONDO NACIONAL DEL DEPORTE",null,null,null,{"$f":"IF(OR(Bal_Comp[[#This Row],[Año Base]]<>0,Bal_Comp[[#This Row],[Bal_1999]]<>0),1,0)","v":0}]
["Mayor",51020504,"APORTE LOCTI",null,null,null,{"$f":"IF(OR(Bal_Comp[[#This Row],[Año Base]]<>0,Bal_Comp[[#This Row],[Bal_1999]]<>0),1,0)","v":0}]
["Mayor",51020505,"APORTE FONDO NACIONAL ANTIDROGA",null,null,null,{"$f":"IF(OR(Bal_Comp[[#This Row],[Año Base]]<>0,Bal_Comp[[#This Row],[Bal_1999]]<>0),1,0)","v":0}]
["Mayor",51020599,"OTROS IMPUESTOS Y APORTES",null,null,null,{"$f":"IF(OR(Bal_Comp[[#This Row],[Año Base]]<>0,Bal_Comp[[#This Row],[Bal_1999]]<>0),1,0)","v":0}]
["Mayor",51020601,"MAQUINARIA Y EQUIPOS",null,null,null,{"$f":"IF(OR(Bal_Comp[[#This Row],[Año Base]]<>0,Bal_Comp[[#This Row],[Bal_1999]]<>0),1,0)","v":0}]
["Mayor",51020602,"CONSTRUCCIÓN",null,null,null,{"$f":"IF(OR(Bal_Comp[[#This Row],[Año Base]]<>0,Bal_Comp[[#This Row],[Bal_1999]]<>0),1,0)","v":0}]
["Mayor",51020603,"FIEL CUMPLIMIENTO",null,null,null,{"$f":"IF(OR(Bal_Comp[[#This Row],[Año Base]]<>0,Bal_Comp[[#This Row],[Bal_1999]]<>0),1,0)","v":0}]
["Mayor",51020701,"ELECTRICIDAD Y ASEO",null,null,null,{"$f":"IF(OR(Bal_Comp[[#This Row],[Año Base]]<>0,Bal_Comp[[#This Row],[Bal_1999]]<>0),1,0)","v":0}]
["Mayor",51010702,"COMUNICACIONES",null,null,null,{"$f":"IF(OR(Bal_Comp[[#This Row],[Año Base]]<>0,Bal_Comp[[#This Row],[Bal_1999]]<>0),1,0)","v":0}]
["Mayor",51020801,"MAQUINARIAS Y EQUIPOS",null,null,null,{"$f":"IF(OR(Bal_Comp[[#This Row],[Año Base]]<>0,Bal_Comp[[#This Row],[Bal_1999]]<>0),1,0)","v":0}]
["Mayor",51020802,"INMUEBLES",null,null,null,{"$f":"IF(OR(Bal_Comp[[#This Row],[Año Base]]<>0,Bal_Comp[[#This Row],[Bal_1999]]<>0),1,0)","v":0}]
["Mayor",51020901,"CONSULTORES ESTERNOS",null,null,null,{"$f":"IF(OR(Bal_Comp[[#This Row],[Año Base]]<>0,Bal_Comp[[#This Row],[Bal_1999]]<>0),1,0)","v":0}]
["Mayor",51029901,"MATERIAL DE OFICINA",null,null,null,{"$f":"IF(OR(Bal_Comp[[#This Row],[Año Base]]<>0,Bal_Comp[[#This Row],[Bal_1999]]<>0),1,0)","v":0}]
["Mayor",51029902,"GASTOS DE VIAJE",null,null,null,{"$f":"IF(OR(Bal_Comp[[#This Row],[Año Base]]<>0,Bal_Comp[[#This Row],[Bal_1999]]<>0),1,0)","v":0}]
["Mayor",51029999,"OTROS GASTOS",null,null,null,{"$f":"IF(OR(Bal_Comp[[#This Row],[Año Base]]<>0,Bal_Comp[[#This Row],[Bal_1999]]<>0),1,0)","v":0}]
["Mayor",51090101,"MATERIALES Y SUMINSTROS UTILIZADOS",null,null,null,{"$f":"IF(OR(Bal_Comp[[#This Row],[Año Base]]<>0,Bal_Comp[[#This Row],[Bal_1999]]<>0),1,0)","v":0}]
["Mayor",51090201,"SUELDOS DIRECTORES",null,null,null,{"$f":"IF(OR(Bal_Comp[[#This Row],[Año Base]]<>0,Bal_Comp[[#This Row],[Bal_1999]]<>0),1,0)","v":0}]
["Mayor",51090202,"SUELDOS Y SALARIOS",null,null,null,{"$f":"IF(OR(Bal_Comp[[#This Row],[Año Base]]<>0,Bal_Comp[[#This Row],[Bal_1999]]<>0),1,0)","v":0}]
["Mayor",51090203,"HORAS EXTRA, BONOS Y OTROS",null,null,null,{"$f":"IF(OR(Bal_Comp[[#This Row],[Año Base]]<>0,Bal_Comp[[#This Row],[Bal_1999]]<>0),1,0)","v":0}]
["Mayor",51090204,"CESTATICKET",null,null,null,{"$f":"IF(OR(Bal_Comp[[#This Row],[Año Base]]<>0,Bal_Comp[[#This Row],[Bal_1999]]<>0),1,0)","v":0}]
["Mayor",51090205,"OTRAS ASIGNACIONES",null,null,null,{"$f":"IF(OR(Bal_Comp[[#This Row],[Año Base]]<>0,Bal_Comp[[#This Row],[Bal_1999]]<>0),1,0)","v":0}]
["Mayor",51090206,"VACACIONES",null,null,null,{"$f":"IF(OR(Bal_Comp[[#This Row],[Año Base]]<>0,Bal_Comp[[#This Row],[Bal_1999]]<>0),1,0)","v":0}]
["Mayor",51090207,"BONO VACACIONAL",null,null,null,{"$f":"IF(OR(Bal_Comp[[#This Row],[Año Base]]<>0,Bal_Comp[[#This Row],[Bal_1999]]<>0),1,0)","v":0}]
["Mayor",51090208,"UTILIDADES",null,null,null,{"$f":"IF(OR(Bal_Comp[[#This Row],[Año Base]]<>0,Bal_Comp[[#This Row],[Bal_1999]]<>0),1,0)","v":0}]
["Mayor",51090209,"PRESTACIONES SOCIALES",null,null,null,{"$f":"IF(OR(Bal_Comp[[#This Row],[Año Base]]<>0,Bal_Comp[[#This Row],[Bal_1999]]<>0),1,0)","v":0}]
["Mayor",51090210,"INTERESES PRESTACIONES SOCIALES",null,null,null,{"$f":"IF(OR(Bal_Comp[[#This Row],[Año Base]]<>0,Bal_Comp[[#This Row],[Bal_1999]]<>0),1,0)","v":0}]
["Mayor",51090211,"APORTE PATRONAL FAOV",null,null,null,{"$f":"IF(OR(Bal_Comp[[#This Row],[Año Base]]<>0,Bal_Comp[[#This Row],[Bal_1999]]<>0),1,0)","v":0}]
["Mayor",51090212,"APORTE PATRONAL IVSS",null,null,null,{"$f":"IF(OR(Bal_Comp[[#This Row],[Año Base]]<>0,Bal_Comp[[#This Row],[Bal_1999]]<>0),1,0)","v":0}]
["Mayor",51090213,"APORTE PATRONAL REG PRESTAC DE EMPLEO",null,null,null,{"$f":"IF(OR(Bal_Comp[[#This Row],[Año Base]]<>0,Bal_Comp[[#This Row],[Bal_1999]]<>0),1,0)","v":0}]
["Mayor",51090214,"APORTE PATRONAL INCES",null,null,null,{"$f":"IF(OR(Bal_Comp[[#This Row],[Año Base]]<>0,Bal_Comp[[#This Row],[Bal_1999]]<>0),1,0)","v":0}]
["Mayor",51090215,"DOTACIÓN UNIFORMES Y BOTAS",null,null,null,{"$f":"IF(OR(Bal_Comp[[#This Row],[Año Base]]<>0,Bal_Comp[[#This Row],[Bal_1999]]<>0),1,0)","v":0}]
["Mayor",51090216,"TRANSPORTE COLECTIVO",null,null,null,{"$f":"IF(OR(Bal_Comp[[#This Row],[Año Base]]<>0,Bal_Comp[[#This Row],[Bal_1999]]<>0),1,0)","v":0}]
["Mayor",51090217,"OTROS GASTOS DE PERSONAL",null,null,null,{"$f":"IF(OR(Bal_Comp[[#This Row],[Año Base]]<>0,Bal_Comp[[#This Row],[Bal_1999]]<>0),1,0)","v":0}]
["Mayor",51090301,"SUELDOS DIRECTORES",null,null,null,{"$f":"IF(OR(Bal_Comp[[#This Row],[Año Base]]<>0,Bal_Comp[[#This Row],[Bal_1999]]<>0),1,0)","v":0}]
["Mayor",51090302,"SUELDOS Y SALARIOS",null,null,null,{"$f":"IF(OR(Bal_Comp[[#This Row],[Año Base]]<>0,Bal_Comp[[#This Row],[Bal_1999]]<>0),1,0)","v":0}]
["Mayor",51090303,"HORAS EXTRA, BONOS Y OTROS",null,null,null,{"$f":"IF(OR(Bal_Comp[[#This Row],[Año Base]]<>0,Bal_Comp[[#This Row],[Bal_1999]]<>0),1,0)","v":0}]
["Mayor",51090304,"CESTATICKET",null,null,null,{"$f":"IF(OR(Bal_Comp[[#This Row],[Año Base]]<>0,Bal_Comp[[#This Row],[Bal_1999]]<>0),1,0)","v":0}]
["Mayor",51090305,"OTRAS ASIGNACIONES",null,null,null,{"$f":"IF(OR(Bal_Comp[[#This Row],[Año Base]]<>0,Bal_Comp[[#This Row],[Bal_1999]]<>0),1,0)","v":0}]
["Mayor",51090306,"VACACIONES",null,null,null,{"$f":"IF(OR(Bal_Comp[[#This Row],[Año Base]]<>0,Bal_Comp[[#This Row],[Bal_1999]]<>0),1,0)","v":0}]
["Mayor",51090307,"BONO VACACIONAL",null,null,null,{"$f":"IF(OR(Bal_Comp[[#This Row],[Año Base]]<>0,Bal_Comp[[#This Row],[Bal_1999]]<>0),1,0)","v":0}]
["Mayor",51090308,"UTILIDADES",null,null,null,{"$f":"IF(OR(Bal_Comp[[#This Row],[Año Base]]<>0,Bal_Comp[[#This Row],[Bal_1999]]<>0),1,0)","v":0}]
["Mayor",51090309,"PRESTACIONES SOCIALES",null,null,null,{"$f":"IF(OR(Bal_Comp[[#This Row],[Año Base]]<>0,Bal_Comp[[#This Row],[Bal_1999]]<>0),1,0)","v":0}]
["Mayor",51090310,"INTERESES PRESTACIONES SOCIALES",null,null,null,{"$f":"IF(OR(Bal_Comp[[#This Row],[Año Base]]<>0,Bal_Comp[[#This Row],[Bal_1999]]<>0),1,0)","v":0}]
["Mayor",51090311,"APORTE PATRONAL FAOV",null,null,null,{"$f":"IF(OR(Bal_Comp[[#This Row],[Año Base]]<>0,Bal_Comp[[#This Row],[Bal_1999]]<>0),1,0)","v":0}]
["Mayor",51090312,"APORTE PATRONAL IVSS",null,null,null,{"$f":"IF(OR(Bal_Comp[[#This Row],[Año Base]]<>0,Bal_Comp[[#This Row],[Bal_1999]]<>0),1,0)","v":0}]
["Mayor",51090313,"APORTE PATRONAL REG PRESTAC DE EMPLEO",null,null,null,{"$f":"IF(OR(Bal_Comp[[#This Row],[Año Base]]<>0,Bal_Comp[[#This Row],[Bal_1999]]<>0),1,0)","v":0}]
["Mayor",51090314,"APORTE PATRONAL INCES",null,null,null,{"$f":"IF(OR(Bal_Comp[[#This Row],[Año Base]]<>0,Bal_Comp[[#This Row],[Bal_1999]]<>0),1,0)","v":0}]
["Mayor",51090315,"DOTACIÓN UNIFORMES Y BOTAS",null,null,null,{"$f":"IF(OR(Bal_Comp[[#This Row],[Año Base]]<>0,Bal_Comp[[#This Row],[Bal_1999]]<>0),1,0)","v":0}]
["Mayor",51090316,"TRANSPORTE COLECTIVO",null,null,null,{"$f":"IF(OR(Bal_Comp[[#This Row],[Año Base]]<>0,Bal_Comp[[#This Row],[Bal_1999]]<>0),1,0)","v":0}]
["Mayor",51090317,"OTROS GASTOS DE PERSONAL",null,null,null,{"$f":"IF(OR(Bal_Comp[[#This Row],[Año Base]]<>0,Bal_Comp[[#This Row],[Bal_1999]]<>0),1,0)","v":0}]
["Mayor",51090401,"EDIFICACIONES",null,null,null,{"$f":"IF(OR(Bal_Comp[[#This Row],[Año Base]]<>0,Bal_Comp[[#This Row],[Bal_1999]]<>0),1,0)","v":0}]
["Mayor",51090402,"MAQUINARIAS Y EQUIPOS",null,null,null,{"$f":"IF(OR(Bal_Comp[[#This Row],[Año Base]]<>0,Bal_Comp[[#This Row],[Bal_1999]]<>0),1,0)","v":0}]
["Mayor",51090403,"INSTALACIONES",null,null,null,{"$f":"IF(OR(Bal_Comp[[#This Row],[Año Base]]<>0,Bal_Comp[[#This Row],[Bal_1999]]<>0),1,0)","v":0}]
["Mayor",51090404,"MOBILIARIO Y EQUIPOS DE OFICINA",null,null,null,{"$f":"IF(OR(Bal_Comp[[#This Row],[Año Base]]<>0,Bal_Comp[[#This Row],[Bal_1999]]<>0),1,0)","v":0}]
["Mayor",51090405,"EQUIPOS DE COMPUTACION",null,null,null,{"$f":"IF(OR(Bal_Comp[[#This Row],[Año Base]]<>0,Bal_Comp[[#This Row],[Bal_1999]]<>0),1,0)","v":0}]
["Mayor",51090406,"VEHICULOS",null,null,null,{"$f":"IF(OR(Bal_Comp[[#This Row],[Año Base]]<>0,Bal_Comp[[#This Row],[Bal_1999]]<>0),1,0)","v":0}]
["Mayor",51090407,"EQUIPOS Y HERRAMIENTAS",null,null,null,{"$f":"IF(OR(Bal_Comp[[#This Row],[Año Base]]<>0,Bal_Comp[[#This Row],[Bal_1999]]<>0),1,0)","v":0}]
["Mayor",51090408,"ACTIVO REVALUADO",null,null,null,{"$f":"IF(OR(Bal_Comp[[#This Row],[Año Base]]<>0,Bal_Comp[[#This Row],[Bal_1999]]<>0),1,0)","v":0}]
["Mayor",51090501,"GASTOS PREPAGADOS",null,null,null,{"$f":"IF(OR(Bal_Comp[[#This Row],[Año Base]]<>0,Bal_Comp[[#This Row],[Bal_1999]]<>0),1,0)","v":0}]
["Mayor",51090502,"INTANGIBLES",null,null,null,{"$f":"IF(OR(Bal_Comp[[#This Row],[Año Base]]<>0,Bal_Comp[[#This Row],[Bal_1999]]<>0),1,0)","v":0}]
["Mayor",51090503,"CARGOS DIFERIDOS",null,null,null,{"$f":"IF(OR(Bal_Comp[[#This Row],[Año Base]]<>0,Bal_Comp[[#This Row],[Bal_1999]]<>0),1,0)","v":0}]
["Mayor",51090601,"PATENTE MUNICIPAL",null,null,null,{"$f":"IF(OR(Bal_Comp[[#This Row],[Año Base]]<>0,Bal_Comp[[#This Row],[Bal_1999]]<>0),1,0)","v":0}]
["Mayor",51090602,"PUBLICIDAD Y POROPAGANDA",null,null,null,{"$f":"IF(OR(Bal_Comp[[#This Row],[Año Base]]<>0,Bal_Comp[[#This Row],[Bal_1999]]<>0),1,0)","v":0}]
["Mayor",51090603,"APORTE FONDO NACIONAL DEL DEPORTE",null,null,null,{"$f":"IF(OR(Bal_Comp[[#This Row],[Año Base]]<>0,Bal_Comp[[#This Row],[Bal_1999]]<>0),1,0)","v":0}]
["Mayor",51090604,"APORTE LOCTI",null,null,null,{"$f":"IF(OR(Bal_Comp[[#This Row],[Año Base]]<>0,Bal_Comp[[#This Row],[Bal_1999]]<>0),1,0)","v":0}]
["Mayor",51090605,"APORTE FONDO NACIONAL ANTIDROGA",null,null,null,{"$f":"IF(OR(Bal_Comp[[#This Row],[Año Base]]<>0,Bal_Comp[[#This Row],[Bal_1999]]<>0),1,0)","v":0}]
["Mayor",51090606,"OTROS IMPUESTOS Y APORTES",null,null,null,{"$f":"IF(OR(Bal_Comp[[#This Row],[Año Base]]<>0,Bal_Comp[[#This Row],[Bal_1999]]<>0),1,0)","v":0}]
["Mayor",51090701,"MAQUINARIA Y EQUIPOS",null,null,null,{"$f":"IF(OR(Bal_Comp[[#This Row],[Año Base]]<>0,Bal_Comp[[#This Row],[Bal_1999]]<>0),1,0)","v":0}]
["Mayor",51090702,"CONSTRUCCIÓN",null,null,null,{"$f":"IF(OR(Bal_Comp[[#This Row],[Año Base]]<>0,Bal_Comp[[#This Row],[Bal_1999]]<>0),1,0)","v":0}]
["Mayor",51090703,"FIEL CUMPLIMIENTO",null,null,null,{"$f":"IF(OR(Bal_Comp[[#This Row],[Año Base]]<>0,Bal_Comp[[#This Row],[Bal_1999]]<>0),1,0)","v":0}]
["Mayor",51090801,"ELECTRICIDAD Y ASEO",null,null,null,{"$f":"IF(OR(Bal_Comp[[#This Row],[Año Base]]<>0,Bal_Comp[[#This Row],[Bal_1999]]<>0),1,0)","v":0}]
["Mayor",51090702,"COMUNICACIONES",null,null,null,{"$f":"IF(OR(Bal_Comp[[#This Row],[Año Base]]<>0,Bal_Comp[[#This Row],[Bal_1999]]<>0),1,0)","v":0}]
["Mayor",51090901,"MAQUINARIAS Y EQUIPOS",null,null,null,{"$f":"IF(OR(Bal_Comp[[#This Row],[Año Base]]<>0,Bal_Comp[[#This Row],[Bal_1999]]<>0),1,0)","v":0}]
["Mayor",51090902,"INMUEBLES",null,null,null,{"$f":"IF(OR(Bal_Comp[[#This Row],[Año Base]]<>0,Bal_Comp[[#This Row],[Bal_1999]]<>0),1,0)","v":0}]
["Mayor",51091001,"CONSULTORES ESTERNOS",null,null,null,{"$f":"IF(OR(Bal_Comp[[#This Row],[Año Base]]<>0,Bal_Comp[[#This Row],[Bal_1999]]<>0),1,0)","v":0}]
["Mayor",51091002,"ASISTENCIA TECNOLOGICA",null,null,null,{"$f":"IF(OR(Bal_Comp[[#This Row],[Año Base]]<>0,Bal_Comp[[#This Row],[Bal_1999]]<>0),1,0)","v":0}]
["Mayor",51091099,"OTROS CONSULTORES",null,null,null,{"$f":"IF(OR(Bal_Comp[[#This Row],[Año Base]]<>0,Bal_Comp[[#This Row],[Bal_1999]]<>0),1,0)","v":0}]
["Mayor",51091101,"MATERIAL DE OFICINA",null,null,null,{"$f":"IF(OR(Bal_Comp[[#This Row],[Año Base]]<>0,Bal_Comp[[#This Row],[Bal_1999]]<>0),1,0)","v":0}]
["Mayor",51091102,"GASTOS DE VIAJE",null,null,null,{"$f":"IF(OR(Bal_Comp[[#This Row],[Año Base]]<>0,Bal_Comp[[#This Row],[Bal_1999]]<>0),1,0)","v":0}]
["Mayor",51091103,"LIBERALIDADES Y DONACIONES",null,null,null,{"$f":"IF(OR(Bal_Comp[[#This Row],[Año Base]]<>0,Bal_Comp[[#This Row],[Bal_1999]]<>0),1,0)","v":0}]
["Mayor",51091199,"OTROS GASTOS",null,null,null,{"$f":"IF(OR(Bal_Comp[[#This Row],[Año Base]]<>0,Bal_Comp[[#This Row],[Bal_1999]]<>0),1,0)","v":0}]
["Mayor",51099901,"TRANSF A PRODUCT EN PROCESO",null,null,null,{"$f":"IF(OR(Bal_Comp[[#This Row],[Año Base]]<>0,Bal_Comp[[#This Row],[Bal_1999]]<>0),1,0)","v":0}]
["Mayor",61010101,"SUELDO DE DIRECTORES",null,null,null,{"$f":"IF(OR(Bal_Comp[[#This Row],[Año Base]]<>0,Bal_Comp[[#This Row],[Bal_1999]]<>0),1,0)","v":0}]
["Mayor",61010102,"SUELDOS Y SALARIOS",null,null,null,{"$f":"IF(OR(Bal_Comp[[#This Row],[Año Base]]<>0,Bal_Comp[[#This Row],[Bal_1999]]<>0),1,0)","v":0}]
["Mayor",61010103,"HORAS EXTRA, BONOS Y OTROS",null,null,null,{"$f":"IF(OR(Bal_Comp[[#This Row],[Año Base]]<>0,Bal_Comp[[#This Row],[Bal_1999]]<>0),1,0)","v":0}]
["Mayor",61010104,"CESTATICKET",null,null,null,{"$f":"IF(OR(Bal_Comp[[#This Row],[Año Base]]<>0,Bal_Comp[[#This Row],[Bal_1999]]<>0),1,0)","v":0}]
["Mayor",61010105,"OTRAS ASIGNACIONES AL PERSONAL",null,null,null,{"$f":"IF(OR(Bal_Comp[[#This Row],[Año Base]]<>0,Bal_Comp[[#This Row],[Bal_1999]]<>0),1,0)","v":0}]
["Mayor",61010106,"VACACIONES",null,null,null,{"$f":"IF(OR(Bal_Comp[[#This Row],[Año Base]]<>0,Bal_Comp[[#This Row],[Bal_1999]]<>0),1,0)","v":0}]
["Mayor",61010107,"BONO VACACIONAL",null,null,null,{"$f":"IF(OR(Bal_Comp[[#This Row],[Año Base]]<>0,Bal_Comp[[#This Row],[Bal_1999]]<>0),1,0)","v":0}]
["Mayor",61010108,"UTILIDADES",null,null,null,{"$f":"IF(OR(Bal_Comp[[#This Row],[Año Base]]<>0,Bal_Comp[[#This Row],[Bal_1999]]<>0),1,0)","v":0}]
["Mayor",61010109,"PRESTACIONES SOCIALES",null,null,null,{"$f":"IF(OR(Bal_Comp[[#This Row],[Año Base]]<>0,Bal_Comp[[#This Row],[Bal_1999]]<>0),1,0)","v":0}]
["Mayor",61010110,"INTERESES PRESTACIONES SOCIALES",null,null,null,{"$f":"IF(OR(Bal_Comp[[#This Row],[Año Base]]<>0,Bal_Comp[[#This Row],[Bal_1999]]<>0),1,0)","v":0}]
["Mayor",61010111,"APORTE PATRONAL FAOV",null,null,null,{"$f":"IF(OR(Bal_Comp[[#This Row],[Año Base]]<>0,Bal_Comp[[#This Row],[Bal_1999]]<>0),1,0)","v":0}]
["Mayor",61010112,"APORTE PATRONAL IVSS",null,null,null,{"$f":"IF(OR(Bal_Comp[[#This Row],[Año Base]]<>0,Bal_Comp[[#This Row],[Bal_1999]]<>0),1,0)","v":0}]
["Mayor",61010113,"APORTE PATRONAL REG PRESTAC DE EMPLEO",null,null,null,{"$f":"IF(OR(Bal_Comp[[#This Row],[Año Base]]<>0,Bal_Comp[[#This Row],[Bal_1999]]<>0),1,0)","v":0}]
["Mayor",61010114,"APORTE PATRONAL INCES",null,null,null,{"$f":"IF(OR(Bal_Comp[[#This Row],[Año Base]]<>0,Bal_Comp[[#This Row],[Bal_1999]]<>0),1,0)","v":0}]
["Mayor",61010115,"DOTACIÓN UNIFORMES Y BOTAS",null,null,null,{"$f":"IF(OR(Bal_Comp[[#This Row],[Año Base]]<>0,Bal_Comp[[#This Row],[Bal_1999]]<>0),1,0)","v":0}]
["Mayor",61010116,"TRANSPORTE DEL PERSONAL",null,null,null,{"$f":"IF(OR(Bal_Comp[[#This Row],[Año Base]]<>0,Bal_Comp[[#This Row],[Bal_1999]]<>0),1,0)","v":0}]
["Mayor",61010199,"OTROS COSTOS DE PERSONAL",null,null,null,{"$f":"IF(OR(Bal_Comp[[#This Row],[Año Base]]<>0,Bal_Comp[[#This Row],[Bal_1999]]<>0),1,0)","v":0}]
["Mayor",61010201,"EDIFICACIONES",null,null,null,{"$f":"IF(OR(Bal_Comp[[#This Row],[Año Base]]<>0,Bal_Comp[[#This Row],[Bal_1999]]<>0),1,0)","v":0}]
["Mayor",61010202,"MAQUINARIAS Y EQUIPOS",null,null,null,{"$f":"IF(OR(Bal_Comp[[#This Row],[Año Base]]<>0,Bal_Comp[[#This Row],[Bal_1999]]<>0),1,0)","v":0}]
["Mayor",61010203,"INSTALACIONES",null,null,null,{"$f":"IF(OR(Bal_Comp[[#This Row],[Año Base]]<>0,Bal_Comp[[#This Row],[Bal_1999]]<>0),1,0)","v":0}]
["Mayor",61010204,"MOBILIARIO Y EQUIPOS DE OFICINA",null,null,null,{"$f":"IF(OR(Bal_Comp[[#This Row],[Año Base]]<>0,Bal_Comp[[#This Row],[Bal_1999]]<>0),1,0)","v":0}]
["Mayor",61010205,"EQUIPOS DE COMPUTACION",null,null,null,{"$f":"IF(OR(Bal_Comp[[#This Row],[Año Base]]<>0,Bal_Comp[[#This Row],[Bal_1999]]<>0),1,0)","v":0}]
["Mayor",61010206,"VEHICULOS",null,null,null,{"$f":"IF(OR(Bal_Comp[[#This Row],[Año Base]]<>0,Bal_Comp[[#This Row],[Bal_1999]]<>0),1,0)","v":0}]
["Mayor",61010207,"EQUIPOS Y HERRAMIENTAS",null,null,null,{"$f":"IF(OR(Bal_Comp[[#This Row],[Año Base]]<>0,Bal_Comp[[#This Row],[Bal_1999]]<>0),1,0)","v":0}]
["Mayor",61010208,"ACTIVOS REVALUADO",null,null,null,{"$f":"IF(OR(Bal_Comp[[#This Row],[Año Base]]<>0,Bal_Comp[[#This Row],[Bal_1999]]<>0),1,0)","v":0}]
["Mayor",61010301,"GASTOS PREPAGADOS",null,null,null,{"$f":"IF(OR(Bal_Comp[[#This Row],[Año Base]]<>0,Bal_Comp[[#This Row],[Bal_1999]]<>0),1,0)","v":0}]
["Mayor",61010302,"INTANGIBLES",null,null,null,{"$f":"IF(OR(Bal_Comp[[#This Row],[Año Base]]<>0,Bal_Comp[[#This Row],[Bal_1999]]<>0),1,0)","v":0}]
["Mayor",61010303,"CARGOS DIFERIDOS",null,null,null,{"$f":"IF(OR(Bal_Comp[[#This Row],[Año Base]]<>0,Bal_Comp[[#This Row],[Bal_1999]]<>0),1,0)","v":0}]
["Mayor",61010401,"PATENTE MUNICIPAL",null,null,null,{"$f":"IF(OR(Bal_Comp[[#This Row],[Año Base]]<>0,Bal_Comp[[#This Row],[Bal_1999]]<>0),1,0)","v":0}]
["Mayor",61010402,"PUBLICIDAD Y PROPAGANDA",null,null,null,{"$f":"IF(OR(Bal_Comp[[#This Row],[Año Base]]<>0,Bal_Comp[[#This Row],[Bal_1999]]<>0),1,0)","v":0}]
["Mayor",61010403,"DERECHOS DE FRENTE",null,null,null,{"$f":"IF(OR(Bal_Comp[[#This Row],[Año Base]]<>0,Bal_Comp[[#This Row],[Bal_1999]]<>0),1,0)","v":0}]
["Mayor",61010404,"VEHICULOS",null,null,null,{"$f":"IF(OR(Bal_Comp[[#This Row],[Año Base]]<>0,Bal_Comp[[#This Row],[Bal_1999]]<>0),1,0)","v":0}]
["Mayor",61010405,"APORTE FONDO NACIONAL DEL DEPORTE",null,null,null,{"$f":"IF(OR(Bal_Comp[[#This Row],[Año Base]]<>0,Bal_Comp[[#This Row],[Bal_1999]]<>0),1,0)","v":0}]
["Mayor",61010406,"APORTE LOCTI",null,null,null,{"$f":"IF(OR(Bal_Comp[[#This Row],[Año Base]]<>0,Bal_Comp[[#This Row],[Bal_1999]]<>0),1,0)","v":0}]
["Mayor",61010407,"APORTE FONDO NACIONAL ANTIDROGA",null,null,null,{"$f":"IF(OR(Bal_Comp[[#This Row],[Año Base]]<>0,Bal_Comp[[#This Row],[Bal_1999]]<>0),1,0)","v":0}]
["Mayor",61010501,"RESPONSABILIDAD CIVIL",null,null,null,{"$f":"IF(OR(Bal_Comp[[#This Row],[Año Base]]<>0,Bal_Comp[[#This Row],[Bal_1999]]<>0),1,0)","v":0}]
["Mayor",61010502,"VEHICULOS",null,null,null,{"$f":"IF(OR(Bal_Comp[[#This Row],[Año Base]]<>0,Bal_Comp[[#This Row],[Bal_1999]]<>0),1,0)","v":0}]
["Mayor",61010503,"MOBILIARIOS Y EQUIPOS",null,null,null,{"$f":"IF(OR(Bal_Comp[[#This Row],[Año Base]]<>0,Bal_Comp[[#This Row],[Bal_1999]]<>0),1,0)","v":0}]
["Mayor",61010503,"HOSPITALIZACIÓN, CIRUGÍA Y MATERNIDAD",null,null,null,{"$f":"IF(OR(Bal_Comp[[#This Row],[Año Base]]<>0,Bal_Comp[[#This Row],[Bal_1999]]<>0),1,0)","v":0}]
["Mayor",61010503,"SEGURO DE ACCIDENTES PERSONALES",null,null,null,{"$f":"IF(OR(Bal_Comp[[#This Row],[Año Base]]<>0,Bal_Comp[[#This Row],[Bal_1999]]<>0),1,0)","v":0}]
["Mayor",61010601,"ELECTRICIDAD Y ASEO",null,null,null,{"$f":"IF(OR(Bal_Comp[[#This Row],[Año Base]]<>0,Bal_Comp[[#This Row],[Bal_1999]]<>0),1,0)","v":0}]
["Mayor",61010602,"TELEFONIA FIJA, MOVIL E INTERNET",null,null,null,{"$f":"IF(OR(Bal_Comp[[#This Row],[Año Base]]<>0,Bal_Comp[[#This Row],[Bal_1999]]<>0),1,0)","v":0}]
["Mayor",61010603,"TAXI Y MENSAJERIA",null,null,null,{"$f":"IF(OR(Bal_Comp[[#This Row],[Año Base]]<>0,Bal_Comp[[#This Row],[Bal_1999]]<>0),1,0)","v":0}]
["Mayor",61010604,"SEGURIDAD Y VIGILANCIA",null,null,null,{"$f":"IF(OR(Bal_Comp[[#This Row],[Año Base]]<>0,Bal_Comp[[#This Row],[Bal_1999]]<>0),1,0)","v":0}]
["Mayor",61010605,"CONSERVACIÓN Y MANTTO INMUEBLES ARRENDADOS",null,null,null,{"$f":"IF(OR(Bal_Comp[[#This Row],[Año Base]]<>0,Bal_Comp[[#This Row],[Bal_1999]]<>0),1,0)","v":0}]
["Mayor",61010606,"REPARACIONES Y MANTENIMIENTO GENERAL",null,null,null,{"$f":"IF(OR(Bal_Comp[[#This Row],[Año Base]]<>0,Bal_Comp[[#This Row],[Bal_1999]]<>0),1,0)","v":0}]
["Mayor",61010607,"REPARACIONES Y MANTENIMIENTO VEHICULO",null,null,null,{"$f":"IF(OR(Bal_Comp[[#This Row],[Año Base]]<>0,Bal_Comp[[#This Row],[Bal_1999]]<>0),1,0)","v":0}]
["Mayor",61010701,"ARRENDAMIENTOS DE BIENES INMUEBLES",null,null,null,{"$f":"IF(OR(Bal_Comp[[#This Row],[Año Base]]<>0,Bal_Comp[[#This Row],[Bal_1999]]<>0),1,0)","v":0}]
["Mayor",61010702,"ARRENDAMIENTOS DE BIENES MUEBLES",null,null,null,{"$f":"IF(OR(Bal_Comp[[#This Row],[Año Base]]<>0,Bal_Comp[[#This Row],[Bal_1999]]<>0),1,0)","v":0}]
["Mayor",61010801,"ABOGADOS",null,null,null,{"$f":"IF(OR(Bal_Comp[[#This Row],[Año Base]]<>0,Bal_Comp[[#This Row],[Bal_1999]]<>0),1,0)","v":0}]
["Mayor",61010802,"AUDITORES Y CONTADORES",null,null,null,{"$f":"IF(OR(Bal_Comp[[#This Row],[Año Base]]<>0,Bal_Comp[[#This Row],[Bal_1999]]<>0),1,0)","v":0}]
["Mayor",61010803,"ASISTENCIA TECNOLOGICA",null,null,null,{"$f":"IF(OR(Bal_Comp[[#This Row],[Año Base]]<>0,Bal_Comp[[#This Row],[Bal_1999]]<>0),1,0)","v":0}]
["Mayor",61010899,"OTROS CONSULTORES",null,null,null,{"$f":"IF(OR(Bal_Comp[[#This Row],[Año Base]]<>0,Bal_Comp[[#This Row],[Bal_1999]]<>0),1,0)","v":0}]
["Mayor",61019901,"MATERIAL DE OFICINA",null,null,null,{"$f":"IF(OR(Bal_Comp[[#This Row],[Año Base]]<>0,Bal_Comp[[#This Row],[Bal_1999]]<>0),1,0)","v":0}]
["Mayor",61019902,"GASTOS DE VIAJE",null,null,null,{"$f":"IF(OR(Bal_Comp[[#This Row],[Año Base]]<>0,Bal_Comp[[#This Row],[Bal_1999]]<>0),1,0)","v":0}]
["Mayor",61019903,"MENSAJERIA Y ENCOMIENDAS",null,null,null,{"$f":"IF(OR(Bal_Comp[[#This Row],[Año Base]]<>0,Bal_Comp[[#This Row],[Bal_1999]]<>0),1,0)","v":0}]
["Mayor",61019904,"REPARACIONES Y MANTENIMIENTO",null,null,null,{"$f":"IF(OR(Bal_Comp[[#This Row],[Año Base]]<>0,Bal_Comp[[#This Row],[Bal_1999]]<>0),1,0)","v":0}]
["Mayor",61019905,"MANTENIMIENTO INMUEBLES ARRENDADOS",null,null,null,{"$f":"IF(OR(Bal_Comp[[#This Row],[Año Base]]<>0,Bal_Comp[[#This Row],[Bal_1999]]<>0),1,0)","v":0}]
["Mayor",61019906,"GASTOS DE REPRESENTACION",null,null,null,{"$f":"IF(OR(Bal_Comp[[#This Row],[Año Base]]<>0,Bal_Comp[[#This Row],[Bal_1999]]<>0),1,0)","v":0}]
["Mayor",61019907,"REGISTROS Y NOTARIA",null,null,null,{"$f":"IF(OR(Bal_Comp[[#This Row],[Año Base]]<>0,Bal_Comp[[#This Row],[Bal_1999]]<>0),1,0)","v":0}]
["Mayor",61019908,"CONDOMINIO Y ESTACIONAMIENTO",null,null,null,{"$f":"IF(OR(Bal_Comp[[#This Row],[Año Base]]<>0,Bal_Comp[[#This Row],[Bal_1999]]<>0),1,0)","v":0}]
["Mayor",61019909,"LIBERALIDADES Y DONACIONES",null,null,null,{"$f":"IF(OR(Bal_Comp[[#This Row],[Año Base]]<>0,Bal_Comp[[#This Row],[Bal_1999]]<>0),1,0)","v":0}]
["Mayor",61019999,"OTROS GASTOS",null,null,null,{"$f":"IF(OR(Bal_Comp[[#This Row],[Año Base]]<>0,Bal_Comp[[#This Row],[Bal_1999]]<>0),1,0)","v":0}]
["Mayor",62010101,"SUELDO DE DIRECTORES",null,null,null,{"$f":"IF(OR(Bal_Comp[[#This Row],[Año Base]]<>0,Bal_Comp[[#This Row],[Bal_1999]]<>0),1,0)","v":0}]
["Mayor",62010102,"SUELDOS Y SALARIOS",null,null,null,{"$f":"IF(OR(Bal_Comp[[#This Row],[Año Base]]<>0,Bal_Comp[[#This Row],[Bal_1999]]<>0),1,0)","v":0}]
["Mayor",62010103,"HORAS EXTRA, BONOS Y OTROS",null,null,null,{"$f":"IF(OR(Bal_Comp[[#This Row],[Año Base]]<>0,Bal_Comp[[#This Row],[Bal_1999]]<>0),1,0)","v":0}]
["Mayor",62010104,"CESTATICKET",null,null,null,{"$f":"IF(OR(Bal_Comp[[#This Row],[Año Base]]<>0,Bal_Comp[[#This Row],[Bal_1999]]<>0),1,0)","v":0}]
["Mayor",62010105,"OTRAS ASIGNACIONES AL PERSONAL",null,null,null,{"$f":"IF(OR(Bal_Comp[[#This Row],[Año Base]]<>0,Bal_Comp[[#This Row],[Bal_1999]]<>0),1,0)","v":0}]
["Mayor",62010106,"VACACIONES",null,null,null,{"$f":"IF(OR(Bal_Comp[[#This Row],[Año Base]]<>0,Bal_Comp[[#This Row],[Bal_1999]]<>0),1,0)","v":0}]
["Mayor",62010107,"BONO VACACIONAL",null,null,null,{"$f":"IF(OR(Bal_Comp[[#This Row],[Año Base]]<>0,Bal_Comp[[#This Row],[Bal_1999]]<>0),1,0)","v":0}]
["Mayor",62010108,"UTILIDADES",null,null,null,{"$f":"IF(OR(Bal_Comp[[#This Row],[Año Base]]<>0,Bal_Comp[[#This Row],[Bal_1999]]<>0),1,0)","v":0}]
["Mayor",62010109,"PRESTACIONES SOCIALES",null,null,null,{"$f":"IF(OR(Bal_Comp[[#This Row],[Año Base]]<>0,Bal_Comp[[#This Row],[Bal_1999]]<>0),1,0)","v":0}]
["Mayor",62010110,"INTERESES PRESTACIONES SOCIALES",null,null,null,{"$f":"IF(OR(Bal_Comp[[#This Row],[Año Base]]<>0,Bal_Comp[[#This Row],[Bal_1999]]<>0),1,0)","v":0}]
["Mayor",62010111,"APORTE PATRONAL FAOV",null,null,null,{"$f":"IF(OR(Bal_Comp[[#This Row],[Año Base]]<>0,Bal_Comp[[#This Row],[Bal_1999]]<>0),1,0)","v":0}]
["Mayor",62010112,"APORTE PATRONAL IVSS",null,null,null,{"$f":"IF(OR(Bal_Comp[[#This Row],[Año Base]]<>0,Bal_Comp[[#This Row],[Bal_1999]]<>0),1,0)","v":0}]
["Mayor",62010113,"APORTE PATRONAL REG PRESTAC DE EMPLEO",null,null,null,{"$f":"IF(OR(Bal_Comp[[#This Row],[Año Base]]<>0,Bal_Comp[[#This Row],[Bal_1999]]<>0),1,0)","v":0}]
["Mayor",62010114,"APORTE PATRONAL INCES",null,null,null,{"$f":"IF(OR(Bal_Comp[[#This Row],[Año Base]]<>0,Bal_Comp[[#This Row],[Bal_1999]]<>0),1,0)","v":0}]
["Mayor",62010115,"DOTACIÓN UNIFORMES Y BOTAS",null,null,null,{"$f":"IF(OR(Bal_Comp[[#This Row],[Año Base]]<>0,Bal_Comp[[#This Row],[Bal_1999]]<>0),1,0)","v":0}]
["Mayor",62010116,"TRANSPORTE DEL PERSONAL",null,null,null,{"$f":"IF(OR(Bal_Comp[[#This Row],[Año Base]]<>0,Bal_Comp[[#This Row],[Bal_1999]]<>0),1,0)","v":0}]
["Mayor",62010199,"OTROS COSTOS DE PERSONAL",null,null,null,{"$f":"IF(OR(Bal_Comp[[#This Row],[Año Base]]<>0,Bal_Comp[[#This Row],[Bal_1999]]<>0),1,0)","v":0}]
["Mayor",62010201,"EDIFICACIONES",null,null,null,{"$f":"IF(OR(Bal_Comp[[#This Row],[Año Base]]<>0,Bal_Comp[[#This Row],[Bal_1999]]<>0),1,0)","v":0}]
["Mayor",62010202,"MAQUINARIAS Y EQUIPOS",null,null,null,{"$f":"IF(OR(Bal_Comp[[#This Row],[Año Base]]<>0,Bal_Comp[[#This Row],[Bal_1999]]<>0),1,0)","v":0}]
["Mayor",62010203,"INSTALACIONES",null,null,null,{"$f":"IF(OR(Bal_Comp[[#This Row],[Año Base]]<>0,Bal_Comp[[#This Row],[Bal_1999]]<>0),1,0)","v":0}]
["Mayor",62010204,"MOBILIARIO Y EQUIPOS DE OFICINA",null,null,null,{"$f":"IF(OR(Bal_Comp[[#This Row],[Año Base]]<>0,Bal_Comp[[#This Row],[Bal_1999]]<>0),1,0)","v":0}]
["Mayor",62010205,"EQUIPOS DE COMPUTACION",null,null,null,{"$f":"IF(OR(Bal_Comp[[#This Row],[Año Base]]<>0,Bal_Comp[[#This Row],[Bal_1999]]<>0),1,0)","v":0}]
["Mayor",62010206,"VEHICULOS",null,null,null,{"$f":"IF(OR(Bal_Comp[[#This Row],[Año Base]]<>0,Bal_Comp[[#This Row],[Bal_1999]]<>0),1,0)","v":0}]
["Mayor",62010207,"EQUIPOS Y HERRAMIENTAS",null,null,null,{"$f":"IF(OR(Bal_Comp[[#This Row],[Año Base]]<>0,Bal_Comp[[#This Row],[Bal_1999]]<>0),1,0)","v":0}]
["Mayor",62010299,"ACTIVOS REVALUADO",null,null,null,{"$f":"IF(OR(Bal_Comp[[#This Row],[Año Base]]<>0,Bal_Comp[[#This Row],[Bal_1999]]<>0),1,0)","v":0}]
["Mayor",62010301,"GASTOS PREPAGADOS",null,null,null,{"$f":"IF(OR(Bal_Comp[[#This Row],[Año Base]]<>0,Bal_Comp[[#This Row],[Bal_1999]]<>0),1,0)","v":0}]
["Mayor",62010302,"INTANGIBLES",100000,null,null,{"$f":"IF(OR(Bal_Comp[[#This Row],[Año Base]]<>0,Bal_Comp[[#This Row],[Bal_1999]]<>0),1,0)","v":1}]
["Mayor",62010303,"CARGOS DIFERIDOS",null,null,null,{"$f":"IF(OR(Bal_Comp[[#This Row],[Año Base]]<>0,Bal_Comp[[#This Row],[Bal_1999]]<>0),1,0)","v":0}]
["Mayor",62010401,"PATENTE MUNICIPAL",null,null,null,{"$f":"IF(OR(Bal_Comp[[#This Row],[Año Base]]<>0,Bal_Comp[[#This Row],[Bal_1999]]<>0),1,0)","v":0}]
["Mayor",62010402,"PUBLICIDAD Y PROPAGANDA",null,null,null,{"$f":"IF(OR(Bal_Comp[[#This Row],[Año Base]]<>0,Bal_Comp[[#This Row],[Bal_1999]]<>0),1,0)","v":0}]
["Mayor",62010403,"DERECHOS DE FRENTE",null,null,null,{"$f":"IF(OR(Bal_Comp[[#This Row],[Año Base]]<>0,Bal_Comp[[#This Row],[Bal_1999]]<>0),1,0)","v":0}]
["Mayor",62010404,"VEHICULOS",null,null,null,{"$f":"IF(OR(Bal_Comp[[#This Row],[Año Base]]<>0,Bal_Comp[[#This Row],[Bal_1999]]<>0),1,0)","v":0}]
["Mayor",62010405,"APORTE FONDO NACIONAL DEL DEPORTE",null,null,null,{"$f":"IF(OR(Bal_Comp[[#This Row],[Año Base]]<>0,Bal_Comp[[#This Row],[Bal_1999]]<>0),1,0)","v":0}]
["Mayor",62010406,"APORTE LOCTI",null,null,null,{"$f":"IF(OR(Bal_Comp[[#This Row],[Año Base]]<>0,Bal_Comp[[#This Row],[Bal_1999]]<>0),1,0)","v":0}]
["Mayor",62010407,"APORTE FONDO NACIONAL ANTIDROGA",null,null,null,{"$f":"IF(OR(Bal_Comp[[#This Row],[Año Base]]<>0,Bal_Comp[[#This Row],[Bal_1999]]<>0),1,0)","v":0}]
["Mayor",62010501,"RESPONSABILIDAD CIVIL",null,null,null,{"$f":"IF(OR(Bal_Comp[[#This Row],[Año Base]]<>0,Bal_Comp[[#This Row],[Bal_1999]]<>0),1,0)","v":0}]
["Mayor",62010502,"VEHICULOS",null,null,null,{"$f":"IF(OR(Bal_Comp[[#This Row],[Año Base]]<>0,Bal_Comp[[#This Row],[Bal_1999]]<>0),1,0)","v":0}]
["Mayor",62010503,"MOBILIARIOS Y EQUIPOS",null,null,null,{"$f":"IF(OR(Bal_Comp[[#This Row],[Año Base]]<>0,Bal_Comp[[#This Row],[Bal_1999]]<>0),1,0)","v":0}]
["Mayor",62010503,"HOSPITALIZACIÓN, CIRUGÍA Y MATERNIDAD",null,null,null,{"$f":"IF(OR(Bal_Comp[[#This Row],[Año Base]]<>0,Bal_Comp[[#This Row],[Bal_1999]]<>0),1,0)","v":0}]
["Mayor",62010503,"SEGURO DE ACCIDENTES PERSONALES",null,null,null,{"$f":"IF(OR(Bal_Comp[[#This Row],[Año Base]]<>0,Bal_Comp[[#This Row],[Bal_1999]]<>0),1,0)","v":0}]
["Mayor",62010601,"ELECTRICIDAD Y ASEO",null,null,null,{"$f":"IF(OR(Bal_Comp[[#This Row],[Año Base]]<>0,Bal_Comp[[#This Row],[Bal_1999]]<>0),1,0)","v":0}]
["Mayor",62010602,"TELEFONIA FIJA, MOVIL E INTERNET",null,null,null,{"$f":"IF(OR(Bal_Comp[[#This Row],[Año Base]]<>0,Bal_Comp[[#This Row],[Bal_1999]]<>0),1,0)","v":0}]
["Mayor",62010603,"TAXI Y MENSAJERIA",null,null,null,{"$f":"IF(OR(Bal_Comp[[#This Row],[Año Base]]<>0,Bal_Comp[[#This Row],[Bal_1999]]<>0),1,0)","v":0}]
["Mayor",62010604,"SEGURIDAD Y VIGILANCIA",null,null,null,{"$f":"IF(OR(Bal_Comp[[#This Row],[Año Base]]<>0,Bal_Comp[[#This Row],[Bal_1999]]<>0),1,0)","v":0}]
["Mayor",62010605,"CONSERVACIÓN Y MANTTO INMUEBLES ARRENDADOS",null,null,null,{"$f":"IF(OR(Bal_Comp[[#This Row],[Año Base]]<>0,Bal_Comp[[#This Row],[Bal_1999]]<>0),1,0)","v":0}]
["Mayor",62010606,"REPARACIONES Y MANTENIMIENTO GENERAL",null,null,null,{"$f":"IF(OR(Bal_Comp[[#This Row],[Año Base]]<>0,Bal_Comp[[#This Row],[Bal_1999]]<>0),1,0)","v":0}]
["Mayor",62010607,"TRANSPORTE DE PRODUCTOS",null,null,null,{"$f":"IF(OR(Bal_Comp[[#This Row],[Año Base]]<>0,Bal_Comp[[#This Row],[Bal_1999]]<>0),1,0)","v":0}]
["Mayor",62010608,"AYUDA VEHICULO",null,null,null,{"$f":"IF(OR(Bal_Comp[[#This Row],[Año Base]]<>0,Bal_Comp[[#This Row],[Bal_1999]]<>0),1,0)","v":0}]
["Mayor",62010609,"EVENTOS PUBLICITARIOS",null,null,null,{"$f":"IF(OR(Bal_Comp[[#This Row],[Año Base]]<>0,Bal_Comp[[#This Row],[Bal_1999]]<>0),1,0)","v":0}]
["Mayor",62010701,"ARRENDAMIENTOS DE BIENES INMUEBLES",null,null,null,{"$f":"IF(OR(Bal_Comp[[#This Row],[Año Base]]<>0,Bal_Comp[[#This Row],[Bal_1999]]<>0),1,0)","v":0}]
["Mayor",62010702,"ARRENDAMIENTOS DE BIENES MUEBLES",null,null,null,{"$f":"IF(OR(Bal_Comp[[#This Row],[Año Base]]<>0,Bal_Comp[[#This Row],[Bal_1999]]<>0),1,0)","v":0}]
["Mayor",62010801,"ABOGADOS",null,null,null,{"$f":"IF(OR(Bal_Comp[[#This Row],[Año Base]]<>0,Bal_Comp[[#This Row],[Bal_1999]]<>0),1,0)","v":0}]
["Mayor",62010802,"AUDITORES Y CONTADORES",null,null,null,{"$f":"IF(OR(Bal_Comp[[#This Row],[Año Base]]<>0,Bal_Comp[[#This Row],[Bal_1999]]<>0),1,0)","v":0}]
["Mayor",62010803,"ASISTENCIA TECNOLOGICA",null,null,null,{"$f":"IF(OR(Bal_Comp[[#This Row],[Año Base]]<>0,Bal_Comp[[#This Row],[Bal_1999]]<>0),1,0)","v":0}]
["Mayor",62010804,"ASESORES EN MERCADEO Y VENTAS",null,null,null,{"$f":"IF(OR(Bal_Comp[[#This Row],[Año Base]]<>0,Bal_Comp[[#This Row],[Bal_1999]]<>0),1,0)","v":0}]
["Mayor",62010805,"COMISIONES SOBRE VENTAS ",null,null,null,{"$f":"IF(OR(Bal_Comp[[#This Row],[Año Base]]<>0,Bal_Comp[[#This Row],[Bal_1999]]<>0),1,0)","v":0}]
["Mayor",62010899,"OTROS CONSULTORES",null,null,null,{"$f":"IF(OR(Bal_Comp[[#This Row],[Año Base]]<>0,Bal_Comp[[#This Row],[Bal_1999]]<>0),1,0)","v":0}]
["Mayor",62010901,"MUESTRAS DE PRODUCTOS",null,null,null,{"$f":"IF(OR(Bal_Comp[[#This Row],[Año Base]]<>0,Bal_Comp[[#This Row],[Bal_1999]]<>0),1,0)","v":0}]
["Mayor",62010902,"PUBLICIDAD Y PROPAGANDA",null,null,null,{"$f":"IF(OR(Bal_Comp[[#This Row],[Año Base]]<>0,Bal_Comp[[#This Row],[Bal_1999]]<>0),1,0)","v":0}]
["Mayor",62019901,"MATERIAL DE OFICINA",null,null,null,{"$f":"IF(OR(Bal_Comp[[#This Row],[Año Base]]<>0,Bal_Comp[[#This Row],[Bal_1999]]<>0),1,0)","v":0}]
["Mayor",62019902,"GASTOS DE VIAJE",null,null,null,{"$f":"IF(OR(Bal_Comp[[#This Row],[Año Base]]<>0,Bal_Comp[[#This Row],[Bal_1999]]<>0),1,0)","v":0}]
["Mayor",62019903,"MENSAJERIA Y ENCOMIENDAS",null,null,null,{"$f":"IF(OR(Bal_Comp[[#This Row],[Año Base]]<>0,Bal_Comp[[#This Row],[Bal_1999]]<>0),1,0)","v":0}]
["Mayor",62019904,"REPARACIONES Y MANTENIMIENTO",null,null,null,{"$f":"IF(OR(Bal_Comp[[#This Row],[Año Base]]<>0,Bal_Comp[[#This Row],[Bal_1999]]<>0),1,0)","v":0}]
["Mayor",62019905,"MANTENIMIENTO INMUEBLES ARRENDADOS",null,null,null,{"$f":"IF(OR(Bal_Comp[[#This Row],[Año Base]]<>0,Bal_Comp[[#This Row],[Bal_1999]]<>0),1,0)","v":0}]
["Mayor",62019906,"GASTOS DE REPRESENTACION",null,null,null,{"$f":"IF(OR(Bal_Comp[[#This Row],[Año Base]]<>0,Bal_Comp[[#This Row],[Bal_1999]]<>0),1,0)","v":0}]
["Mayor",62019907,"REGISTROS Y NOTARIA",null,null,null,{"$f":"IF(OR(Bal_Comp[[#This Row],[Año Base]]<>0,Bal_Comp[[#This Row],[Bal_1999]]<>0),1,0)","v":0}]
["Mayor",62019908,"CONDOMINIO Y ESTACIONAMIENTO",null,null,null,{"$f":"IF(OR(Bal_Comp[[#This Row],[Año Base]]<>0,Bal_Comp[[#This Row],[Bal_1999]]<>0),1,0)","v":0}]
["Mayor",62019909,"LIBERALIDADES Y DONACIONES",null,null,null,{"$f":"IF(OR(Bal_Comp[[#This Row],[Año Base]]<>0,Bal_Comp[[#This Row],[Bal_1999]]<>0),1,0)","v":0}]
["Mayor",62019999,"OTROS GASTOS",null,null,null,{"$f":"IF(OR(Bal_Comp[[#This Row],[Año Base]]<>0,Bal_Comp[[#This Row],[Bal_1999]]<>0),1,0)","v":0}]
["Mayor",71010101,"INTERESES SOBRE CREDITOS",null,null,null,{"$f":"IF(OR(Bal_Comp[[#This Row],[Año Base]]<>0,Bal_Comp[[#This Row],[Bal_1999]]<>0),1,0)","v":0}]
["Mayor",71020201,"OTROS INGRESOS FINANCIEROS",null,null,null,{"$f":"IF(OR(Bal_Comp[[#This Row],[Año Base]]<>0,Bal_Comp[[#This Row],[Bal_1999]]<>0),1,0)","v":0}]
["Mayor",72030101,"VENTA DE ACTIVO FIJO",null,null,null,{"$f":"IF(OR(Bal_Comp[[#This Row],[Año Base]]<>0,Bal_Comp[[#This Row],[Bal_1999]]<>0),1,0)","v":0}]
["Mayor",72030102,"INGRESOS NO GRAVABLES",null,null,null,{"$f":"IF(OR(Bal_Comp[[#This Row],[Año Base]]<>0,Bal_Comp[[#This Row],[Bal_1999]]<>0),1,0)","v":0}]
["Mayor",72030103,"AJUSTES A EJERCICIOS ANTERIORES",null,null,null,{"$f":"IF(OR(Bal_Comp[[#This Row],[Año Base]]<>0,Bal_Comp[[#This Row],[Bal_1999]]<>0),1,0)","v":0}]
["Mayor",72030104,"UTILIDAD EN CAMBIO REALIZADA",null,null,null,{"$f":"IF(OR(Bal_Comp[[#This Row],[Año Base]]<>0,Bal_Comp[[#This Row],[Bal_1999]]<>0),1,0)","v":0}]
["Mayor",72030105,"UTILIDAD EN CAMBIO NO REALIZADA",null,null,null,{"$f":"IF(OR(Bal_Comp[[#This Row],[Año Base]]<>0,Bal_Comp[[#This Row],[Bal_1999]]<>0),1,0)","v":0}]
["Mayor",72030105,"UTILIDAD EN VENTA DE ACTIVO FIJO",null,null,null,{"$f":"IF(OR(Bal_Comp[[#This Row],[Año Base]]<>0,Bal_Comp[[#This Row],[Bal_1999]]<>0),1,0)","v":0}]
["Mayor",72030199,"OTROS INGRESOS",null,null,null,{"$f":"IF(OR(Bal_Comp[[#This Row],[Año Base]]<>0,Bal_Comp[[#This Row],[Bal_1999]]<>0),1,0)","v":0}]
["Mayor",73010101,"VENTA CREDITO FISCAL",null,null,null,{"$f":"IF(OR(Bal_Comp[[#This Row],[Año Base]]<>0,Bal_Comp[[#This Row],[Bal_1999]]<>0),1,0)","v":0}]
["Mayor",81010101,"INTERESES SOBRE CREDITOS",null,null,null,{"$f":"IF(OR(Bal_Comp[[#This Row],[Año Base]]<>0,Bal_Comp[[#This Row],[Bal_1999]]<>0),1,0)","v":0}]
["Mayor",81010201,"COMISIONES BANCARIAS",null,null,null,{"$f":"IF(OR(Bal_Comp[[#This Row],[Año Base]]<>0,Bal_Comp[[#This Row],[Bal_1999]]<>0),1,0)","v":0}]
["Mayor",81020201,"ACCIONES EN CIA \"A\"",null,null,null,{"$f":"IF(OR(Bal_Comp[[#This Row],[Año Base]]<>0,Bal_Comp[[#This Row],[Bal_1999]]<>0),1,0)","v":0}]
["Mayor",82010101,"GASTOS NO DEDUCIBLES",null,null,null,{"$f":"IF(OR(Bal_Comp[[#This Row],[Año Base]]<>0,Bal_Comp[[#This Row],[Bal_1999]]<>0),1,0)","v":0}]
["Mayor",82010102,"ISLR DEL EJERCICIO",null,null,null,{"$f":"IF(OR(Bal_Comp[[#This Row],[Año Base]]<>0,Bal_Comp[[#This Row],[Bal_1999]]<>0),1,0)","v":0}]
["Mayor",82010103,"MULTAS Y SANCIONES PECUNIARIAS",null,null,null,{"$f":"IF(OR(Bal_Comp[[#This Row],[Año Base]]<>0,Bal_Comp[[#This Row],[Bal_1999]]<>0),1,0)","v":0}]
["Mayor",82010104,"IGTF",null,null,null,{"$f":"IF(OR(Bal_Comp[[#This Row],[Año Base]]<>0,Bal_Comp[[#This Row],[Bal_1999]]<>0),1,0)","v":0}]
["Mayor",82010105,"50% PASAJES INTERNACIONALES",null,null,null,{"$f":"IF(OR(Bal_Comp[[#This Row],[Año Base]]<>0,Bal_Comp[[#This Row],[Bal_1999]]<>0),1,0)","v":0}]
["Mayor",82010106,"INTERESES SOBRE PRESTAMOS (ND)",null,null,null,{"$f":"IF(OR(Bal_Comp[[#This Row],[Año Base]]<>0,Bal_Comp[[#This Row],[Bal_1999]]<>0),1,0)","v":0}]
["Mayor",82010197,"CREDITO FISCAL NO DEDUCIBLE",null,null,null,{"$f":"IF(OR(Bal_Comp[[#This Row],[Año Base]]<>0,Bal_Comp[[#This Row],[Bal_1999]]<>0),1,0)","v":0}]
["Mayor",82010198,"RETENCIONES IVA ASUMIDAS",null,null,null,{"$f":"IF(OR(Bal_Comp[[#This Row],[Año Base]]<>0,Bal_Comp[[#This Row],[Bal_1999]]<>0),1,0)","v":0}]
["Mayor",82010199,"OTROS NO DEDUCIBLES",null,null,null,{"$f":"IF(OR(Bal_Comp[[#This Row],[Año Base]]<>0,Bal_Comp[[#This Row],[Bal_1999]]<>0),1,0)","v":0}]
["Mayor",82020101,"PERDIDA EN VENTA ACTIVO VENDIDO",null,null,null,{"$f":"IF(OR(Bal_Comp[[#This Row],[Año Base]]<>0,Bal_Comp[[#This Row],[Bal_1999]]<>0),1,0)","v":0}]
["Mayor",82020102,"AJUSTE A EJERCICIO ANTERIORES",null,null,null,{"$f":"IF(OR(Bal_Comp[[#This Row],[Año Base]]<>0,Bal_Comp[[#This Row],[Bal_1999]]<>0),1,0)","v":0}]
["Mayor",82020103,"COMISIONES A INTERMEDIARIOS ",null,null,null,{"$f":"IF(OR(Bal_Comp[[#This Row],[Año Base]]<>0,Bal_Comp[[#This Row],[Bal_1999]]<>0),1,0)","v":0}]
["Mayor",82020104,"PERDIDAS POR CUENTAS INCOBRABLES",null,null,null,{"$f":"IF(OR(Bal_Comp[[#This Row],[Año Base]]<>0,Bal_Comp[[#This Row],[Bal_1999]]<>0),1,0)","v":0}]
["Mayor",82020106,"COMISIONES VARIAS",null,null,null,{"$f":"IF(OR(Bal_Comp[[#This Row],[Año Base]]<>0,Bal_Comp[[#This Row],[Bal_1999]]<>0),1,0)","v":0}]
["Mayor",82020107,"PERDIDA EN CAMBIO NO REALIZADA",null,null,null,{"$f":"IF(OR(Bal_Comp[[#This Row],[Año Base]]<>0,Bal_Comp[[#This Row],[Bal_1999]]<>0),1,0)","v":0}]
["Mayor",82020108,"PERDIDA EN CAMBIO REALIZADA",null,null,null,{"$f":"IF(OR(Bal_Comp[[#This Row],[Año Base]]<>0,Bal_Comp[[#This Row],[Bal_1999]]<>0),1,0)","v":0}]
["Mayor",82020109,"DIFERENCIA EN RECONVERSIÓN",null,null,null,{"$f":"IF(OR(Bal_Comp[[#This Row],[Año Base]]<>0,Bal_Comp[[#This Row],[Bal_1999]]<>0),1,0)","v":0}]
["Mayor",82020110,"CUENTA DE REDONDEO",null,null,null,{"$f":"IF(OR(Bal_Comp[[#This Row],[Año Base]]<>0,Bal_Comp[[#This Row],[Bal_1999]]<>0),1,0)","v":0}]
["Mayor",82020199,"OTROS EGRESOS",null,null,null,{"$f":"IF(OR(Bal_Comp[[#This Row],[Año Base]]<>0,Bal_Comp[[#This Row],[Bal_1999]]<>0),1,0)","v":0}]
["Mayor",83010101,"ISLR CORRIENTE",null,null,null,{"$f":"IF(OR(Bal_Comp[[#This Row],[Año Base]]<>0,Bal_Comp[[#This Row],[Bal_1999]]<>0),1,0)","v":0}]
["Mayor",83010102,"ISLR DIFERIDO ",null,null,null,{"$f":"IF(OR(Bal_Comp[[#This Row],[Año Base]]<>0,Bal_Comp[[#This Row],[Bal_1999]]<>0),1,0)","v":0}]
["Mayor",83020101,"APARTADO DEL EJERCICIO",null,null,null,{"$f":"IF(OR(Bal_Comp[[#This Row],[Año Base]]<>0,Bal_Comp[[#This Row],[Bal_1999]]<>0),1,0)","v":0}]
["Mayor",84010101,"RESULTADO POR EXPOSICIÓN MONETARIA ",null,null,null,{"$f":"IF(OR(Bal_Comp[[#This Row],[Año Base]]<>0,Bal_Comp[[#This Row],[Bal_1999]]<>0),1,0)","v":0}]
["Mayor",85010201,"ACTUALIZACION DE PATRIMONIO",null,null,null,{"$f":"IF(OR(Bal_Comp[[#This Row],[Año Base]]<>0,Bal_Comp[[#This Row],[Bal_1999]]<>0),1,0)","v":0}]
["Mayor",85010202,"EXCLUSIONES HISTORICAS AL PATRIMONIO",null,null,null,{"$f":"IF(OR(Bal_Comp[[#This Row],[Año Base]]<>0,Bal_Comp[[#This Row],[Bal_1999]]<>0),1,0)","v":0}]
["Mayor",85010203,"REAJUSTE POR INFLACION",null,null,null,{"$f":"IF(OR(Bal_Comp[[#This Row],[Año Base]]<>0,Bal_Comp[[#This Row],[Bal_1999]]<>0),1,0)","v":0}]
[null,null,null,{"$f":"SUBTOTAL(109,Bal_Comp[Año Base])","v":300000},{"$f":"SUBTOTAL(109,Bal_Comp[Bal_1999])","v":200000}]

{"sheet":"Macro Corregido","index":1,"n_rows":441,"n_cols":7,"rows_kept":441,"cut":false,"hidden":false,"merged":[]}
["LA TRANSPARENTE, C.A"]
["AJUSTE POR INFLACION FINANCIERO",null,null,{"$f":"Bal_Comp3[[#Totals],[Año Base]]","v":300000},{"$f":"Bal_Comp3[[#Totals],[Bal_1999]]","v":200000}]
["BALANCE DE COMPROBACIÓN "]
["Nivel","Código","Nombre","Año Base","Bal_1999"]
["Mayor",11010101,"CAJA GENERAL",null,null,null,{"$f":"IF(OR(Bal_Comp3[[#This Row],[Año Base]]<>0,Bal_Comp3[[#This Row],[Bal_1999]]<>0),1,0)","v":0}]
["Mayor",11010201,"BBVA PROVINCIAL",null,null,null,{"$f":"IF(OR(Bal_Comp3[[#This Row],[Año Base]]<>0,Bal_Comp3[[#This Row],[Bal_1999]]<>0),1,0)","v":0}]
["Mayor",11010301,"BANK OF AMERICA",null,null,null,{"$f":"IF(OR(Bal_Comp3[[#This Row],[Año Base]]<>0,Bal_Comp3[[#This Row],[Bal_1999]]<>0),1,0)","v":0}]
["Mayor",11010401,"BBVA PROVINCIAL",null,null,null,{"$f":"IF(OR(Bal_Comp3[[#This Row],[Año Base]]<>0,Bal_Comp3[[#This Row],[Bal_1999]]<>0),1,0)","v":0}]
["Mayor",11010501,"COBRANZA POR DEPOSITAR",100000,null,null,{"$f":"IF(OR(Bal_Comp3[[#This Row],[Año Base]]<>0,Bal_Comp3[[#This Row],[Bal_1999]]<>0),1,0)","v":1}]
["Mayor",11010501,"TRANSFERENCIAS EN TRANSITO (MN)",null,null,null,{"$f":"IF(OR(Bal_Comp3[[#This Row],[Año Base]]<>0,Bal_Comp3[[#This Row],[Bal_1999]]<>0),1,0)","v":0}]
["Mayor",11010501,"TRANSFERENCIAS EN TRANSITO (ME)",null,null,null,{"$f":"IF(OR(Bal_Comp3[[#This Row],[Año Base]]<>0,Bal_Comp3[[#This Row],[Bal_1999]]<>0),1,0)","v":0}]
["Mayor",11020101,"EFECTOS POR COBRAR ",null,null,null,{"$f":"IF(OR(Bal_Comp3[[#This Row],[Año Base]]<>0,Bal_Comp3[[#This Row],[Bal_1999]]<>0),1,0)","v":0}]
["Mayor",11020199,"EFECTOS POR COBRAR DESCONTADOS",null,100000,null,{"$f":"IF(OR(Bal_Comp3[[#This Row],[Año Base]]<>0,Bal_Comp3[[#This Row],[Bal_1999]]<>0),1,0)","v":1}]
["Mayor",11020201,"CLIENTES NACIONALES",null,null,null,{"$f":"IF(OR(Bal_Comp3[[#This Row],[Año Base]]<>0,Bal_Comp3[[#This Row],[Bal_1999]]<>0),1,0)","v":0}]
["Mayor",11020202,"CLIENTES EN EL EXTERIOR",null,null,null,{"$f":"IF(OR(Bal_Comp3[[#This Row],[Año Base]]<>0,Bal_Comp3[[#This Row],[Bal_1999]]<>0),1,0)","v":0}]
["Mayor",11020203,"CUENTAS POR COBRAR (NE)",null,null,null,{"$f":"IF(OR(Bal_Comp3[[#This Row],[Año Base]]<>0,Bal_Comp3[[#This Row],[Bal_1999]]<>0),1,0)","v":0}]
["Mayor",11020301,"CUENTAS EN LITIGIO",null,null,null,{"$f":"IF(OR(Bal_Comp3[[#This Row],[Año Base]]<>0,Bal_Comp3[[#This Row],[Bal_1999]]<>0),1,0)","v":0}]
["Mayor",11020499,"ESTIMACIÓN PARA CUENTAS INCOBRABLES",null,null,null,{"$f":"IF(OR(Bal_Comp3[[#This Row],[Año Base]]<>0,Bal_Comp3[[#This Row],[Bal_1999]]<>0),1,0)","v":0}]
["Mayor",11030101,"ANTICIPOS DE IMPUESTOS",null,null,null,{"$f":"IF(OR(Bal_Comp3[[#This Row],[Año Base]]<>0,Bal_Comp3[[#This Row],[Bal_1999]]<>0),1,0)","v":0}]
["Mayor",11030102,"RETENIDO POR TERCEROS",null,null,null,{"$f":"IF(OR(Bal_Comp3[[#This Row],[Año Base]]<>0,Bal_Comp3[[#This Row],[Bal_1999]]<>0),1,0)","v":0}]
["Mayor",11030103,"PAGADO EN EXCESO",null,null,null,{"$f":"IF(OR(Bal_Comp3[[#This Row],[Año Base]]<>0,Bal_Comp3[[#This Row],[Bal_1999]]<>0),1,0)","v":0}]
["Mayor",11030201,"CREDITO FISCAL",100000,null,null,{"$f":"IF(OR(Bal_Comp3[[#This Row],[Año Base]]<>0,Bal_Comp3[[#This Row],[Bal_1999]]<>0),1,0)","v":1}]
["Mayor",11030202,"RETENIDO POR TERCEROS",null,null,null,{"$f":"IF(OR(Bal_Comp3[[#This Row],[Año Base]]<>0,Bal_Comp3[[#This Row],[Bal_1999]]<>0),1,0)","v":0}]
["Mayor",11030301,"ALCALDIA DE SANDIEGO",null,null,null,{"$f":"IF(OR(Bal_Comp3[[#This Row],[Año Base]]<>0,Bal_Comp3[[#This Row],[Bal_1999]]<>0),1,0)","v":0}]
["Mayor",11030302,"ALCALDIA DE VALENCIA",null,null,null,{"$f":"IF(OR(Bal_Comp3[[#This Row],[Año Base]]<>0,Bal_Comp3[[#This Row],[Bal_1999]]<>0),1,0)","v":0}]
["Mayor",11030401,"OTROS",null,null,null,{"$f":"IF(OR(Bal_Comp3[[#This Row],[Año Base]]<>0,Bal_Comp3[[#This Row],[Bal_1999]]<>0),1,0)","v":0}]
["Mayor",11040101,"LA TORTA, C.A",null,null,null,{"$f":"IF(OR(Bal_Comp3[[#This Row],[Año Base]]<>0,Bal_Comp3[[#This Row],[Bal_1999]]<>0),1,0)","v":0}]
["Mayor",11050101,"PEDRO PEREZ",null,null,null,{"$f":"IF(OR(Bal_Comp3[[#This Row],[Año Base]]<>0,Bal_Comp3[[#This Row],[Bal_1999]]<>0),1,0)","v":0}]
["Mayor",11060101,"TRABAJADORES",null,null,null,{"$f":"IF(OR(Bal_Comp3[[#This Row],[Año Base]]<>0,Bal_Comp3[[#This Row],[Bal_1999]]<>0),1,0)","v":0}]
["Mayor",11070199,"OTRAS CUENTAS POR COBRAR",null,null,null,{"$f":"IF(OR(Bal_Comp3[[#This Row],[Año Base]]<>0,Bal_Comp3[[#This Row],[Bal_1999]]<>0),1,0)","v":0}]
["Mayor",11080101,"ANTICIPO A PROVEEDORES",null,null,null,{"$f":"IF(OR(Bal_Comp3[[#This Row],[Año Base]]<>0,Bal_Comp3[[#This Row],[Bal_1999]]<>0),1,0)","v":0}]
["Mayor",11090101,"MATERIAS PRIMAS",null,null,null,{"$f":"IF(OR(Bal_Comp3[[#This Row],[Año Base]]<>0,Bal_Comp3[[#This Row],[Bal_1999]]<>0),1,0)","v":0}]
["Mayor",11090201,"MATERIALES Y SUMINISTROS",null,null,null,{"$f":"IF(OR(Bal_Comp3[[#This Row],[Año Base]]<>0,Bal_Comp3[[#This Row],[Bal_1999]]<>0),1,0)","v":0}]
["Mayor",11090301,"PRODUCTOS EN PROCESO",null,null,null,{"$f":"IF(OR(Bal_Comp3[[#This Row],[Año Base]]<>0,Bal_Comp3[[#This Row],[Bal_1999]]<>0),1,0)","v":0}]
["Mayor",11090401,"PRODUCTOS TERMINADOS",null,null,null,{"$f":"IF(OR(Bal_Comp3[[#This Row],[Año Base]]<>0,Bal_Comp3[[#This Row],[Bal_1999]]<>0),1,0)","v":0}]
["Mayor",11090501,"LUBRICANTES",null,null,null,{"$f":"IF(OR(Bal_Comp3[[#This Row],[Año Base]]<>0,Bal_Comp3[[#This Row],[Bal_1999]]<>0),1,0)","v":0}]
["Mayor",11090601,"LUBRICANTES",null,null,null,{"$f":"IF(OR(Bal_Comp3[[#This Row],[Año Base]]<>0,Bal_Comp3[[#This Row],[Bal_1999]]<>0),1,0)","v":0}]
["Mayor",11099901,"MATERIAS PRIMAS",null,null,null,{"$f":"IF(OR(Bal_Comp3[[#This Row],[Año Base]]<>0,Bal_Comp3[[#This Row],[Bal_1999]]<>0),1,0)","v":0}]
["Mayor",11100101,"PETROLEOS DE VENEZUELA, SA",null,null,null,{"$f":"IF(OR(Bal_Comp3[[#This Row],[Año Base]]<>0,Bal_Comp3[[#This Row],[Bal_1999]]<>0),1,0)","v":0}]
["Mayor",11110101,"POLIZAS DE SEGURO",null,null,null,{"$f":"IF(OR(Bal_Comp3[[#This Row],[Año Base]]<>0,Bal_Comp3[[#This Row],[Bal_1999]]<>0),1,0)","v":0}]
["Mayor",11110199,"AMORTIZACION ACUMULADA",null,null,null,{"$f":"IF(OR(Bal_Comp3[[#This Row],[Año Base]]<>0,Bal_Comp3[[#This Row],[Bal_1999]]<>0),1,0)","v":0}]
["Mayor",11120101,"OTRO ACTIVO CORRIENTE",null,null,null,{"$f":"IF(OR(Bal_Comp3[[#This Row],[Año Base]]<>0,Bal_Comp3[[#This Row],[Bal_1999]]<>0),1,0)","v":0}]
["Mayor",12010101,"LA PERLA DE ORIENTE, C.A",null,null,null,{"$f":"IF(OR(Bal_Comp3[[#This Row],[Año Base]]<>0,Bal_Comp3[[#This Row],[Bal_1999]]<>0),1,0)","v":0}]
["Mayor","12010201","LA ENRREDADA, C.A",null,null,null,{"$f":"IF(OR(Bal_Comp3[[#This Row],[Año Base]]<>0,Bal_Comp3[[#This Row],[Bal_1999]]<>0),1,0)","v":0}]
["Mayor",12010999,"PROVISION FLUCTUACIÓN DE MERCADO",null,null,null,{"$f":"IF(OR(Bal_Comp3[[#This Row],[Año Base]]<>0,Bal_Comp3[[#This Row],[Bal_1999]]<>0),1,0)","v":0}]
["Mayor",12020101,"REGISTRO PATENTE \"A\"",null,null,null,{"$f":"IF(OR(Bal_Comp3[[#This Row],[Año Base]]<>0,Bal_Comp3[[#This Row],[Bal_1999]]<>0),1,0)","v":0}]
["Mayor",12020199,"AMORTIZACION ACUMULADA",null,null,null,{"$f":"IF(OR(Bal_Comp3[[#This Row],[Año Base]]<>0,Bal_Comp3[[#This Row],[Bal_1999]]<>0),1,0)","v":0}]
["Mayor",12020201,"REGISTRO MARCAS \"A\"",null,null,null,{"$f":"IF(OR(Bal_Comp3[[#This Row],[Año Base]]<>0,Bal_Comp3[[#This Row],[Bal_1999]]<>0),1,0)","v":0}]
["Mayor",12020299,"AMORTIZACION ACUMULADA",null,null,null,{"$f":"IF(OR(Bal_Comp3[[#This Row],[Año Base]]<>0,Bal_Comp3[[#This Row],[Bal_1999]]<>0),1,0)","v":0}]
["Mayor",12020301,"PLUSVALIA",null,null,null,{"$f":"IF(OR(Bal_Comp3[[#This Row],[Año Base]]<>0,Bal_Comp3[[#This Row],[Bal_1999]]<>0),1,0)","v":0}]
["Mayor",12020399,"AMORTIZACION ACUMULADA",null,null,null,{"$f":"IF(OR(Bal_Comp3[[#This Row],[Año Base]]<>0,Bal_Comp3[[#This Row],[Bal_1999]]<>0),1,0)","v":0}]
["Mayor",12030101,"TERRENOS",null,null,null,{"$f":"IF(OR(Bal_Comp3[[#This Row],[Año Base]]<>0,Bal_Comp3[[#This Row],[Bal_1999]]<>0),1,0)","v":0}]
["Mayor",12030102,"EDIFICACIONES",null,null,null,{"$f":"IF(OR(Bal_Comp3[[#This Row],[Año Base]]<>0,Bal_Comp3[[#This Row],[Bal_1999]]<>0),1,0)","v":0}]
["Mayor",12030103,"MAQUINARIAS Y EQUIPOS",null,100000,null,{"$f":"IF(OR(Bal_Comp3[[#This Row],[Año Base]]<>0,Bal_Comp3[[#This Row],[Bal_1999]]<>0),1,0)","v":1}]
["Mayor",12030104,"INSTALACIONES",null,null,null,{"$f":"IF(OR(Bal_Comp3[[#This Row],[Año Base]]<>0,Bal_Comp3[[#This Row],[Bal_1999]]<>0),1,0)","v":0}]
["Mayor",12030105,"MOBILIARIO Y EQUIPOS DE OFICINA",null,null,null,{"$f":"IF(OR(Bal_Comp3[[#This Row],[Año Base]]<>0,Bal_Comp3[[#This Row],[Bal_1999]]<>0),1,0)","v":0}]
["Mayor",12030106,"EQUIPOS DE COMPUTACION",null,null,null,{"$f":"IF(OR(Bal_Comp3[[#This Row],[Año Base]]<>0,Bal_Comp3[[#This Row],[Bal_1999]]<>0),1,0)","v":0}]
["Mayor",12030107,"VEHICULOS",null,null,null,{"$f":"IF(OR(Bal_Comp3[[#This Row],[Año Base]]<>0,Bal_Comp3[[#This Row],[Bal_1999]]<>0),1,0)","v":0}]
["Mayor",12030108,"EQUIPOS Y HERRAMIENTAS",null,null,null,{"$f":"IF(OR(Bal_Comp3[[#This Row],[Año Base]]<>0,Bal_Comp3[[#This Row],[Bal_1999]]<>0),1,0)","v":0}]
["Mayor",12030201,"EDIFICACIONES",null,null,null,{"$f":"IF(OR(Bal_Comp3[[#This Row],[Año Base]]<>0,Bal_Comp3[[#This Row],[Bal_1999]]<>0),1,0)","v":0}]
["Mayor",12030202,"MAQUINARIAS Y EQUIPOS",null,null,null,{"$f":"IF(OR(Bal_Comp3[[#This Row],[Año Base]]<>0,Bal_Comp3[[#This Row],[Bal_1999]]<>0),1,0)","v":0}]
["Mayor",12030203,"INSTALACIONES",null,null,null,{"$f":"IF(OR(Bal_Comp3[[#This Row],[Año Base]]<>0,Bal_Comp3[[#This Row],[Bal_1999]]<>0),1,0)","v":0}]
["Mayor",12030204,"MOBILIARIO Y EQUIPOS DE OFICINA",null,null,null,{"$f":"IF(OR(Bal_Comp3[[#This Row],[Año Base]]<>0,Bal_Comp3[[#This Row],[Bal_1999]]<>0),1,0)","v":0}]
["Mayor",12030205,"EQUIPOS DE COMPUTACION",null,null,null,{"$f":"IF(OR(Bal_Comp3[[#This Row],[Año Base]]<>0,Bal_Comp3[[#This Row],[Bal_1999]]<>0),1,0)","v":0}]
["Mayor",12030206,"VEHICULOS",null,null,null,{"$f":"IF(OR(Bal_Comp3[[#This Row],[Año Base]]<>0,Bal_Comp3[[#This Row],[Bal_1999]]<>0),1,0)","v":0}]
["Mayor",12030207,"EQUIPOS Y HERRAMIENTAS",null,null,null,{"$f":"IF(OR(Bal_Comp3[[#This Row],[Año Base]]<>0,Bal_Comp3[[#This Row],[Bal_1999]]<>0),1,0)","v":0}]
["Mayor",12030301,"TERRENOS",null,null,null,{"$f":"IF(OR(Bal_Comp3[[#This Row],[Año Base]]<>0,Bal_Comp3[[#This Row],[Bal_1999]]<>0),1,0)","v":0}]
["Mayor",12030302,"EDIFICACIONES",null,null,null,{"$f":"IF(OR(Bal_Comp3[[#This Row],[Año Base]]<>0,Bal_Comp3[[#This Row],[Bal_1999]]<>0),1,0)","v":0}]
["Mayor",12030401,"EDIFICACIONES",null,null,null,{"$f":"IF(OR(Bal_Comp3[[#This Row],[Año Base]]<>0,Bal_Comp3[[#This Row],[Bal_1999]]<>0),1,0)","v":0}]
["Mayor",12040101,"PLANTA \"A\"",null,null,null,{"$f":"IF(OR(Bal_Comp3[[#This Row],[Año Base]]<>0,Bal_Comp3[[#This Row],[Bal_1999]]<>0),1,0)","v":0}]
["Mayor",12050101,"ORGANIZACIÓN Y PUESTA EN MARCHA",null,null,null,{"$f":"IF(OR(Bal_Comp3[[#This Row],[Año Base]]<>0,Bal_Comp3[[#This Row],[Bal_1999]]<>0),1,0)","v":0}]
["Mayor",12050199,"AMORTIZACIÓN ACUMULADA",null,null,null,{"$f":"IF(OR(Bal_Comp3[[#This Row],[Año Base]]<>0,Bal_Comp3[[#This Row],[Bal_1999]]<>0),1,0)","v":0}]
["Mayor",12060101,"IMPUESTO DIFERIDO ACTIVO",null,null,null,{"$f":"IF(OR(Bal_Comp3[[#This Row],[Año Base]]<>0,Bal_Comp3[[#This Row],[Bal_1999]]<>0),1,0)","v":0}]
["Mayor",12070101,"INMUEBLES ARRENDADOS",null,null,null,{"$f":"IF(OR(Bal_Comp3[[#This Row],[Año Base]]<>0,Bal_Comp3[[#This Row],[Bal_1999]]<>0),1,0)","v":0}]
["Mayor",12079901,"OTRO ACTIVO NO CORRIENTE",null,null,null,{"$f":"IF(OR(Bal_Comp3[[#This Row],[Año Base]]<>0,Bal_Comp3[[#This Row],[Bal_1999]]<>0),1,0)","v":0}]
["Mayor",21010101,"BBVA PROVINCIAL ",null,null,null,{"$f":"IF(OR(Bal_Comp3[[#This Row],[Año Base]]<>0,Bal_Comp3[[#This Row],[Bal_1999]]<>0),1,0)","v":0}]
["Mayor","21010199","PORCIÓN CORRIENTE DEUDA A L/P",null,null,null,{"$f":"IF(OR(Bal_Comp3[[#This Row],[Año Base]]<>0,Bal_Comp3[[#This Row],[Bal_1999]]<>0),1,0)","v":0}]
["Mayor",21010201,"PEDRO PEREZ",null,null,null,{"$f":"IF(OR(Bal_Comp3[[#This Row],[Año Base]]<>0,Bal_Comp3[[#This Row],[Bal_1999]]<>0),1,0)","v":0}]
["Mayor",21020101,"PROVEEDORES NACIONALES",null,null,null,{"$f":"IF(OR(Bal_Comp3[[#This Row],[Año Base]]<>0,Bal_Comp3[[#This Row],[Bal_1999]]<>0),1,0)","v":0}]
["Mayor",21020201,"PROVEEDORES EN EL EXTERIOR",null,null,null,{"$f":"IF(OR(Bal_Comp3[[#This Row],[Año Base]]<>0,Bal_Comp3[[#This Row],[Bal_1999]]<>0),1,0)","v":0}]
["Mayor",21030101,"PEDRO PEREZ",null,null,null,{"$f":"IF(OR(Bal_Comp3[[#This Row],[Año Base]]<>0,Bal_Comp3[[#This Row],[Bal_1999]]<>0),1,0)","v":0}]
["Mayor",21040201,"LA TORTA, C.A",null,null,null,{"$f":"IF(OR(Bal_Comp3[[#This Row],[Año Base]]<>0,Bal_Comp3[[#This Row],[Bal_1999]]<>0),1,0)","v":0}]
["Mayor",21050101,"SEGURO SOCIAL OBLIGATORIO ",null,null,null,{"$f":"IF(OR(Bal_Comp3[[#This Row],[Año Base]]<>0,Bal_Comp3[[#This Row],[Bal_1999]]<>0),1,0)","v":0}]
["Mayor",21050102,"REGIMEN PRESTACIONAL DE EMPLEO",null,null,null,{"$f":"IF(OR(Bal_Comp3[[#This Row],[Año Base]]<>0,Bal_Comp3[[#This Row],[Bal_1999]]<>0),1,0)","v":0}]
["Mayor",21050103,"FONDO DE AHORRO PARA LA VIVIENDA",null,null,null,{"$f":"IF(OR(Bal_Comp3[[#This Row],[Año Base]]<>0,Bal_Comp3[[#This Row],[Bal_1999]]<>0),1,0)","v":0}]
["Mayor",21050104,"INCES",null,null,null,{"$f":"IF(OR(Bal_Comp3[[#This Row],[Año Base]]<>0,Bal_Comp3[[#This Row],[Bal_1999]]<>0),1,0)","v":0}]
["Mayor",21050105,"IMPUESTO SOBRE LA RENTA",null,null,null,{"$f":"IF(OR(Bal_Comp3[[#This Row],[Año Base]]<>0,Bal_Comp3[[#This Row],[Bal_1999]]<>0),1,0)","v":0}]
["Mayor",21060101,"NOMINAS POR PAGAR",null,null,null,{"$f":"IF(OR(Bal_Comp3[[#This Row],[Año Base]]<>0,Bal_Comp3[[#This Row],[Bal_1999]]<>0),1,0)","v":0}]
["Mayor",21060199,"OTRAS CUENTAS POR PAGAR",null,null,null,{"$f":"IF(OR(Bal_Comp3[[#This Row],[Año Base]]<>0,Bal_Comp3[[#This Row],[Bal_1999]]<>0),1,0)","v":0}]
["Mayor",21070101,"EJERCICIO CORRIENTE",null,null,null,{"$f":"IF(OR(Bal_Comp3[[#This Row],[Año Base]]<>0,Bal_Comp3[[#This Row],[Bal_1999]]<>0),1,0)","v":0}]
["Mayor",21070102,"RETENIDO A TERCEROS",null,null,null,{"$f":"IF(OR(Bal_Comp3[[#This Row],[Año Base]]<>0,Bal_Comp3[[#This Row],[Bal_1999]]<>0),1,0)","v":0}]
["Mayor",21070104,"RETENIDO A PROVEEDORES",null,null,null,{"$f":"IF(OR(Bal_Comp3[[#This Row],[Año Base]]<>0,Bal_Comp3[[#This Row],[Bal_1999]]<>0),1,0)","v":0}]
["Mayor",21070105,"RETENIDO SOBRE VENTAS",null,null,null,{"$f":"IF(OR(Bal_Comp3[[#This Row],[Año Base]]<>0,Bal_Comp3[[#This Row],[Bal_1999]]<>0),1,0)","v":0}]
["Mayor",21070201,"DEBITO FISCAL",null,null,null,{"$f":"IF(OR(Bal_Comp3[[#This Row],[Año Base]]<>0,Bal_Comp3[[#This Row],[Bal_1999]]<>0),1,0)","v":0}]
["Mayor",21070202,"IVA POR PAGAR",null,null,null,{"$f":"IF(OR(Bal_Comp3[[#This Row],[Año Base]]<>0,Bal_Comp3[[#This Row],[Bal_1999]]<>0),1,0)","v":0}]
["Mayor",21070203,"RETENIDO POR TERCEROS",null,null,null,{"$f":"IF(OR(Bal_Comp3[[#This Row],[Año Base]]<>0,Bal_Comp3[[#This Row],[Bal_1999]]<>0),1,0)","v":0}]
["Mayor",21070204,"RETENIDO A TERCEROS",null,null,null,{"$f":"IF(OR(Bal_Comp3[[#This Row],[Año Base]]<>0,Bal_Comp3[[#This Row],[Bal_1999]]<>0),1,0)","v":0}]
["Mayor",21070301,"ALCALDIA DE VALENCIA",null,null,null,{"$f":"IF(OR(Bal_Comp3[[#This Row],[Año Base]]<>0,Bal_Comp3[[#This Row],[Bal_1999]]<>0),1,0)","v":0}]
["Mayor",21070302,"ALCALDIA DE SAN DIEGO",null,null,null,{"$f":"IF(OR(Bal_Comp3[[#This Row],[Año Base]]<>0,Bal_Comp3[[#This Row],[Bal_1999]]<>0),1,0)","v":0}]
["Mayor",21080101,"PEDRO PEREZ",null,null,null,{"$f":"IF(OR(Bal_Comp3[[#This Row],[Año Base]]<>0,Bal_Comp3[[#This Row],[Bal_1999]]<>0),1,0)","v":0}]
["Mayor",21090101,"ANTICIPOS DE CLIENTES NACIONALES ",null,null,null,{"$f":"IF(OR(Bal_Comp3[[#This Row],[Año Base]]<>0,Bal_Comp3[[#This Row],[Bal_1999]]<>0),1,0)","v":0}]
["Mayor",21110101,"INTERESES BANCARIOS",null,null,null,{"$f":"IF(OR(Bal_Comp3[[#This Row],[Año Base]]<>0,Bal_Comp3[[#This Row],[Bal_1999]]<>0),1,0)","v":0}]
["Mayor",21110199,"OTROS GASTOS ACUMULADOS",null,null,null,{"$f":"IF(OR(Bal_Comp3[[#This Row],[Año Base]]<>0,Bal_Comp3[[#This Row],[Bal_1999]]<>0),1,0)","v":0}]
["Mayor",21110201,"IVSS",null,null,null,{"$f":"IF(OR(Bal_Comp3[[#This Row],[Año Base]]<>0,Bal_Comp3[[#This Row],[Bal_1999]]<>0),1,0)","v":0}]
["Mayor",21110202,"REGIMEN PRESTAC. DE EMPLEO",null,null,null,{"$f":"IF(OR(Bal_Comp3[[#This Row],[Año Base]]<>0,Bal_Comp3[[#This Row],[Bal_1999]]<>0),1,0)","v":0}]
["Mayor",21110203,"FONDO DE AHORRO PARA LA VIVIENDA",null,null,null,{"$f":"IF(OR(Bal_Comp3[[#This Row],[Año Base]]<>0,Bal_Comp3[[#This Row],[Bal_1999]]<>0),1,0)","v":0}]
["Mayor",21110204,"INCES",null,null,null,{"$f":"IF(OR(Bal_Comp3[[#This Row],[Año Base]]<>0,Bal_Comp3[[#This Row],[Bal_1999]]<>0),1,0)","v":0}]
["Mayor",21110301,"INTERESES PRESTACIONES SOCIALES",null,null,null,{"$f":"IF(OR(Bal_Comp3[[#This Row],[Año Base]]<>0,Bal_Comp3[[#This Row],[Bal_1999]]<>0),1,0)","v":0}]
["Mayor",21110302,"UTILIDADES",null,null,null,{"$f":"IF(OR(Bal_Comp3[[#This Row],[Año Base]]<>0,Bal_Comp3[[#This Row],[Bal_1999]]<>0),1,0)","v":0}]
["Mayor",21110303,"VACACIONES",null,null,null,{"$f":"IF(OR(Bal_Comp3[[#This Row],[Año Base]]<>0,Bal_Comp3[[#This Row],[Bal_1999]]<>0),1,0)","v":0}]
["Mayor",21110304,"BONO VACACIONAL",null,null,null,{"$f":"IF(OR(Bal_Comp3[[#This Row],[Año Base]]<>0,Bal_Comp3[[#This Row],[Bal_1999]]<>0),1,0)","v":0}]
["Mayor",21140401,"FONDO NACIONAL DEL DEPORTE",null,null,null,{"$f":"IF(OR(Bal_Comp3[[#This Row],[Año Base]]<>0,Bal_Comp3[[#This Row],[Bal_1999]]<>0),1,0)","v":0}]
["Mayor",21140402,"LEY ORGÁNICA DE CIENCIA Y TECNOLOGIA",null,null,null,{"$f":"IF(OR(Bal_Comp3[[#This Row],[Año Base]]<>0,Bal_Comp3[[#This Row],[Bal_1999]]<>0),1,0)","v":0}]
["Mayor",21140403,"FONDO NACIONAL ANTIDROGA",null,null,null,{"$f":"IF(OR(Bal_Comp3[[#This Row],[Año Base]]<>0,Bal_Comp3[[#This Row],[Bal_1999]]<>0),1,0)","v":0}]
["Mayor",22010101,"PRESTACIONES SOCIALES",null,null,null,{"$f":"IF(OR(Bal_Comp3[[#This Row],[Año Base]]<>0,Bal_Comp3[[#This Row],[Bal_1999]]<>0),1,0)","v":0}]
["Mayor",22010102,"ANTICIPO PRESTACIONES SOCIALES",null,null,null,{"$f":"IF(OR(Bal_Comp3[[#This Row],[Año Base]]<>0,Bal_Comp3[[#This Row],[Bal_1999]]<>0),1,0)","v":0}]
["Mayor",22020101,"BBVA PROVINCIAL",null,null,null,{"$f":"IF(OR(Bal_Comp3[[#This Row],[Año Base]]<>0,Bal_Comp3[[#This Row],[Bal_1999]]<>0),1,0)","v":0}]
["Mayor",22030101,"VENTAS A FUTURO",null,null,null,{"$f":"IF(OR(Bal_Comp3[[#This Row],[Año Base]]<>0,Bal_Comp3[[#This Row],[Bal_1999]]<>0),1,0)","v":0}]
["Mayor",22030199,"OTROS CREDITOS DIFERIDOS",null,null,null,{"$f":"IF(OR(Bal_Comp3[[#This Row],[Año Base]]<>0,Bal_Comp3[[#This Row],[Bal_1999]]<>0),1,0)","v":0}]
["Mayor",22040101,"IMPUESTO DIFERIDO PASIVO",null,null,null,{"$f":"IF(OR(Bal_Comp3[[#This Row],[Año Base]]<>0,Bal_Comp3[[#This Row],[Bal_1999]]<>0),1,0)","v":0}]
["Mayor",22050199,"OTROS PASIVOS NO CORRIENTES",null,null,null,{"$f":"IF(OR(Bal_Comp3[[#This Row],[Año Base]]<>0,Bal_Comp3[[#This Row],[Bal_1999]]<>0),1,0)","v":0}]
["Mayor",31010101,"PEDRO PEREZ",null,null,null,{"$f":"IF(OR(Bal_Comp3[[#This Row],[Año Base]]<>0,Bal_Comp3[[#This Row],[Bal_1999]]<>0),1,0)","v":0}]
["Mayor",31010201,"PEDRO PEREZ",null,null,null,{"$f":"IF(OR(Bal_Comp3[[#This Row],[Año Base]]<>0,Bal_Comp3[[#This Row],[Bal_1999]]<>0),1,0)","v":0}]
["Mayor",31020101,"UTILIDAD (DEFICIT) ACUMULADO",null,null,null,{"$f":"IF(OR(Bal_Comp3[[#This Row],[Año Base]]<>0,Bal_Comp3[[#This Row],[Bal_1999]]<>0),1,0)","v":0}]
["Mayor",31020102,"UTILIDAD (DEFICIT) DEL EJERCICIO",null,null,null,{"$f":"IF(OR(Bal_Comp3[[#This Row],[Año Base]]<>0,Bal_Comp3[[#This Row],[Bal_1999]]<>0),1,0)","v":0}]
["Mayor",31030101,"UTILIDAD (DEFICIT) EJERCICIO",null,null,null,{"$f":"IF(OR(Bal_Comp3[[#This Row],[Año Base]]<>0,Bal_Comp3[[#This Row],[Bal_1999]]<>0),1,0)","v":0}]
["Mayor",31030102,"CIERRE CUENTAS DE BALANCE",null,null,null,{"$f":"IF(OR(Bal_Comp3[[#This Row],[Año Base]]<>0,Bal_Comp3[[#This Row],[Bal_1999]]<>0),1,0)","v":0}]
["Mayor",31040101,"PEDRO PEREZ",null,null,null,{"$f":"IF(OR(Bal_Comp3[[#This Row],[Año Base]]<>0,Bal_Comp3[[#This Row],[Bal_1999]]<>0),1,0)","v":0}]
["Mayor",31050101,"RESERVA LEGAL",null,null,null,{"$f":"IF(OR(Bal_Comp3[[#This Row],[Año Base]]<>0,Bal_Comp3[[#This Row],[Bal_1999]]<>0),1,0)","v":0}]
["Mayor",31050201,"RESERVA PARA CONTIGENCIAS",null,null,null,{"$f":"IF(OR(Bal_Comp3[[#This Row],[Año Base]]<>0,Bal_Comp3[[#This Row],[Bal_1999]]<>0),1,0)","v":0}]
["Mayor",31060101,"TERRENOS",null,null,null,{"$f":"IF(OR(Bal_Comp3[[#This Row],[Año Base]]<>0,Bal_Comp3[[#This Row],[Bal_1999]]<>0),1,0)","v":0}]
["Mayor",31060102,"INMUEBLES",null,null,null,{"$f":"IF(OR(Bal_Comp3[[#This Row],[Año Base]]<>0,Bal_Comp3[[#This Row],[Bal_1999]]<>0),1,0)","v":0}]
["Mayor",31060103,"ISLR DIFERIDO POR REVALUACIÓN",null,null,null,{"$f":"IF(OR(Bal_Comp3[[#This Row],[Año Base]]<>0,Bal_Comp3[[#This Row],[Bal_1999]]<>0),1,0)","v":0}]
["Mayor",31080101,"ACTUALIZACION DEL PATRIMONIO",null,null,null,{"$f":"IF(OR(Bal_Comp3[[#This Row],[Año Base]]<>0,Bal_Comp3[[#This Row],[Bal_1999]]<>0),1,0)","v":0}]
["Mayor",31080102,"EXCLUSIONES FISCALES HISTÓRICAS ",null,null,null,{"$f":"IF(OR(Bal_Comp3[[#This Row],[Año Base]]<>0,Bal_Comp3[[#This Row],[Bal_1999]]<>0),1,0)","v":0}]
["Mayor",31080103,"REAJUSTE POR INFLACIÓN",null,null,null,{"$f":"IF(OR(Bal_Comp3[[#This Row],[Año Base]]<>0,Bal_Comp3[[#This Row],[Bal_1999]]<>0),1,0)","v":0}]
["Mayor",41010101,"VENTAS DE EXPORTACION",null,null,null,{"$f":"IF(OR(Bal_Comp3[[#This Row],[Año Base]]<>0,Bal_Comp3[[#This Row],[Bal_1999]]<>0),1,0)","v":0}]
["Mayor",41010201,"VENTAS DE MERCANCIAS",null,null,null,{"$f":"IF(OR(Bal_Comp3[[#This Row],[Año Base]]<>0,Bal_Comp3[[#This Row],[Bal_1999]]<>0),1,0)","v":0}]
["Mayor",41010301,"VENTAS A CREDITO",null,null,null,{"$f":"IF(OR(Bal_Comp3[[#This Row],[Año Base]]<>0,Bal_Comp3[[#This Row],[Bal_1999]]<>0),1,0)","v":0}]
["Mayor",41010302,"VENTAS DE CONTADO",null,null,null,{"$f":"IF(OR(Bal_Comp3[[#This Row],[Año Base]]<>0,Bal_Comp3[[#This Row],[Bal_1999]]<>0),1,0)","v":0}]
["Mayor",41010401,"SERVICIOS DE EXPORTACIÓN",null,null,null,{"$f":"IF(OR(Bal_Comp3[[#This Row],[Año Base]]<>0,Bal_Comp3[[#This Row],[Bal_1999]]<>0),1,0)","v":0}]
["Mayor",41010402,"SERVICIOS AL SECTOR PUBLICO",null,null,null,{"$f":"IF(OR(Bal_Comp3[[#This Row],[Año Base]]<>0,Bal_Comp3[[#This Row],[Bal_1999]]<>0),1,0)","v":0}]
["Mayor",41010403,"SERVICIOS AL SECTOR PRIVADO",null,null,null,{"$f":"IF(OR(Bal_Comp3[[#This Row],[Año Base]]<>0,Bal_Comp3[[#This Row],[Bal_1999]]<>0),1,0)","v":0}]
["Mayor",41010501,"HONORARIOS PROFESIONALES",null,null,null,{"$f":"IF(OR(Bal_Comp3[[#This Row],[Año Base]]<>0,Bal_Comp3[[#This Row],[Bal_1999]]<>0),1,0)","v":0}]
["Mayor",41010801,"BIENES MUEBLES",null,null,null,{"$f":"IF(OR(Bal_Comp3[[#This Row],[Año Base]]<>0,Bal_Comp3[[#This Row],[Bal_1999]]<>0),1,0)","v":0}]
["Mayor",41010802,"BIENES INMUEBLES",null,null,null,{"$f":"IF(OR(Bal_Comp3[[#This Row],[Año Base]]<>0,Bal_Comp3[[#This Row],[Bal_1999]]<>0),1,0)","v":0}]
["Mayor",41020101,"DEVOLUCIONES EN VENTAS",null,null,null,{"$f":"IF(OR(Bal_Comp3[[#This Row],[Año Base]]<>0,Bal_Comp3[[#This Row],[Bal_1999]]<>0),1,0)","v":0}]
["Mayor",41020102,"REBAJAS Y DESCUENTOS",null,null,null,{"$f":"IF(OR(Bal_Comp3[[#This Row],[Año Base]]<>0,Bal_Comp3[[#This Row],[Bal_1999]]<>0),1,0)","v":0}]
["Mayor",41030101,"VENTAS A FUTURO",null,null,null,{"$f":"IF(OR(Bal_Comp3[[#This Row],[Año Base]]<>0,Bal_Comp3[[#This Row],[Bal_1999]]<>0),1,0)","v":0}]
["Mayor",51010101,"MERCANCIAS VENDIDAS",null,null,null,{"$f":"IF(OR(Bal_Comp3[[#This Row],[Año Base]]<>0,Bal_Comp3[[#This Row],[Bal_1999]]<>0),1,0)","v":0}]
["Mayor",51010102,"VARIACIÓN DE INVENTARIOS",null,null,null,{"$f":"IF(OR(Bal_Comp3[[#This Row],[Año Base]]<>0,Bal_Comp3[[#This Row],[Bal_1999]]<>0),1,0)","v":0}]
["Mayor",51010201,"PRODUCTOS TERMINADOS VENDIDO",null,null,null,{"$f":"IF(OR(Bal_Comp3[[#This Row],[Año Base]]<>0,Bal_Comp3[[#This Row],[Bal_1999]]<>0),1,0)","v":0}]
["Mayor",51010301,"ADQUISICIÓN DE INMUEBLES VENDIDOS",null,null,null,{"$f":"IF(OR(Bal_Comp3[[#This Row],[Año Base]]<>0,Bal_Comp3[[#This Row],[Bal_1999]]<>0),1,0)","v":0}]
["Mayor",51010302,"MEJORAS A INMUEBLES VENDIDOS",null,null,null,{"$f":"IF(OR(Bal_Comp3[[#This Row],[Año Base]]<>0,Bal_Comp3[[#This Row],[Bal_1999]]<>0),1,0)","v":0}]
["Mayor",51010303,"GASTOS DE REGISTROS INMUEBLES VENDIDOS",null,null,null,{"$f":"IF(OR(Bal_Comp3[[#This Row],[Año Base]]<>0,Bal_Comp3[[#This Row],[Bal_1999]]<>0),1,0)","v":0}]
["Mayor",51010304,"AJUSTE POR INFLACIÒN INMUEBLES VENDIDOS",null,null,null,{"$f":"IF(OR(Bal_Comp3[[#This Row],[Año Base]]<>0,Bal_Comp3[[#This Row],[Bal_1999]]<>0),1,0)","v":0}]
["Mayor",51010401,"ACCIONES VENDIDAS",null,null,null,{"$f":"IF(OR(Bal_Comp3[[#This Row],[Año Base]]<>0,Bal_Comp3[[#This Row],[Bal_1999]]<>0),1,0)","v":0}]
["Mayor",51010501,"OTROS COSTOS DE VENTAS",null,null,null,{"$f":"IF(OR(Bal_Comp3[[#This Row],[Año Base]]<>0,Bal_Comp3[[#This Row],[Bal_1999]]<>0),1,0)","v":0}]
["Mayor",51020101,"MATERIALES E INSUMOS",null,null,null,{"$f":"IF(OR(Bal_Comp3[[#This Row],[Año Base]]<>0,Bal_Comp3[[#This Row],[Bal_1999]]<>0),1,0)","v":0}]
["Mayor",51020201,"SUELDOS DIRECTORES",null,null,null,{"$f":"IF(OR(Bal_Comp3[[#This Row],[Año Base]]<>0,Bal_Comp3[[#This Row],[Bal_1999]]<>0),1,0)","v":0}]
["Mayor",51020202,"SUELDOS Y SALARIOS",null,null,null,{"$f":"IF(OR(Bal_Comp3[[#This Row],[Año Base]]<>0,Bal_Comp3[[#This Row],[Bal_1999]]<>0),1,0)","v":0}]
["Mayor",51020203,"HORAS EXTRA, BONOS Y OTROS",null,null,null,{"$f":"IF(OR(Bal_Comp3[[#This Row],[Año Base]]<>0,Bal_Comp3[[#This Row],[Bal_1999]]<>0),1,0)","v":0}]
["Mayor",51020204,"CESTATICKET",null,null,null,{"$f":"IF(OR(Bal_Comp3[[#This Row],[Año Base]]<>0,Bal_Comp3[[#This Row],[Bal_1999]]<>0),1,0)","v":0}]
["Mayor",51020205,"OTRAS ASIGNACIONES",null,null,null,{"$f":"IF(OR(Bal_Comp3[[#This Row],[Año Base]]<>0,Bal_Comp3[[#This Row],[Bal_1999]]<>0),1,0)","v":0}]
["Mayor",51020206,"VACACIONES",null,null,null,{"$f":"IF(OR(Bal_Comp3[[#This Row],[Año Base]]<>0,Bal_Comp3[[#This Row],[Bal_1999]]<>0),1,0)","v":0}]
["Mayor",51020207,"BONO VACACIONAL",null,null,null,{"$f":"IF(OR(Bal_Comp3[[#This Row],[Año Base]]<>0,Bal_Comp3[[#This Row],[Bal_1999]]<>0),1,0)","v":0}]
["Mayor",51020208,"UTILIDADES",null,null,null,{"$f":"IF(OR(Bal_Comp3[[#This Row],[Año Base]]<>0,Bal_Comp3[[#This Row],[Bal_1999]]<>0),1,0)","v":0}]
["Mayor",51020209,"PRESTACIONES SOCIALES",null,null,null,{"$f":"IF(OR(Bal_Comp3[[#This Row],[Año Base]]<>0,Bal_Comp3[[#This Row],[Bal_1999]]<>0),1,0)","v":0}]
["Mayor",51020210,"INTERESES PRESTACIONES SOCIALES",null,null,null,{"$f":"IF(OR(Bal_Comp3[[#This Row],[Año Base]]<>0,Bal_Comp3[[#This Row],[Bal_1999]]<>0),1,0)","v":0}]
["Mayor",51020211,"APORTE PATRONAL FAOV",null,null,null,{"$f":"IF(OR(Bal_Comp3[[#This Row],[Año Base]]<>0,Bal_Comp3[[#This Row],[Bal_1999]]<>0),1,0)","v":0}]
["Mayor",51020212,"APORTE PATRONAL IVSS",null,null,null,{"$f":"IF(OR(Bal_Comp3[[#This Row],[Año Base]]<>0,Bal_Comp3[[#This Row],[Bal_1999]]<>0),1,0)","v":0}]
["Mayor",51020213,"APORTE PATRONAL REG PRESTAC DE EMPLEO",null,null,null,{"$f":"IF(OR(Bal_Comp3[[#This Row],[Año Base]]<>0,Bal_Comp3[[#This Row],[Bal_1999]]<>0),1,0)","v":0}]
["Mayor",51020214,"APORTE PATRONAL INCES",null,null,null,{"$f":"IF(OR(Bal_Comp3[[#This Row],[Año Base]]<>0,Bal_Comp3[[#This Row],[Bal_1999]]<>0),1,0)","v":0}]
["Mayor",51020215,"OTROS GASTOS DE PERSONAL",null,null,null,{"$f":"IF(OR(Bal_Comp3[[#This Row],[Año Base]]<>0,Bal_Comp3[[#This Row],[Bal_1999]]<>0),1,0)","v":0}]
["Mayor",51020301,"EDIFICACIONES",null,null,null,{"$f":"IF(OR(Bal_Comp3[[#This Row],[Año Base]]<>0,Bal_Comp3[[#This Row],[Bal_1999]]<>0),1,0)","v":0}]
["Mayor",51020302,"MAQUINARIAS Y EQUIPOS",null,null,null,{"$f":"IF(OR(Bal_Comp3[[#This Row],[Año Base]]<>0,Bal_Comp3[[#This Row],[Bal_1999]]<>0),1,0)","v":0}]
["Mayor",51020303,"INSTALACIONES",null,null,null,{"$f":"IF(OR(Bal_Comp3[[#This Row],[Año Base]]<>0,Bal_Comp3[[#This Row],[Bal_1999]]<>0),1,0)","v":0}]
["Mayor",51020304,"MOBILIARIO Y EQUIPOS DE OFICINA",null,null,null,{"$f":"IF(OR(Bal_Comp3[[#This Row],[Año Base]]<>0,Bal_Comp3[[#This Row],[Bal_1999]]<>0),1,0)","v":0}]
["Mayor",51020305,"EQUIPOS DE COMPUTACION",null,null,null,{"$f":"IF(OR(Bal_Comp3[[#This Row],[Año Base]]<>0,Bal_Comp3[[#This Row],[Bal_1999]]<>0),1,0)","v":0}]
["Mayor",51020306,"VEHICULOS",null,null,null,{"$f":"IF(OR(Bal_Comp3[[#This Row],[Año Base]]<>0,Bal_Comp3[[#This Row],[Bal_1999]]<>0),1,0)","v":0}]
["Mayor",51020307,"EQUIPOS Y HERRAMIENTAS",null,null,null,{"$f":"IF(OR(Bal_Comp3[[#This Row],[Año Base]]<>0,Bal_Comp3[[#This Row],[Bal_1999]]<>0),1,0)","v":0}]
["Mayor",51020308,"ACTIVO REVALUADO",null,null,null,{"$f":"IF(OR(Bal_Comp3[[#This Row],[Año Base]]<>0,Bal_Comp3[[#This Row],[Bal_1999]]<>0),1,0)","v":0}]
["Mayor",51020401,"GASTOS PREPAGADOS",null,null,null,{"$f":"IF(OR(Bal_Comp3[[#This Row],[Año Base]]<>0,Bal_Comp3[[#This Row],[Bal_1999]]<>0),1,0)","v":0}]
["Mayor",51020402,"INTANGIBLES",null,null,null,{"$f":"IF(OR(Bal_Comp3[[#This Row],[Año Base]]<>0,Bal_Comp3[[#This Row],[Bal_1999]]<>0),1,0)","v":0}]
["Mayor",51020403,"CARGOS DIFERIDOS",null,null,null,{"$f":"IF(OR(Bal_Comp3[[#This Row],[Año Base]]<>0,Bal_Comp3[[#This Row],[Bal_1999]]<>0),1,0)","v":0}]
["Mayor",51020501,"PATENTE MUNICIPAL",null,null,null,{"$f":"IF(OR(Bal_Comp3[[#This Row],[Año Base]]<>0,Bal_Comp3[[#This Row],[Bal_1999]]<>0),1,0)","v":0}]
["Mayor",51020502,"PUBLICIDAD Y POROPAGANDA",null,null,null,{"$f":"IF(OR(Bal_Comp3[[#This Row],[Año Base]]<>0,Bal_Comp3[[#This Row],[Bal_1999]]<>0),1,0)","v":0}]
["Mayor",51020503,"APORTE FONDO NACIONAL DEL DEPORTE",null,null,null,{"$f":"IF(OR(Bal_Comp3[[#This Row],[Año Base]]<>0,Bal_Comp3[[#This Row],[Bal_1999]]<>0),1,0)","v":0}]
["Mayor",51020504,"APORTE LOCTI",null,null,null,{"$f":"IF(OR(Bal_Comp3[[#This Row],[Año Base]]<>0,Bal_Comp3[[#This Row],[Bal_1999]]<>0),1,0)","v":0}]
["Mayor",51020505,"APORTE FONDO NACIONAL ANTIDROGA",null,null,null,{"$f":"IF(OR(Bal_Comp3[[#This Row],[Año Base]]<>0,Bal_Comp3[[#This Row],[Bal_1999]]<>0),1,0)","v":0}]
["Mayor",51020599,"OTROS IMPUESTOS Y APORTES",null,null,null,{"$f":"IF(OR(Bal_Comp3[[#This Row],[Año Base]]<>0,Bal_Comp3[[#This Row],[Bal_1999]]<>0),1,0)","v":0}]
["Mayor",51020601,"MAQUINARIA Y EQUIPOS",null,null,null,{"$f":"IF(OR(Bal_Comp3[[#This Row],[Año Base]]<>0,Bal_Comp3[[#This Row],[Bal_1999]]<>0),1,0)","v":0}]
["Mayor",51020602,"CONSTRUCCIÓN",null,null,null,{"$f":"IF(OR(Bal_Comp3[[#This Row],[Año Base]]<>0,Bal_Comp3[[#This Row],[Bal_1999]]<>0),1,0)","v":0}]
["Mayor",51020603,"FIEL CUMPLIMIENTO",null,null,null,{"$f":"IF(OR(Bal_Comp3[[#This Row],[Año Base]]<>0,Bal_Comp3[[#This Row],[Bal_1999]]<>0),1,0)","v":0}]
["Mayor",51020701,"ELECTRICIDAD Y ASEO",null,null,null,{"$f":"IF(OR(Bal_Comp3[[#This Row],[Año Base]]<>0,Bal_Comp3[[#This Row],[Bal_1999]]<>0),1,0)","v":0}]
["Mayor",51010702,"COMUNICACIONES",null,null,null,{"$f":"IF(OR(Bal_Comp3[[#This Row],[Año Base]]<>0,Bal_Comp3[[#This Row],[Bal_1999]]<>0),1,0)","v":0}]
["Mayor",51020801,"MAQUINARIAS Y EQUIPOS",null,null,null,{"$f":"IF(OR(Bal_Comp3[[#This Row],[Año Base]]<>0,Bal_Comp3[[#This Row],[Bal_1999]]<>0),1,0)","v":0}]
["Mayor",51020802,"INMUEBLES",null,null,null,{"$f":"IF(OR(Bal_Comp3[[#This Row],[Año Base]]<>0,Bal_Comp3[[#This Row],[Bal_1999]]<>0),1,0)","v":0}]
["Mayor",51020901,"CONSULTORES ESTERNOS",null,null,null,{"$f":"IF(OR(Bal_Comp3[[#This Row],[Año Base]]<>0,Bal_Comp3[[#This Row],[Bal_1999]]<>0),1,0)","v":0}]
["Mayor",51029901,"MATERIAL DE OFICINA",null,null,null,{"$f":"IF(OR(Bal_Comp3[[#This Row],[Año Base]]<>0,Bal_Comp3[[#This Row],[Bal_1999]]<>0),1,0)","v":0}]
["Mayor",51029902,"GASTOS DE VIAJE",null,null,null,{"$f":"IF(OR(Bal_Comp3[[#This Row],[Año Base]]<>0,Bal_Comp3[[#This Row],[Bal_1999]]<>0),1,0)","v":0}]
["Mayor",51029999,"OTROS GASTOS",null,null,null,{"$f":"IF(OR(Bal_Comp3[[#This Row],[Año Base]]<>0,Bal_Comp3[[#This Row],[Bal_1999]]<>0),1,0)","v":0}]
["Mayor",51090101,"MATERIALES Y SUMINSTROS UTILIZADOS",null,null,null,{"$f":"IF(OR(Bal_Comp3[[#This Row],[Año Base]]<>0,Bal_Comp3[[#This Row],[Bal_1999]]<>0),1,0)","v":0}]
["Mayor",51090201,"SUELDOS DIRECTORES",null,null,null,{"$f":"IF(OR(Bal_Comp3[[#This Row],[Año Base]]<>0,Bal_Comp3[[#This Row],[Bal_1999]]<>0),1,0)","v":0}]
["Mayor",51090202,"SUELDOS Y SALARIOS",null,null,null,{"$f":"IF(OR(Bal_Comp3[[#This Row],[Año Base]]<>0,Bal_Comp3[[#This Row],[Bal_1999]]<>0),1,0)","v":0}]
["Mayor",51090203,"HORAS EXTRA, BONOS Y OTROS",null,null,null,{"$f":"IF(OR(Bal_Comp3[[#This Row],[Año Base]]<>0,Bal_Comp3[[#This Row],[Bal_1999]]<>0),1,0)","v":0}]
["Mayor",51090204,"CESTATICKET",null,null,null,{"$f":"IF(OR(Bal_Comp3[[#This Row],[Año Base]]<>0,Bal_Comp3[[#This Row],[Bal_1999]]<>0),1,0)","v":0}]
["Mayor",51090205,"OTRAS ASIGNACIONES",null,null,null,{"$f":"IF(OR(Bal_Comp3[[#This Row],[Año Base]]<>0,Bal_Comp3[[#This Row],[Bal_1999]]<>0),1,0)","v":0}]
["Mayor",51090206,"VACACIONES",null,null,null,{"$f":"IF(OR(Bal_Comp3[[#This Row],[Año Base]]<>0,Bal_Comp3[[#This Row],[Bal_1999]]<>0),1,0)","v":0}]
["Mayor",51090207,"BONO VACACIONAL",null,null,null,{"$f":"IF(OR(Bal_Comp3[[#This Row],[Año Base]]<>0,Bal_Comp3[[#This Row],[Bal_1999]]<>0),1,0)","v":0}]
["Mayor",51090208,"UTILIDADES",null,null,null,{"$f":"IF(OR(Bal_Comp3[[#This Row],[Año Base]]<>0,Bal_Comp3[[#This Row],[Bal_1999]]<>0),1,0)","v":0}]
["Mayor",51090209,"PRESTACIONES SOCIALES",null,null,null,{"$f":"IF(OR(Bal_Comp3[[#This Row],[Año Base]]<>0,Bal_Comp3[[#This Row],[Bal_1999]]<>0),1,0)","v":0}]
["Mayor",51090210,"INTERESES PRESTACIONES SOCIALES",null,null,null,{"$f":"IF(OR(Bal_Comp3[[#This Row],[Año Base]]<>0,Bal_Comp3[[#This Row],[Bal_1999]]<>0),1,0)","v":0}]
["Mayor",51090211,"APORTE PATRONAL FAOV",null,null,null,{"$f":"IF(OR(Bal_Comp3[[#This Row],[Año Base]]<>0,Bal_Comp3[[#This Row],[Bal_1999]]<>0),1,0)","v":0}]
["Mayor",51090212,"APORTE PATRONAL IVSS",null,null,null,{"$f":"IF(OR(Bal_Comp3[[#This Row],[Año Base]]<>0,Bal_Comp3[[#This Row],[Bal_1999]]<>0),1,0)","v":0}]
["Mayor",51090213,"APORTE PATRONAL REG PRESTAC DE EMPLEO",null,null,null,{"$f":"IF(OR(Bal_Comp3[[#This Row],[Año Base]]<>0,Bal_Comp3[[#This Row],[Bal_1999]]<>0),1,0)","v":0}]
["Mayor",51090214,"APORTE PATRONAL INCES",null,null,null,{"$f":"IF(OR(Bal_Comp3[[#This Row],[Año Base]]<>0,Bal_Comp3[[#This Row],[Bal_1999]]<>0),1,0)","v":0}]
["Mayor",51090215,"DOTACIÓN UNIFORMES Y BOTAS",null,null,null,{"$f":"IF(OR(Bal_Comp3[[#This Row],[Año Base]]<>0,Bal_Comp3[[#This Row],[Bal_1999]]<>0),1,0)","v":0}]
["Mayor",51090216,"TRANSPORTE COLECTIVO",null,null,null,{"$f":"IF(OR(Bal_Comp3[[#This Row],[Año Base]]<>0,Bal_Comp3[[#This Row],[Bal_1999]]<>0),1,0)","v":0}]
["Mayor",51090217,"OTROS GASTOS DE PERSONAL",null,null,null,{"$f":"IF(OR(Bal_Comp3[[#This Row],[Año Base]]<>0,Bal_Comp3[[#This Row],[Bal_1999]]<>0),1,0)","v":0}]
["Mayor",51090301,"SUELDOS DIRECTORES",null,null,null,{"$f":"IF(OR(Bal_Comp3[[#This Row],[Año Base]]<>0,Bal_Comp3[[#This Row],[Bal_1999]]<>0),1,0)","v":0}]
["Mayor",51090302,"SUELDOS Y SALARIOS",null,null,null,{"$f":"IF(OR(Bal_Comp3[[#This Row],[Año Base]]<>0,Bal_Comp3[[#This Row],[Bal_1999]]<>0),1,0)","v":0}]
["Mayor",51090303,"HORAS EXTRA, BONOS Y OTROS",null,null,null,{"$f":"IF(OR(Bal_Comp3[[#This Row],[Año Base]]<>0,Bal_Comp3[[#This Row],[Bal_1999]]<>0),1,0)","v":0}]
["Mayor",51090304,"CESTATICKET",null,null,null,{"$f":"IF(OR(Bal_Comp3[[#This Row],[Año Base]]<>0,Bal_Comp3[[#This Row],[Bal_1999]]<>0),1,0)","v":0}]
["Mayor",51090305,"OTRAS ASIGNACIONES",null,null,null,{"$f":"IF(OR(Bal_Comp3[[#This Row],[Año Base]]<>0,Bal_Comp3[[#This Row],[Bal_1999]]<>0),1,0)","v":0}]
["Mayor",51090306,"VACACIONES",null,null,null,{"$f":"IF(OR(Bal_Comp3[[#This Row],[Año Base]]<>0,Bal_Comp3[[#This Row],[Bal_1999]]<>0),1,0)","v":0}]
["Mayor",51090307,"BONO VACACIONAL",null,null,null,{"$f":"IF(OR(Bal_Comp3[[#This Row],[Año Base]]<>0,Bal_Comp3[[#This Row],[Bal_1999]]<>0),1,0)","v":0}]
["Mayor",51090308,"UTILIDADES",null,null,null,{"$f":"IF(OR(Bal_Comp3[[#This Row],[Año Base]]<>0,Bal_Comp3[[#This Row],[Bal_1999]]<>0),1,0)","v":0}]
["Mayor",51090309,"PRESTACIONES SOCIALES",null,null,null,{"$f":"IF(OR(Bal_Comp3[[#This Row],[Año Base]]<>0,Bal_Comp3[[#This Row],[Bal_1999]]<>0),1,0)","v":0}]
["Mayor",51090310,"INTERESES PRESTACIONES SOCIALES",null,null,null,{"$f":"IF(OR(Bal_Comp3[[#This Row],[Año Base]]<>0,Bal_Comp3[[#This Row],[Bal_1999]]<>0),1,0)","v":0}]
["Mayor",51090311,"APORTE PATRONAL FAOV",null,null,null,{"$f":"IF(OR(Bal_Comp3[[#This Row],[Año Base]]<>0,Bal_Comp3[[#This Row],[Bal_1999]]<>0),1,0)","v":0}]
["Mayor",51090312,"APORTE PATRONAL IVSS",null,null,null,{"$f":"IF(OR(Bal_Comp3[[#This Row],[Año Base]]<>0,Bal_Comp3[[#This Row],[Bal_1999]]<>0),1,0)","v":0}]
["Mayor",51090313,"APORTE PATRONAL REG PRESTAC DE EMPLEO",null,null,null,{"$f":"IF(OR(Bal_Comp3[[#This Row],[Año Base]]<>0,Bal_Comp3[[#This Row],[Bal_1999]]<>0),1,0)","v":0}]
["Mayor",51090314,"APORTE PATRONAL INCES",null,null,null,{"$f":"IF(OR(Bal_Comp3[[#This Row],[Año Base]]<>0,Bal_Comp3[[#This Row],[Bal_1999]]<>0),1,0)","v":0}]
["Mayor",51090315,"DOTACIÓN UNIFORMES Y BOTAS",null,null,null,{"$f":"IF(OR(Bal_Comp3[[#This Row],[Año Base]]<>0,Bal_Comp3[[#This Row],[Bal_1999]]<>0),1,0)","v":0}]
["Mayor",51090316,"TRANSPORTE COLECTIVO",null,null,null,{"$f":"IF(OR(Bal_Comp3[[#This Row],[Año Base]]<>0,Bal_Comp3[[#This Row],[Bal_1999]]<>0),1,0)","v":0}]
["Mayor",51090317,"OTROS GASTOS DE PERSONAL",null,null,null,{"$f":"IF(OR(Bal_Comp3[[#This Row],[Año Base]]<>0,Bal_Comp3[[#This Row],[Bal_1999]]<>0),1,0)","v":0}]
["Mayor",51090401,"EDIFICACIONES",null,null,null,{"$f":"IF(OR(Bal_Comp3[[#This Row],[Año Base]]<>0,Bal_Comp3[[#This Row],[Bal_1999]]<>0),1,0)","v":0}]
["Mayor",51090402,"MAQUINARIAS Y EQUIPOS",null,null,null,{"$f":"IF(OR(Bal_Comp3[[#This Row],[Año Base]]<>0,Bal_Comp3[[#This Row],[Bal_1999]]<>0),1,0)","v":0}]
["Mayor",51090403,"INSTALACIONES",null,null,null,{"$f":"IF(OR(Bal_Comp3[[#This Row],[Año Base]]<>0,Bal_Comp3[[#This Row],[Bal_1999]]<>0),1,0)","v":0}]
["Mayor",51090404,"MOBILIARIO Y EQUIPOS DE OFICINA",null,null,null,{"$f":"IF(OR(Bal_Comp3[[#This Row],[Año Base]]<>0,Bal_Comp3[[#This Row],[Bal_1999]]<>0),1,0)","v":0}]
["Mayor",51090405,"EQUIPOS DE COMPUTACION",null,null,null,{"$f":"IF(OR(Bal_Comp3[[#This Row],[Año Base]]<>0,Bal_Comp3[[#This Row],[Bal_1999]]<>0),1,0)","v":0}]
["Mayor",51090406,"VEHICULOS",null,null,null,{"$f":"IF(OR(Bal_Comp3[[#This Row],[Año Base]]<>0,Bal_Comp3[[#This Row],[Bal_1999]]<>0),1,0)","v":0}]
["Mayor",51090407,"EQUIPOS Y HERRAMIENTAS",null,null,null,{"$f":"IF(OR(Bal_Comp3[[#This Row],[Año Base]]<>0,Bal_Comp3[[#This Row],[Bal_1999]]<>0),1,0)","v":0}]
["Mayor",51090408,"ACTIVO REVALUADO",null,null,null,{"$f":"IF(OR(Bal_Comp3[[#This Row],[Año Base]]<>0,Bal_Comp3[[#This Row],[Bal_1999]]<>0),1,0)","v":0}]
["Mayor",51090501,"GASTOS PREPAGADOS",null,null,null,{"$f":"IF(OR(Bal_Comp3[[#This Row],[Año Base]]<>0,Bal_Comp3[[#This Row],[Bal_1999]]<>0),1,0)","v":0}]
["Mayor",51090502,"INTANGIBLES",null,null,null,{"$f":"IF(OR(Bal_Comp3[[#This Row],[Año Base]]<>0,Bal_Comp3[[#This Row],[Bal_1999]]<>0),1,0)","v":0}]
["Mayor",51090503,"CARGOS DIFERIDOS",null,null,null,{"$f":"IF(OR(Bal_Comp3[[#This Row],[Año Base]]<>0,Bal_Comp3[[#This Row],[Bal_1999]]<>0),1,0)","v":0}]
["Mayor",51090601,"PATENTE MUNICIPAL",null,null,null,{"$f":"IF(OR(Bal_Comp3[[#This Row],[Año Base]]<>0,Bal_Comp3[[#This Row],[Bal_1999]]<>0),1,0)","v":0}]
["Mayor",51090602,"PUBLICIDAD Y POROPAGANDA",null,null,null,{"$f":"IF(OR(Bal_Comp3[[#This Row],[Año Base]]<>0,Bal_Comp3[[#This Row],[Bal_1999]]<>0),1,0)","v":0}]
["Mayor",51090603,"APORTE FONDO NACIONAL DEL DEPORTE",null,null,null,{"$f":"IF(OR(Bal_Comp3[[#This Row],[Año Base]]<>0,Bal_Comp3[[#This Row],[Bal_1999]]<>0),1,0)","v":0}]
["Mayor",51090604,"APORTE LOCTI",null,null,null,{"$f":"IF(OR(Bal_Comp3[[#This Row],[Año Base]]<>0,Bal_Comp3[[#This Row],[Bal_1999]]<>0),1,0)","v":0}]
["Mayor",51090605,"APORTE FONDO NACIONAL ANTIDROGA",null,null,null,{"$f":"IF(OR(Bal_Comp3[[#This Row],[Año Base]]<>0,Bal_Comp3[[#This Row],[Bal_1999]]<>0),1,0)","v":0}]
["Mayor",51090606,"OTROS IMPUESTOS Y APORTES",null,null,null,{"$f":"IF(OR(Bal_Comp3[[#This Row],[Año Base]]<>0,Bal_Comp3[[#This Row],[Bal_1999]]<>0),1,0)","v":0}]
["Mayor",51090701,"MAQUINARIA Y EQUIPOS",null,null,null,{"$f":"IF(OR(Bal_Comp3[[#This Row],[Año Base]]<>0,Bal_Comp3[[#This Row],[Bal_1999]]<>0),1,0)","v":0}]
["Mayor",51090702,"CONSTRUCCIÓN",null,null,null,{"$f":"IF(OR(Bal_Comp3[[#This Row],[Año Base]]<>0,Bal_Comp3[[#This Row],[Bal_1999]]<>0),1,0)","v":0}]
["Mayor",51090703,"FIEL CUMPLIMIENTO",null,null,null,{"$f":"IF(OR(Bal_Comp3[[#This Row],[Año Base]]<>0,Bal_Comp3[[#This Row],[Bal_1999]]<>0),1,0)","v":0}]
["Mayor",51090801,"ELECTRICIDAD Y ASEO",null,null,null,{"$f":"IF(OR(Bal_Comp3[[#This Row],[Año Base]]<>0,Bal_Comp3[[#This Row],[Bal_1999]]<>0),1,0)","v":0}]
["Mayor",51090702,"COMUNICACIONES",null,null,null,{"$f":"IF(OR(Bal_Comp3[[#This Row],[Año Base]]<>0,Bal_Comp3[[#This Row],[Bal_1999]]<>0),1,0)","v":0}]
["Mayor",51090901,"MAQUINARIAS Y EQUIPOS",null,null,null,{"$f":"IF(OR(Bal_Comp3[[#This Row],[Año Base]]<>0,Bal_Comp3[[#This Row],[Bal_1999]]<>0),1,0)","v":0}]
["Mayor",51090902,"INMUEBLES",null,null,null,{"$f":"IF(OR(Bal_Comp3[[#This Row],[Año Base]]<>0,Bal_Comp3[[#This Row],[Bal_1999]]<>0),1,0)","v":0}]
["Mayor",51091001,"CONSULTORES ESTERNOS",null,null,null,{"$f":"IF(OR(Bal_Comp3[[#This Row],[Año Base]]<>0,Bal_Comp3[[#This Row],[Bal_1999]]<>0),1,0)","v":0}]
["Mayor",51091002,"ASISTENCIA TECNOLOGICA",null,null,null,{"$f":"IF(OR(Bal_Comp3[[#This Row],[Año Base]]<>0,Bal_Comp3[[#This Row],[Bal_1999]]<>0),1,0)","v":0}]
["Mayor",51091099,"OTROS CONSULTORES",null,null,null,{"$f":"IF(OR(Bal_Comp3[[#This Row],[Año Base]]<>0,Bal_Comp3[[#This Row],[Bal_1999]]<>0),1,0)","v":0}]
["Mayor",51091101,"MATERIAL DE OFICINA",null,null,null,{"$f":"IF(OR(Bal_Comp3[[#This Row],[Año Base]]<>0,Bal_Comp3[[#This Row],[Bal_1999]]<>0),1,0)","v":0}]
["Mayor",51091102,"GASTOS DE VIAJE",null,null,null,{"$f":"IF(OR(Bal_Comp3[[#This Row],[Año Base]]<>0,Bal_Comp3[[#This Row],[Bal_1999]]<>0),1,0)","v":0}]
["Mayor",51091103,"LIBERALIDADES Y DONACIONES",null,null,null,{"$f":"IF(OR(Bal_Comp3[[#This Row],[Año Base]]<>0,Bal_Comp3[[#This Row],[Bal_1999]]<>0),1,0)","v":0}]
["Mayor",51091199,"OTROS GASTOS",null,null,null,{"$f":"IF(OR(Bal_Comp3[[#This Row],[Año Base]]<>0,Bal_Comp3[[#This Row],[Bal_1999]]<>0),1,0)","v":0}]
["Mayor",51099901,"TRANSF A PRODUCT EN PROCESO",null,null,null,{"$f":"IF(OR(Bal_Comp3[[#This Row],[Año Base]]<>0,Bal_Comp3[[#This Row],[Bal_1999]]<>0),1,0)","v":0}]
["Mayor",61010101,"SUELDO DE DIRECTORES",null,null,null,{"$f":"IF(OR(Bal_Comp3[[#This Row],[Año Base]]<>0,Bal_Comp3[[#This Row],[Bal_1999]]<>0),1,0)","v":0}]
["Mayor",61010102,"SUELDOS Y SALARIOS",null,null,null,{"$f":"IF(OR(Bal_Comp3[[#This Row],[Año Base]]<>0,Bal_Comp3[[#This Row],[Bal_1999]]<>0),1,0)","v":0}]
["Mayor",61010103,"HORAS EXTRA, BONOS Y OTROS",null,null,null,{"$f":"IF(OR(Bal_Comp3[[#This Row],[Año Base]]<>0,Bal_Comp3[[#This Row],[Bal_1999]]<>0),1,0)","v":0}]
["Mayor",61010104,"CESTATICKET",null,null,null,{"$f":"IF(OR(Bal_Comp3[[#This Row],[Año Base]]<>0,Bal_Comp3[[#This Row],[Bal_1999]]<>0),1,0)","v":0}]
["Mayor",61010105,"OTRAS ASIGNACIONES AL PERSONAL",null,null,null,{"$f":"IF(OR(Bal_Comp3[[#This Row],[Año Base]]<>0,Bal_Comp3[[#This Row],[Bal_1999]]<>0),1,0)","v":0}]
["Mayor",61010106,"VACACIONES",null,null,null,{"$f":"IF(OR(Bal_Comp3[[#This Row],[Año Base]]<>0,Bal_Comp3[[#This Row],[Bal_1999]]<>0),1,0)","v":0}]
["Mayor",61010107,"BONO VACACIONAL",null,null,null,{"$f":"IF(OR(Bal_Comp3[[#This Row],[Año Base]]<>0,Bal_Comp3[[#This Row],[Bal_1999]]<>0),1,0)","v":0}]
["Mayor",61010108,"UTILIDADES",null,null,null,{"$f":"IF(OR(Bal_Comp3[[#This Row],[Año Base]]<>0,Bal_Comp3[[#This Row],[Bal_1999]]<>0),1,0)","v":0}]
["Mayor",61010109,"PRESTACIONES SOCIALES",null,null,null,{"$f":"IF(OR(Bal_Comp3[[#This Row],[Año Base]]<>0,Bal_Comp3[[#This Row],[Bal_1999]]<>0),1,0)","v":0}]
["Mayor",61010110,"INTERESES PRESTACIONES SOCIALES",null,null,null,{"$f":"IF(OR(Bal_Comp3[[#This Row],[Año Base]]<>0,Bal_Comp3[[#This Row],[Bal_1999]]<>0),1,0)","v":0}]
["Mayor",61010111,"APORTE PATRONAL FAOV",null,null,null,{"$f":"IF(OR(Bal_Comp3[[#This Row],[Año Base]]<>0,Bal_Comp3[[#This Row],[Bal_1999]]<>0),1,0)","v":0}]
["Mayor",61010112,"APORTE PATRONAL IVSS",null,null,null,{"$f":"IF(OR(Bal_Comp3[[#This Row],[Año Base]]<>0,Bal_Comp3[[#This Row],[Bal_1999]]<>0),1,0)","v":0}]
["Mayor",61010113,"APORTE PATRONAL REG PRESTAC DE EMPLEO",null,null,null,{"$f":"IF(OR(Bal_Comp3[[#This Row],[Año Base]]<>0,Bal_Comp3[[#This Row],[Bal_1999]]<>0),1,0)","v":0}]
["Mayor",61010114,"APORTE PATRONAL INCES",null,null,null,{"$f":"IF(OR(Bal_Comp3[[#This Row],[Año Base]]<>0,Bal_Comp3[[#This Row],[Bal_1999]]<>0),1,0)","v":0}]
["Mayor",61010115,"DOTACIÓN UNIFORMES Y BOTAS",null,null,null,{"$f":"IF(OR(Bal_Comp3[[#This Row],[Año Base]]<>0,Bal_Comp3[[#This Row],[Bal_1999]]<>0),1,0)","v":0}]
["Mayor",61010116,"TRANSPORTE DEL PERSONAL",null,null,null,{"$f":"IF(OR(Bal_Comp3[[#This Row],[Año Base]]<>0,Bal_Comp3[[#This Row],[Bal_1999]]<>0),1,0)","v":0}]
["Mayor",61010199,"OTROS COSTOS DE PERSONAL",null,null,null,{"$f":"IF(OR(Bal_Comp3[[#This Row],[Año Base]]<>0,Bal_Comp3[[#This Row],[Bal_1999]]<>0),1,0)","v":0}]
["Mayor",61010201,"EDIFICACIONES",null,null,null,{"$f":"IF(OR(Bal_Comp3[[#This Row],[Año Base]]<>0,Bal_Comp3[[#This Row],[Bal_1999]]<>0),1,0)","v":0}]
["Mayor",61010202,"MAQUINARIAS Y EQUIPOS",null,null,null,{"$f":"IF(OR(Bal_Comp3[[#This Row],[Año Base]]<>0,Bal_Comp3[[#This Row],[Bal_1999]]<>0),1,0)","v":0}]
["Mayor",61010203,"INSTALACIONES",null,null,null,{"$f":"IF(OR(Bal_Comp3[[#This Row],[Año Base]]<>0,Bal_Comp3[[#This Row],[Bal_1999]]<>0),1,0)","v":0}]
["Mayor",61010204,"MOBILIARIO Y EQUIPOS DE OFICINA",null,null,null,{"$f":"IF(OR(Bal_Comp3[[#This Row],[Año Base]]<>0,Bal_Comp3[[#This Row],[Bal_1999]]<>0),1,0)","v":0}]
["Mayor",61010205,"EQUIPOS DE COMPUTACION",null,null,null,{"$f":"IF(OR(Bal_Comp3[[#This Row],[Año Base]]<>0,Bal_Comp3[[#This Row],[Bal_1999]]<>0),1,0)","v":0}]
["Mayor",61010206,"VEHICULOS",null,null,null,{"$f":"IF(OR(Bal_Comp3[[#This Row],[Año Base]]<>0,Bal_Comp3[[#This Row],[Bal_1999]]<>0),1,0)","v":0}]
["Mayor",61010207,"EQUIPOS Y HERRAMIENTAS",null,null,null,{"$f":"IF(OR(Bal_Comp3[[#This Row],[Año Base]]<>0,Bal_Comp3[[#This Row],[Bal_1999]]<>0),1,0)","v":0}]
["Mayor",61010208,"ACTIVOS REVALUADO",null,null,null,{"$f":"IF(OR(Bal_Comp3[[#This Row],[Año Base]]<>0,Bal_Comp3[[#This Row],[Bal_1999]]<>0),1,0)","v":0}]
["Mayor",61010301,"GASTOS PREPAGADOS",null,null,null,{"$f":"IF(OR(Bal_Comp3[[#This Row],[Año Base]]<>0,Bal_Comp3[[#This Row],[Bal_1999]]<>0),1,0)","v":0}]
["Mayor",61010302,"INTANGIBLES",null,null,null,{"$f":"IF(OR(Bal_Comp3[[#This Row],[Año Base]]<>0,Bal_Comp3[[#This Row],[Bal_1999]]<>0),1,0)","v":0}]
["Mayor",61010303,"CARGOS DIFERIDOS",null,null,null,{"$f":"IF(OR(Bal_Comp3[[#This Row],[Año Base]]<>0,Bal_Comp3[[#This Row],[Bal_1999]]<>0),1,0)","v":0}]
["Mayor",61010401,"PATENTE MUNICIPAL",null,null,null,{"$f":"IF(OR(Bal_Comp3[[#This Row],[Año Base]]<>0,Bal_Comp3[[#This Row],[Bal_1999]]<>0),1,0)","v":0}]
["Mayor",61010402,"PUBLICIDAD Y PROPAGANDA",null,null,null,{"$f":"IF(OR(Bal_Comp3[[#This Row],[Año Base]]<>0,Bal_Comp3[[#This Row],[Bal_1999]]<>0),1,0)","v":0}]
["Mayor",61010403,"DERECHOS DE FRENTE",null,null,null,{"$f":"IF(OR(Bal_Comp3[[#This Row],[Año Base]]<>0,Bal_Comp3[[#This Row],[Bal_1999]]<>0),1,0)","v":0}]
["Mayor",61010404,"VEHICULOS",null,null,null,{"$f":"IF(OR(Bal_Comp3[[#This Row],[Año Base]]<>0,Bal_Comp3[[#This Row],[Bal_1999]]<>0),1,0)","v":0}]
["Mayor",61010405,"APORTE FONDO NACIONAL DEL DEPORTE",null,null,null,{"$f":"IF(OR(Bal_Comp3[[#This Row],[Año Base]]<>0,Bal_Comp3[[#This Row],[Bal_1999]]<>0),1,0)","v":0}]
["Mayor",61010406,"APORTE LOCTI",null,null,null,{"$f":"IF(OR(Bal_Comp3[[#This Row],[Año Base]]<>0,Bal_Comp3[[#This Row],[Bal_1999]]<>0),1,0)","v":0}]
["Mayor",61010407,"APORTE FONDO NACIONAL ANTIDROGA",null,null,null,{"$f":"IF(OR(Bal_Comp3[[#This Row],[Año Base]]<>0,Bal_Comp3[[#This Row],[Bal_1999]]<>0),1,0)","v":0}]
["Mayor",61010501,"RESPONSABILIDAD CIVIL",null,null,null,{"$f":"IF(OR(Bal_Comp3[[#This Row],[Año Base]]<>0,Bal_Comp3[[#This Row],[Bal_1999]]<>0),1,0)","v":0}]
["Mayor",61010502,"VEHICULOS",null,null,null,{"$f":"IF(OR(Bal_Comp3[[#This Row],[Año Base]]<>0,Bal_Comp3[[#This Row],[Bal_1999]]<>0),1,0)","v":0}]
["Mayor",61010503,"MOBILIARIOS Y EQUIPOS",null,null,null,{"$f":"IF(OR(Bal_Comp3[[#This Row],[Año Base]]<>0,Bal_Comp3[[#This Row],[Bal_1999]]<>0),1,0)","v":0}]
["Mayor",61010503,"HOSPITALIZACIÓN, CIRUGÍA Y MATERNIDAD",null,null,null,{"$f":"IF(OR(Bal_Comp3[[#This Row],[Año Base]]<>0,Bal_Comp3[[#This Row],[Bal_1999]]<>0),1,0)","v":0}]
["Mayor",61010503,"SEGURO DE ACCIDENTES PERSONALES",null,null,null,{"$f":"IF(OR(Bal_Comp3[[#This Row],[Año Base]]<>0,Bal_Comp3[[#This Row],[Bal_1999]]<>0),1,0)","v":0}]
["Mayor",61010601,"ELECTRICIDAD Y ASEO",null,null,null,{"$f":"IF(OR(Bal_Comp3[[#This Row],[Año Base]]<>0,Bal_Comp3[[#This Row],[Bal_1999]]<>0),1,0)","v":0}]
["Mayor",61010602,"TELEFONIA FIJA, MOVIL E INTERNET",null,null,null,{"$f":"IF(OR(Bal_Comp3[[#This Row],[Año Base]]<>0,Bal_Comp3[[#This Row],[Bal_1999]]<>0),1,0)","v":0}]
["Mayor",61010603,"TAXI Y MENSAJERIA",null,null,null,{"$f":"IF(OR(Bal_Comp3[[#This Row],[Año Base]]<>0,Bal_Comp3[[#This Row],[Bal_1999]]<>0),1,0)","v":0}]
["Mayor",61010604,"SEGURIDAD Y VIGILANCIA",null,null,null,{"$f":"IF(OR(Bal_Comp3[[#This Row],[Año Base]]<>0,Bal_Comp3[[#This Row],[Bal_1999]]<>0),1,0)","v":0}]
["Mayor",61010605,"CONSERVACIÓN Y MANTTO INMUEBLES ARRENDADOS",null,null,null,{"$f":"IF(OR(Bal_Comp3[[#This Row],[Año Base]]<>0,Bal_Comp3[[#This Row],[Bal_1999]]<>0),1,0)","v":0}]
["Mayor",61010606,"REPARACIONES Y MANTENIMIENTO GENERAL",null,null,null,{"$f":"IF(OR(Bal_Comp3[[#This Row],[Año Base]]<>0,Bal_Comp3[[#This Row],[Bal_1999]]<>0),1,0)","v":0}]
["Mayor",61010607,"REPARACIONES Y MANTENIMIENTO VEHICULO",null,null,null,{"$f":"IF(OR(Bal_Comp3[[#This Row],[Año Base]]<>0,Bal_Comp3[[#This Row],[Bal_1999]]<>0),1,0)","v":0}]
["Mayor",61010701,"ARRENDAMIENTOS DE BIENES INMUEBLES",null,null,null,{"$f":"IF(OR(Bal_Comp3[[#This Row],[Año Base]]<>0,Bal_Comp3[[#This Row],[Bal_1999]]<>0),1,0)","v":0}]
["Mayor",61010702,"ARRENDAMIENTOS DE BIENES MUEBLES",null,null,null,{"$f":"IF(OR(Bal_Comp3[[#This Row],[Año Base]]<>0,Bal_Comp3[[#This Row],[Bal_1999]]<>0),1,0)","v":0}]
["Mayor",61010801,"ABOGADOS",null,null,null,{"$f":"IF(OR(Bal_Comp3[[#This Row],[Año Base]]<>0,Bal_Comp3[[#This Row],[Bal_1999]]<>0),1,0)","v":0}]
["Mayor",61010802,"AUDITORES Y CONTADORES",null,null,null,{"$f":"IF(OR(Bal_Comp3[[#This Row],[Año Base]]<>0,Bal_Comp3[[#This Row],[Bal_1999]]<>0),1,0)","v":0}]
["Mayor",61010803,"ASISTENCIA TECNOLOGICA",null,null,null,{"$f":"IF(OR(Bal_Comp3[[#This Row],[Año Base]]<>0,Bal_Comp3[[#This Row],[Bal_1999]]<>0),1,0)","v":0}]
["Mayor",61010899,"OTROS CONSULTORES",null,null,null,{"$f":"IF(OR(Bal_Comp3[[#This Row],[Año Base]]<>0,Bal_Comp3[[#This Row],[Bal_1999]]<>0),1,0)","v":0}]
["Mayor",61019901,"MATERIAL DE OFICINA",null,null,null,{"$f":"IF(OR(Bal_Comp3[[#This Row],[Año Base]]<>0,Bal_Comp3[[#This Row],[Bal_1999]]<>0),1,0)","v":0}]
["Mayor",61019902,"GASTOS DE VIAJE",null,null,null,{"$f":"IF(OR(Bal_Comp3[[#This Row],[Año Base]]<>0,Bal_Comp3[[#This Row],[Bal_1999]]<>0),1,0)","v":0}]
["Mayor",61019903,"MENSAJERIA Y ENCOMIENDAS",null,null,null,{"$f":"IF(OR(Bal_Comp3[[#This Row],[Año Base]]<>0,Bal_Comp3[[#This Row],[Bal_1999]]<>0),1,0)","v":0}]
["Mayor",61019904,"REPARACIONES Y MANTENIMIENTO",null,null,null,{"$f":"IF(OR(Bal_Comp3[[#This Row],[Año Base]]<>0,Bal_Comp3[[#This Row],[Bal_1999]]<>0),1,0)","v":0}]
["Mayor",61019905,"MANTENIMIENTO INMUEBLES ARRENDADOS",null,null,null,{"$f":"IF(OR(Bal_Comp3[[#This Row],[Año Base]]<>0,Bal_Comp3[[#This Row],[Bal_1999]]<>0),1,0)","v":0}]
["Mayor",61019906,"GASTOS DE REPRESENTACION",null,null,null,{"$f":"IF(OR(Bal_Comp3[[#This Row],[Año Base]]<>0,Bal_Comp3[[#This Row],[Bal_1999]]<>0),1,0)","v":0}]
["Mayor",61019907,"REGISTROS Y NOTARIA",null,null,null,{"$f":"IF(OR(Bal_Comp3[[#This Row],[Año Base]]<>0,Bal_Comp3[[#This Row],[Bal_1999]]<>0),1,0)","v":0}]
["Mayor",61019908,"CONDOMINIO Y ESTACIONAMIENTO",null,null,null,{"$f":"IF(OR(Bal_Comp3[[#This Row],[Año Base]]<>0,Bal_Comp3[[#This Row],[Bal_1999]]<>0),1,0)","v":0}]
["Mayor",61019909,"LIBERALIDADES Y DONACIONES",null,null,null,{"$f":"IF(OR(Bal_Comp3[[#This Row],[Año Base]]<>0,Bal_Comp3[[#This Row],[Bal_1999]]<>0),1,0)","v":0}]
["Mayor",61019999,"OTROS GASTOS",null,null,null,{"$f":"IF(OR(Bal_Comp3[[#This Row],[Año Base]]<>0,Bal_Comp3[[#This Row],[Bal_1999]]<>0),1,0)","v":0}]
["Mayor",62010101,"SUELDO DE DIRECTORES",null,null,null,{"$f":"IF(OR(Bal_Comp3[[#This Row],[Año Base]]<>0,Bal_Comp3[[#This Row],[Bal_1999]]<>0),1,0)","v":0}]
["Mayor",62010102,"SUELDOS Y SALARIOS",null,null,null,{"$f":"IF(OR(Bal_Comp3[[#This Row],[Año Base]]<>0,Bal_Comp3[[#This Row],[Bal_1999]]<>0),1,0)","v":0}]
["Mayor",62010103,"HORAS EXTRA, BONOS Y OTROS",null,null,null,{"$f":"IF(OR(Bal_Comp3[[#This Row],[Año Base]]<>0,Bal_Comp3[[#This Row],[Bal_1999]]<>0),1,0)","v":0}]
["Mayor",62010104,"CESTATICKET",null,null,null,{"$f":"IF(OR(Bal_Comp3[[#This Row],[Año Base]]<>0,Bal_Comp3[[#This Row],[Bal_1999]]<>0),1,0)","v":0}]
["Mayor",62010105,"OTRAS ASIGNACIONES AL PERSONAL",null,null,null,{"$f":"IF(OR(Bal_Comp3[[#This Row],[Año Base]]<>0,Bal_Comp3[[#This Row],[Bal_1999]]<>0),1,0)","v":0}]
["Mayor",62010106,"VACACIONES",null,null,null,{"$f":"IF(OR(Bal_Comp3[[#This Row],[Año Base]]<>0,Bal_Comp3[[#This Row],[Bal_1999]]<>0),1,0)","v":0}]
["Mayor",62010107,"BONO VACACIONAL",null,null,null,{"$f":"IF(OR(Bal_Comp3[[#This Row],[Año Base]]<>0,Bal_Comp3[[#This Row],[Bal_1999]]<>0),1,0)","v":0}]
["Mayor",62010108,"UTILIDADES",null,null,null,{"$f":"IF(OR(Bal_Comp3[[#This Row],[Año Base]]<>0,Bal_Comp3[[#This Row],[Bal_1999]]<>0),1,0)","v":0}]
["Mayor",62010109,"PRESTACIONES SOCIALES",null,null,null,{"$f":"IF(OR(Bal_Comp3[[#This Row],[Año Base]]<>0,Bal_Comp3[[#This Row],[Bal_1999]]<>0),1,0)","v":0}]
["Mayor",62010110,"INTERESES PRESTACIONES SOCIALES",null,null,null,{"$f":"IF(OR(Bal_Comp3[[#This Row],[Año Base]]<>0,Bal_Comp3[[#This Row],[Bal_1999]]<>0),1,0)","v":0}]
["Mayor",62010111,"APORTE PATRONAL FAOV",null,null,null,{"$f":"IF(OR(Bal_Comp3[[#This Row],[Año Base]]<>0,Bal_Comp3[[#This Row],[Bal_1999]]<>0),1,0)","v":0}]
["Mayor",62010112,"APORTE PATRONAL IVSS",null,null,null,{"$f":"IF(OR(Bal_Comp3[[#This Row],[Año Base]]<>0,Bal_Comp3[[#This Row],[Bal_1999]]<>0),1,0)","v":0}]
["Mayor",62010113,"APORTE PATRONAL REG PRESTAC DE EMPLEO",null,null,null,{"$f":"IF(OR(Bal_Comp3[[#This Row],[Año Base]]<>0,Bal_Comp3[[#This Row],[Bal_1999]]<>0),1,0)","v":0}]
["Mayor",62010114,"APORTE PATRONAL INCES",null,null,null,{"$f":"IF(OR(Bal_Comp3[[#This Row],[Año Base]]<>0,Bal_Comp3[[#This Row],[Bal_1999]]<>0),1,0)","v":0}]
["Mayor",62010115,"DOTACIÓN UNIFORMES Y BOTAS",null,null,null,{"$f":"IF(OR(Bal_Comp3[[#This Row],[Año Base]]<>0,Bal_Comp3[[#This Row],[Bal_1999]]<>0),1,0)","v":0}]
["Mayor",62010116,"TRANSPORTE DEL PERSONAL",null,null,null,{"$f":"IF(OR(Bal_Comp3[[#This Row],[Año Base]]<>0,Bal_Comp3[[#This Row],[Bal_1999]]<>0),1,0)","v":0}]
["Mayor",62010199,"OTROS COSTOS DE PERSONAL",null,null,null,{"$f":"IF(OR(Bal_Comp3[[#This Row],[Año Base]]<>0,Bal_Comp3[[#This Row],[Bal_1999]]<>0),1,0)","v":0}]
["Mayor",62010201,"EDIFICACIONES",null,null,null,{"$f":"IF(OR(Bal_Comp3[[#This Row],[Año Base]]<>0,Bal_Comp3[[#This Row],[Bal_1999]]<>0),1,0)","v":0}]
["Mayor",62010202,"MAQUINARIAS Y EQUIPOS",null,null,null,{"$f":"IF(OR(Bal_Comp3[[#This Row],[Año Base]]<>0,Bal_Comp3[[#This Row],[Bal_1999]]<>0),1,0)","v":0}]
["Mayor",62010203,"INSTALACIONES",null,null,null,{"$f":"IF(OR(Bal_Comp3[[#This Row],[Año Base]]<>0,Bal_Comp3[[#This Row],[Bal_1999]]<>0),1,0)","v":0}]
["Mayor",62010204,"MOBILIARIO Y EQUIPOS DE OFICINA",null,null,null,{"$f":"IF(OR(Bal_Comp3[[#This Row],[Año Base]]<>0,Bal_Comp3[[#This Row],[Bal_1999]]<>0),1,0)","v":0}]
["Mayor",62010205,"EQUIPOS DE COMPUTACION",null,null,null,{"$f":"IF(OR(Bal_Comp3[[#This Row],[Año Base]]<>0,Bal_Comp3[[#This Row],[Bal_1999]]<>0),1,0)","v":0}]
["Mayor",62010206,"VEHICULOS",null,null,null,{"$f":"IF(OR(Bal_Comp3[[#This Row],[Año Base]]<>0,Bal_Comp3[[#This Row],[Bal_1999]]<>0),1,0)","v":0}]
["Mayor",62010207,"EQUIPOS Y HERRAMIENTAS",null,null,null,{"$f":"IF(OR(Bal_Comp3[[#This Row],[Año Base]]<>0,Bal_Comp3[[#This Row],[Bal_1999]]<>0),1,0)","v":0}]
["Mayor",62010299,"ACTIVOS REVALUADO",null,null,null,{"$f":"IF(OR(Bal_Comp3[[#This Row],[Año Base]]<>0,Bal_Comp3[[#This Row],[Bal_1999]]<>0),1,0)","v":0}]
["Mayor",62010301,"GASTOS PREPAGADOS",null,null,null,{"$f":"IF(OR(Bal_Comp3[[#This Row],[Año Base]]<>0,Bal_Comp3[[#This Row],[Bal_1999]]<>0),1,0)","v":0}]
["Mayor",62010302,"INTANGIBLES",100000,null,null,{"$f":"IF(OR(Bal_Comp3[[#This Row],[Año Base]]<>0,Bal_Comp3[[#This Row],[Bal_1999]]<>0),1,0)","v":1}]
["Mayor",62010303,"CARGOS DIFERIDOS",null,null,null,{"$f":"IF(OR(Bal_Comp3[[#This Row],[Año Base]]<>0,Bal_Comp3[[#This Row],[Bal_1999]]<>0),1,0)","v":0}]
["Mayor",62010401,"PATENTE MUNICIPAL",null,null,null,{"$f":"IF(OR(Bal_Comp3[[#This Row],[Año Base]]<>0,Bal_Comp3[[#This Row],[Bal_1999]]<>0),1,0)","v":0}]
["Mayor",62010402,"PUBLICIDAD Y PROPAGANDA",null,null,null,{"$f":"IF(OR(Bal_Comp3[[#This Row],[Año Base]]<>0,Bal_Comp3[[#This Row],[Bal_1999]]<>0),1,0)","v":0}]
["Mayor",62010403,"DERECHOS DE FRENTE",null,null,null,{"$f":"IF(OR(Bal_Comp3[[#This Row],[Año Base]]<>0,Bal_Comp3[[#This Row],[Bal_1999]]<>0),1,0)","v":0}]
["Mayor",62010404,"VEHICULOS",null,null,null,{"$f":"IF(OR(Bal_Comp3[[#This Row],[Año Base]]<>0,Bal_Comp3[[#This Row],[Bal_1999]]<>0),1,0)","v":0}]
["Mayor",62010405,"APORTE FONDO NACIONAL DEL DEPORTE",null,null,null,{"$f":"IF(OR(Bal_Comp3[[#This Row],[Año Base]]<>0,Bal_Comp3[[#This Row],[Bal_1999]]<>0),1,0)","v":0}]
["Mayor",62010406,"APORTE LOCTI",null,null,null,{"$f":"IF(OR(Bal_Comp3[[#This Row],[Año Base]]<>0,Bal_Comp3[[#This Row],[Bal_1999]]<>0),1,0)","v":0}]
["Mayor",62010407,"APORTE FONDO NACIONAL ANTIDROGA",null,null,null,{"$f":"IF(OR(Bal_Comp3[[#This Row],[Año Base]]<>0,Bal_Comp3[[#This Row],[Bal_1999]]<>0),1,0)","v":0}]
["Mayor",62010501,"RESPONSABILIDAD CIVIL",null,null,null,{"$f":"IF(OR(Bal_Comp3[[#This Row],[Año Base]]<>0,Bal_Comp3[[#This Row],[Bal_1999]]<>0),1,0)","v":0}]
["Mayor",62010502,"VEHICULOS",null,null,null,{"$f":"IF(OR(Bal_Comp3[[#This Row],[Año Base]]<>0,Bal_Comp3[[#This Row],[Bal_1999]]<>0),1,0)","v":0}]
["Mayor",62010503,"MOBILIARIOS Y EQUIPOS",null,null,null,{"$f":"IF(OR(Bal_Comp3[[#This Row],[Año Base]]<>0,Bal_Comp3[[#This Row],[Bal_1999]]<>0),1,0)","v":0}]
["Mayor",62010503,"HOSPITALIZACIÓN, CIRUGÍA Y MATERNIDAD",null,null,null,{"$f":"IF(OR(Bal_Comp3[[#This Row],[Año Base]]<>0,Bal_Comp3[[#This Row],[Bal_1999]]<>0),1,0)","v":0}]
["Mayor",62010503,"SEGURO DE ACCIDENTES PERSONALES",null,null,null,{"$f":"IF(OR(Bal_Comp3[[#This Row],[Año Base]]<>0,Bal_Comp3[[#This Row],[Bal_1999]]<>0),1,0)","v":0}]
["Mayor",62010601,"ELECTRICIDAD Y ASEO",null,null,null,{"$f":"IF(OR(Bal_Comp3[[#This Row],[Año Base]]<>0,Bal_Comp3[[#This Row],[Bal_1999]]<>0),1,0)","v":0}]
["Mayor",62010602,"TELEFONIA FIJA, MOVIL E INTERNET",null,null,null,{"$f":"IF(OR(Bal_Comp3[[#This Row],[Año Base]]<>0,Bal_Comp3[[#This Row],[Bal_1999]]<>0),1,0)","v":0}]
["Mayor",62010603,"TAXI Y MENSAJERIA",null,null,null,{"$f":"IF(OR(Bal_Comp3[[#This Row],[Año Base]]<>0,Bal_Comp3[[#This Row],[Bal_1999]]<>0),1,0)","v":0}]
["Mayor",62010604,"SEGURIDAD Y VIGILANCIA",null,null,null,{"$f":"IF(OR(Bal_Comp3[[#This Row],[Año Base]]<>0,Bal_Comp3[[#This Row],[Bal_1999]]<>0),1,0)","v":0}]
["Mayor",62010605,"CONSERVACIÓN Y MANTTO INMUEBLES ARRENDADOS",null,null,null,{"$f":"IF(OR(Bal_Comp3[[#This Row],[Año Base]]<>0,Bal_Comp3[[#This Row],[Bal_1999]]<>0),1,0)","v":0}]
["Mayor",62010606,"REPARACIONES Y MANTENIMIENTO GENERAL",null,null,null,{"$f":"IF(OR(Bal_Comp3[[#This Row],[Año Base]]<>0,Bal_Comp3[[#This Row],[Bal_1999]]<>0),1,0)","v":0}]
["Mayor",62010607,"TRANSPORTE DE PRODUCTOS",null,null,null,{"$f":"IF(OR(Bal_Comp3[[#This Row],[Año Base]]<>0,Bal_Comp3[[#This Row],[Bal_1999]]<>0),1,0)","v":0}]
["Mayor",62010608,"AYUDA VEHICULO",null,null,null,{"$f":"IF(OR(Bal_Comp3[[#This Row],[Año Base]]<>0,Bal_Comp3[[#This Row],[Bal_1999]]<>0),1,0)","v":0}]
["Mayor",62010609,"EVENTOS PUBLICITARIOS",null,null,null,{"$f":"IF(OR(Bal_Comp3[[#This Row],[Año Base]]<>0,Bal_Comp3[[#This Row],[Bal_1999]]<>0),1,0)","v":0}]
["Mayor",62010701,"ARRENDAMIENTOS DE BIENES INMUEBLES",null,null,null,{"$f":"IF(OR(Bal_Comp3[[#This Row],[Año Base]]<>0,Bal_Comp3[[#This Row],[Bal_1999]]<>0),1,0)","v":0}]
["Mayor",62010702,"ARRENDAMIENTOS DE BIENES MUEBLES",null,null,null,{"$f":"IF(OR(Bal_Comp3[[#This Row],[Año Base]]<>0,Bal_Comp3[[#This Row],[Bal_1999]]<>0),1,0)","v":0}]
["Mayor",62010801,"ABOGADOS",null,null,null,{"$f":"IF(OR(Bal_Comp3[[#This Row],[Año Base]]<>0,Bal_Comp3[[#This Row],[Bal_1999]]<>0),1,0)","v":0}]
["Mayor",62010802,"AUDITORES Y CONTADORES",null,null,null,{"$f":"IF(OR(Bal_Comp3[[#This Row],[Año Base]]<>0,Bal_Comp3[[#This Row],[Bal_1999]]<>0),1,0)","v":0}]
["Mayor",62010803,"ASISTENCIA TECNOLOGICA",null,null,null,{"$f":"IF(OR(Bal_Comp3[[#This Row],[Año Base]]<>0,Bal_Comp3[[#This Row],[Bal_1999]]<>0),1,0)","v":0}]
["Mayor",62010804,"ASESORES EN MERCADEO Y VENTAS",null,null,null,{"$f":"IF(OR(Bal_Comp3[[#This Row],[Año Base]]<>0,Bal_Comp3[[#This Row],[Bal_1999]]<>0),1,0)","v":0}]
["Mayor",62010805,"COMISIONES SOBRE VENTAS ",null,null,null,{"$f":"IF(OR(Bal_Comp3[[#This Row],[Año Base]]<>0,Bal_Comp3[[#This Row],[Bal_1999]]<>0),1,0)","v":0}]
["Mayor",62010899,"OTROS CONSULTORES",null,null,null,{"$f":"IF(OR(Bal_Comp3[[#This Row],[Año Base]]<>0,Bal_Comp3[[#This Row],[Bal_1999]]<>0),1,0)","v":0}]
["Mayor",62010901,"MUESTRAS DE PRODUCTOS",null,null,null,{"$f":"IF(OR(Bal_Comp3[[#This Row],[Año Base]]<>0,Bal_Comp3[[#This Row],[Bal_1999]]<>0),1,0)","v":0}]
["Mayor",62010902,"PUBLICIDAD Y PROPAGANDA",null,null,null,{"$f":"IF(OR(Bal_Comp3[[#This Row],[Año Base]]<>0,Bal_Comp3[[#This Row],[Bal_1999]]<>0),1,0)","v":0}]
["Mayor",62019901,"MATERIAL DE OFICINA",null,null,null,{"$f":"IF(OR(Bal_Comp3[[#This Row],[Año Base]]<>0,Bal_Comp3[[#This Row],[Bal_1999]]<>0),1,0)","v":0}]
["Mayor",62019902,"GASTOS DE VIAJE",null,null,null,{"$f":"IF(OR(Bal_Comp3[[#This Row],[Año Base]]<>0,Bal_Comp3[[#This Row],[Bal_1999]]<>0),1,0)","v":0}]
["Mayor",62019903,"MENSAJERIA Y ENCOMIENDAS",null,null,null,{"$f":"IF(OR(Bal_Comp3[[#This Row],[Año Base]]<>0,Bal_Comp3[[#This Row],[Bal_1999]]<>0),1,0)","v":0}]
["Mayor",62019904,"REPARACIONES Y MANTENIMIENTO",null,null,null,{"$f":"IF(OR(Bal_Comp3[[#This Row],[Año Base]]<>0,Bal_Comp3[[#This Row],[Bal_1999]]<>0),1,0)","v":0}]
["Mayor",62019905,"MANTENIMIENTO INMUEBLES ARRENDADOS",null,null,null,{"$f":"IF(OR(Bal_Comp3[[#This Row],[Año Base]]<>0,Bal_Comp3[[#This Row],[Bal_1999]]<>0),1,0)","v":0}]
["Mayor",62019906,"GASTOS DE REPRESENTACION",null,null,null,{"$f":"IF(OR(Bal_Comp3[[#This Row],[Año Base]]<>0,Bal_Comp3[[#This Row],[Bal_1999]]<>0),1,0)","v":0}]
["Mayor",62019907,"REGISTROS Y NOTARIA",null,null,null,{"$f":"IF(OR(Bal_Comp3[[#This Row],[Año Base]]<>0,Bal_Comp3[[#This Row],[Bal_1999]]<>0),1,0)","v":0}]
["Mayor",62019908,"CONDOMINIO Y ESTACIONAMIENTO",null,null,null,{"$f":"IF(OR(Bal_Comp3[[#This Row],[Año Base]]<>0,Bal_Comp3[[#This Row],[Bal_1999]]<>0),1,0)","v":0}]
["Mayor",62019909,"LIBERALIDADES Y DONACIONES",null,null,null,{"$f":"IF(OR(Bal_Comp3[[#This Row],[Año Base]]<>0,Bal_Comp3[[#This Row],[Bal_1999]]<>0),1,0)","v":0}]
["Mayor",62019999,"OTROS GASTOS",null,null,null,{"$f":"IF(OR(Bal_Comp3[[#This Row],[Año Base]]<>0,Bal_Comp3[[#This Row],[Bal_1999]]<>0),1,0)","v":0}]
["Mayor",71010101,"INTERESES SOBRE CREDITOS",null,null,null,{"$f":"IF(OR(Bal_Comp3[[#This Row],[Año Base]]<>0,Bal_Comp3[[#This Row],[Bal_1999]]<>0),1,0)","v":0}]
["Mayor",71020201,"OTROS INGRESOS FINANCIEROS",null,null,null,{"$f":"IF(OR(Bal_Comp3[[#This Row],[Año Base]]<>0,Bal_Comp3[[#This Row],[Bal_1999]]<>0),1,0)","v":0}]
["Mayor",72030101,"VENTA DE ACTIVO FIJO",null,null,null,{"$f":"IF(OR(Bal_Comp3[[#This Row],[Año Base]]<>0,Bal_Comp3[[#This Row],[Bal_1999]]<>0),1,0)","v":0}]
["Mayor",72030102,"INGRESOS NO GRAVABLES",null,null,null,{"$f":"IF(OR(Bal_Comp3[[#This Row],[Año Base]]<>0,Bal_Comp3[[#This Row],[Bal_1999]]<>0),1,0)","v":0}]
["Mayor",72030103,"AJUSTES A EJERCICIOS ANTERIORES",null,null,null,{"$f":"IF(OR(Bal_Comp3[[#This Row],[Año Base]]<>0,Bal_Comp3[[#This Row],[Bal_1999]]<>0),1,0)","v":0}]
["Mayor",72030104,"UTILIDAD EN CAMBIO REALIZADA",null,null,null,{"$f":"IF(OR(Bal_Comp3[[#This Row],[Año Base]]<>0,Bal_Comp3[[#This Row],[Bal_1999]]<>0),1,0)","v":0}]
["Mayor",72030105,"UTILIDAD EN CAMBIO NO REALIZADA",null,null,null,{"$f":"IF(OR(Bal_Comp3[[#This Row],[Año Base]]<>0,Bal_Comp3[[#This Row],[Bal_1999]]<>0),1,0)","v":0}]
["Mayor",72030105,"UTILIDAD EN VENTA DE ACTIVO FIJO",null,null,null,{"$f":"IF(OR(Bal_Comp3[[#This Row],[Año Base]]<>0,Bal_Comp3[[#This Row],[Bal_1999]]<>0),1,0)","v":0}]
["Mayor",72030199,"OTROS INGRESOS",null,null,null,{"$f":"IF(OR(Bal_Comp3[[#This Row],[Año Base]]<>0,Bal_Comp3[[#This Row],[Bal_1999]]<>0),1,0)","v":0}]
["Mayor",73010101,"VENTA CREDITO FISCAL",null,null,null,{"$f":"IF(OR(Bal_Comp3[[#This Row],[Año Base]]<>0,Bal_Comp3[[#This Row],[Bal_1999]]<>0),1,0)","v":0}]
["Mayor",81010101,"INTERESES SOBRE CREDITOS",null,null,null,{"$f":"IF(OR(Bal_Comp3[[#This Row],[Año Base]]<>0,Bal_Comp3[[#This Row],[Bal_1999]]<>0),1,0)","v":0}]
["Mayor",81010201,"COMISIONES BANCARIAS",null,null,null,{"$f":"IF(OR(Bal_Comp3[[#This Row],[Año Base]]<>0,Bal_Comp3[[#This Row],[Bal_1999]]<>0),1,0)","v":0}]
["Mayor",81020201,"ACCIONES EN CIA \"A\"",null,null,null,{"$f":"IF(OR(Bal_Comp3[[#This Row],[Año Base]]<>0,Bal_Comp3[[#This Row],[Bal_1999]]<>0),1,0)","v":0}]
["Mayor",82010101,"GASTOS NO DEDUCIBLES",null,null,null,{"$f":"IF(OR(Bal_Comp3[[#This Row],[Año Base]]<>0,Bal_Comp3[[#This Row],[Bal_1999]]<>0),1,0)","v":0}]
["Mayor",82010102,"ISLR DEL EJERCICIO",null,null,null,{"$f":"IF(OR(Bal_Comp3[[#This Row],[Año Base]]<>0,Bal_Comp3[[#This Row],[Bal_1999]]<>0),1,0)","v":0}]
["Mayor",82010103,"MULTAS Y SANCIONES PECUNIARIAS",null,null,null,{"$f":"IF(OR(Bal_Comp3[[#This Row],[Año Base]]<>0,Bal_Comp3[[#This Row],[Bal_1999]]<>0),1,0)","v":0}]
["Mayor",82010104,"IGTF",null,null,null,{"$f":"IF(OR(Bal_Comp3[[#This Row],[Año Base]]<>0,Bal_Comp3[[#This Row],[Bal_1999]]<>0),1,0)","v":0}]
["Mayor",82010105,"50% PASAJES INTERNACIONALES",null,null,null,{"$f":"IF(OR(Bal_Comp3[[#This Row],[Año Base]]<>0,Bal_Comp3[[#This Row],[Bal_1999]]<>0),1,0)","v":0}]
["Mayor",82010106,"INTERESES SOBRE PRESTAMOS (ND)",null,null,null,{"$f":"IF(OR(Bal_Comp3[[#This Row],[Año Base]]<>0,Bal_Comp3[[#This Row],[Bal_1999]]<>0),1,0)","v":0}]
["Mayor",82010197,"CREDITO FISCAL NO DEDUCIBLE",null,null,null,{"$f":"IF(OR(Bal_Comp3[[#This Row],[Año Base]]<>0,Bal_Comp3[[#This Row],[Bal_1999]]<>0),1,0)","v":0}]
["Mayor",82010198,"RETENCIONES IVA ASUMIDAS",null,null,null,{"$f":"IF(OR(Bal_Comp3[[#This Row],[Año Base]]<>0,Bal_Comp3[[#This Row],[Bal_1999]]<>0),1,0)","v":0}]
["Mayor",82010199,"OTROS NO DEDUCIBLES",null,null,null,{"$f":"IF(OR(Bal_Comp3[[#This Row],[Año Base]]<>0,Bal_Comp3[[#This Row],[Bal_1999]]<>0),1,0)","v":0}]
["Mayor",82020101,"PERDIDA EN VENTA ACTIVO VENDIDO",null,null,null,{"$f":"IF(OR(Bal_Comp3[[#This Row],[Año Base]]<>0,Bal_Comp3[[#This Row],[Bal_1999]]<>0),1,0)","v":0}]
["Mayor",82020102,"AJUSTE A EJERCICIO ANTERIORES",null,null,null,{"$f":"IF(OR(Bal_Comp3[[#This Row],[Año Base]]<>0,Bal_Comp3[[#This Row],[Bal_1999]]<>0),1,0)","v":0}]
["Mayor",82020103,"COMISIONES A INTERMEDIARIOS ",null,null,null,{"$f":"IF(OR(Bal_Comp3[[#This Row],[Año Base]]<>0,Bal_Comp3[[#This Row],[Bal_1999]]<>0),1,0)","v":0}]
["Mayor",82020104,"PERDIDAS POR CUENTAS INCOBRABLES",null,null,null,{"$f":"IF(OR(Bal_Comp3[[#This Row],[Año Base]]<>0,Bal_Comp3[[#This Row],[Bal_1999]]<>0),1,0)","v":0}]
["Mayor",82020106,"COMISIONES VARIAS",null,null,null,{"$f":"IF(OR(Bal_Comp3[[#This Row],[Año Base]]<>0,Bal_Comp3[[#This Row],[Bal_1999]]<>0),1,0)","v":0}]
["Mayor",82020107,"PERDIDA EN CAMBIO NO REALIZADA",null,null,null,{"$f":"IF(OR(Bal_Comp3[[#This Row],[Año Base]]<>0,Bal_Comp3[[#This Row],[Bal_1999]]<>0),1,0)","v":0}]
["Mayor",82020108,"PERDIDA EN CAMBIO REALIZADA",null,null,null,{"$f":"IF(OR(Bal_Comp3[[#This Row],[Año Base]]<>0,Bal_Comp3[[#This Row],[Bal_1999]]<>0),1,0)","v":0}]
["Mayor",82020109,"DIFERENCIA EN RECONVERSIÓN",null,null,null,{"$f":"IF(OR(Bal_Comp3[[#This Row],[Año Base]]<>0,Bal_Comp3[[#This Row],[Bal_1999]]<>0),1,0)","v":0}]
["Mayor",82020110,"CUENTA DE REDONDEO",null,null,null,{"$f":"IF(OR(Bal_Comp3[[#This Row],[Año Base]]<>0,Bal_Comp3[[#This Row],[Bal_1999]]<>0),1,0)","v":0}]
["Mayor",82020199,"OTROS EGRESOS",null,null,null,{"$f":"IF(OR(Bal_Comp3[[#This Row],[Año Base]]<>0,Bal_Comp3[[#This Row],[Bal_1999]]<>0),1,0)","v":0}]
["Mayor",83010101,"ISLR CORRIENTE",null,null,null,{"$f":"IF(OR(Bal_Comp3[[#This Row],[Año Base]]<>0,Bal_Comp3[[#This Row],[Bal_1999]]<>0),1,0)","v":0}]
["Mayor",83010102,"ISLR DIFERIDO ",null,null,null,{"$f":"IF(OR(Bal_Comp3[[#This Row],[Año Base]]<>0,Bal_Comp3[[#This Row],[Bal_1999]]<>0),1,0)","v":0}]
["Mayor",83020101,"APARTADO DEL EJERCICIO",null,null,null,{"$f":"IF(OR(Bal_Comp3[[#This Row],[Año Base]]<>0,Bal_Comp3[[#This Row],[Bal_1999]]<>0),1,0)","v":0}]
["Mayor",84010101,"RESULTADO POR EXPOSICIÓN MONETARIA ",null,null,null,{"$f":"IF(OR(Bal_Comp3[[#This Row],[Año Base]]<>0,Bal_Comp3[[#This Row],[Bal_1999]]<>0),1,0)","v":0}]
["Mayor",85010201,"ACTUALIZACION DE PATRIMONIO",null,null,null,{"$f":"IF(OR(Bal_Comp3[[#This Row],[Año Base]]<>0,Bal_Comp3[[#This Row],[Bal_1999]]<>0),1,0)","v":0}]
["Mayor",85010202,"EXCLUSIONES HISTORICAS AL PATRIMONIO",null,null,null,{"$f":"IF(OR(Bal_Comp3[[#This Row],[Año Base]]<>0,Bal_Comp3[[#This Row],[Bal_1999]]<>0),1,0)","v":0}]
["Mayor",85010203,"REAJUSTE POR INFLACION",null,null,null,{"$f":"IF(OR(Bal_Comp3[[#This Row],[Año Base]]<>0,Bal_Comp3[[#This Row],[Bal_1999]]<>0),1,0)","v":0}]
[null,null,null,{"$f":"SUBTOTAL(109,Bal_Comp3[Año Base])","v":300000},{"$f":"SUBTOTAL(109,Bal_Comp3[Bal_1999])","v":200000}]